﻿Department family,Entity,Date of payment,Expense type,Expense area,Supplier,Transaction number,Amount in Sterling,Supplier VAT Registration Number
Department of Health,Guys and St Thomas NHS Foundation Trust,09/10/2020,(50200) Consultants,(id:2002419) Cancer Supportive Services and R&D,KINGS COLLEGE LONDON:03529700,id:13288096   , 299.67
Department of Health,Guys and St Thomas NHS Foundation Trust,16/10/2020,(84400) Transport,(id:42276) Cancer Supportive Services and R&D,CITYSPRINT (UK) LTD,id:13383414  , 563.06
Department of Health,Guys and St Thomas NHS Foundation Trust,02/10/2020,(89000) Other - Training courses and conferences,(id:42245) Cancer Supportive Services and R&D,ETC VENUES LIMITED,id:13356676  , 450.00
Department of Health,Guys and St Thomas NHS Foundation Trust,23/10/2020,(81100) Dressings,(id:42270) Haematology,NHS SUPPLY CHAIN (MAIDSTONE),id:13356014 ,  70.46
Department of Health,Guys and St Thomas NHS Foundation Trust,23/10/2020,(81700) Lab Equipment Purchase,(id:42270) Haematology,NHS SUPPLY CHAIN (MAIDSTONE),id:13356014   , 126.01
Department of Health,Guys and St Thomas NHS Foundation Trust,02/10/2020,(83610) IT Costs,(id:42267) Haematology,OFFICE DEPOT UK LTD,id:13329956 ,1036.60
Department of Health,Guys and St Thomas NHS Foundation Trust,23/10/2020,(81100) Dressings,(id:42265) Haematology,NHS SUPPLY CHAIN (MAIDSTONE),id:13336014 , 485.32
Department of Health,Guys and St Thomas NHS Foundation Trust,23/10/2020,(83400) Office Equipment,(id:42265) Haematology,NHS SUPPLY CHAIN (MAIDSTONE),id:13356014    , 144.71
Department of Health,Guys and St Thomas NHS Foundation Trust,23/10/2020,(83400) Office Equipment,(id:42265) Haematology,NHS SUPPLY CHAIN (MAIDSTONE),id:13336014    ,  68.30
Department of Health,Guys and St Thomas NHS Foundation Trust,23/10/2020,(81700) Lab Equipment Purchase,(id:42265) Haematology,NHS SUPPLY CHAIN (MAIDSTONE),id:13336014   ,  52.22
Department of Health,Guys and St Thomas NHS Foundation Trust,23/10/2020,(81255) Medical Surgical Supplies & Equipment,(id:42265) Haematology,NHS SUPPLY CHAIN (MAIDSTONE),id:13356014   ,   8.98
Department of Health,Guys and St Thomas NHS Foundation Trust,23/10/2020,(50200) Consultants,(id:42272) Haematology,ST GEORGE'S UNIVERSITY HOSPITALS NHS FOUNDATION TRUST,id:13050599    ,6549.00
Department of Health,Guys and St Thomas NHS Foundation Trust,23/10/2020,(81700) Lab Equipment Purchase,(id:42272) Haematology,NHS SUPPLY CHAIN (MAIDSTONE),id:13336014   , 339.06
Department of Health,Guys and St Thomas NHS Foundation Trust,02/10/2020,(80205) Drug Costs,(id:42273) Haematology,HEALTHCARE AT HOME LTD,id:13342959 ,    21057.00
Department of Health,Guys and St Thomas NHS Foundation Trust,09/10/2020,(80205) Drug Costs,(id:42273) Haematology,HEALTHCARE AT HOME LTD,id:13361989 ,4102.00
Department of Health,Guys and St Thomas NHS Foundation Trust,09/10/2020,(80205) Drug Costs,(id:42273) Haematology,HEALTHCARE AT HOME LTD,id:13361981 ,7827.00
Department of Health,Guys and St Thomas NHS Foundation Trust,09/10/2020,(80205) Drug Costs,(id:42273) Haematology,HEALTHCARE AT HOME LTD,id:13361980 ,7927.00
Department of Health,Guys and St Thomas NHS Foundation Trust,09/10/2020,(80205) Drug Costs,(id:42273) Haematology,HEALTHCARE AT HOME LTD,id:13361979 ,8227.00
Department of Health,Guys and St Thomas NHS Foundation Trust,09/10/2020,(80205) Drug Costs,(id:42273) Haematology,HEALTHCARE AT HOME LTD,id:13375934 ,8447.00
Department of Health,Guys and St Thomas NHS Foundation Trust,16/10/2020,(80205) Drug Costs,(id:42273) Haematology,SHIRE PHARMACEUTICALS LTD,id:13383115   ,2860.00
Department of Health,Guys and St Thomas NHS Foundation Trust,09/10/2020,(50200) Consultants,(id:202405) Haematology,KINGS COLLEGE LONDON:03529700,id:13204194  ,    12836.05
Department of Health,Guys and St Thomas NHS Foundation Trust,23/10/2020,(81200) Medical Surgical Supplies & Equipment,(id:42258) Oncology Services,NHS SUPPLY CHAIN (MAIDSTONE),id:13336014  , 114.16
Department of Health,Guys and St Thomas NHS Foundation Trust,29/10/2020,(81900) Lab Equipment Purchase,(id:42261) Oncology Services,VIAPATH SERVICES LLP,id:13400294,1750.00
Department of Health,Guys and St Thomas NHS Foundation Trust,09/10/2020,(81000) Surgical Appliances,(id:42261) Oncology Services,MEDI UK LTD,id:13359163  , 251.38
Department of Health,Guys and St Thomas NHS Foundation Trust,23/10/2020,(81200) Medical Surgical Supplies & Equipment,(id:42260) Oncology Services,KORN WALL LTD T/A KWICKSCREEN,id:13401540 ,2232.00
Department of Health,Guys and St Thomas NHS Foundation Trust,23/10/2020,(81200) Medical Surgical Supplies & Equipment,(id:42260) Oncology Services,VYGON (UK) LTD,id:13384988 , 788.64
Department of Health,Guys and St Thomas NHS Foundation Trust,23/10/2020,(82800) Bedding & Linen,(id:42260) Oncology Services,NHS SUPPLY CHAIN (MAIDSTONE),id:13356014    , 323.97
Department of Health,Guys and St Thomas NHS Foundation Trust,23/10/2020,(82000) Provisions & Kitchens,(id:42260) Oncology Services,NHS SUPPLY CHAIN (MAIDSTONE),id:13356014   , 251.71
Department of Health,Guys and St Thomas NHS Foundation Trust,23/10/2020,(81100) Dressings,(id:42260) Oncology Services,NHS SUPPLY CHAIN (MAIDSTONE),id:13356014,2073.53
Department of Health,Guys and St Thomas NHS Foundation Trust,16/10/2020,(83500) Furniture & Fittings,(id:42259) Oncology Services,TECHNIBLINDS LTD,id:13384796 , 667.20
Department of Health,Guys and St Thomas NHS Foundation Trust,23/10/2020,(82800) Bedding & Linen,(id:42259) Oncology Services,NHS SUPPLY CHAIN (MAIDSTONE),id:13356014    ,  72.79
Department of Health,Guys and St Thomas NHS Foundation Trust,23/10/2020,(82800) Bedding & Linen,(id:42259) Oncology Services,NHS SUPPLY CHAIN (MAIDSTONE),id:13336014    ,  65.11
Department of Health,Guys and St Thomas NHS Foundation Trust,23/10/2020,(81700) Lab Equipment Purchase,(id:42259) Oncology Services,NHS SUPPLY CHAIN (MAIDSTONE),id:13336014  ,  32.30
Department of Health,Guys and St Thomas NHS Foundation Trust,23/10/2020,(82800) Bedding & Linen,(id:42280) Surgical Oncology,NHS SUPPLY CHAIN (MAIDSTONE),id:13356014    ,  63.94
Department of Health,Guys and St Thomas NHS Foundation Trust,09/10/2020,(50200) Consultants,(id:42280) Surgical Oncology,KINGS COLLEGE LONDON:03529700,id:13126194  ,    15253.83
Department of Health,Guys and St Thomas NHS Foundation Trust,16/10/2020,(81200) Medical Surgical Supplies & Equipment,(id:42280) Surgical Oncology,SEBBIN UK LTD,id:13361178  ,6360.00
Department of Health,Guys and St Thomas NHS Foundation Trust,23/10/2020,(81700) Lab Equipment Purchase,(id:42280) Surgical Oncology,NHS SUPPLY CHAIN (MAIDSTONE),id:13336014  ,  30.08
Department of Health,Guys and St Thomas NHS Foundation Trust,23/10/2020,(81700) Lab Equipment Purchase,(id:42280) Surgical Oncology,NHS SUPPLY CHAIN (MAIDSTONE),id:13356014  ,  38.42
Department of Health,Guys and St Thomas NHS Foundation Trust,23/10/2020,(83400) Office Equipment,(id:243406) Surgical Oncology,NHS SUPPLY CHAIN (MAIDSTONE),id:13336014  , 202.38
Department of Health,Guys and St Thomas NHS Foundation Trust,23/10/2020,(81700) Lab Equipment Purchase,(id:243406) Surgical Oncology,NHS SUPPLY CHAIN (MAIDSTONE),id:13356014 ,  24.08
Department of Health,Guys and St Thomas NHS Foundation Trust,23/10/2020,(81100) Dressings,(id:243406) Surgical Oncology,NHS SUPPLY CHAIN (MAIDSTONE),id:13336014    ,  18.89
Department of Health,Guys and St Thomas NHS Foundation Trust,23/10/2020,(81100) Dressings,(id:243406) Surgical Oncology,NHS SUPPLY CHAIN (MAIDSTONE),id:13356014    , 201.92
Department of Health,Guys and St Thomas NHS Foundation Trust,23/10/2020,(81200) Medical Surgical Supplies & Equipment,(id:42474) Surgical Oncology,SHEFFMED TRADE SERVICES LTD,id:13383585   , 957.60
Department of Health,Guys and St Thomas NHS Foundation Trust,23/10/2020,(81200) Medical Surgical Supplies & Equipment,(id:42474) Surgical Oncology,NHS SUPPLY CHAIN (MAIDSTONE),id:13356014  , 731.95
Department of Health,Guys and St Thomas NHS Foundation Trust,30/10/2020,(81200) Medical Surgical Supplies & Equipment,(id:42474) Surgical Oncology,GSTT PROCUREMENT CARD,id:13433842    ,  57.12
Department of Health,Guys and St Thomas NHS Foundation Trust,23/10/2020,(81400) Medical Surgical Supplies & Equipment,(id:42474) Surgical Oncology,NHS SUPPLY CHAIN (MAIDSTONE),id:13336014  ,  22.00
Department of Health,Guys and St Thomas NHS Foundation Trust,23/10/2020,(81100) Dressings,(id:42473) Surgical Oncology,SQUADRON MEDICAL LTD,id:13346636   ,  69.83
Department of Health,Guys and St Thomas NHS Foundation Trust,23/10/2020,(81200) Medical Surgical Supplies & Equipment,(id:42473) Surgical Oncology,NHS SUPPLY CHAIN (MAIDSTONE),id:13336014  ,3736.10
Department of Health,Guys and St Thomas NHS Foundation Trust,23/10/2020,(81200) Medical Surgical Supplies & Equipment,(id:42473) Surgical Oncology,CCMED LTD,id:13395954 ,1293.00
Department of Health,Guys and St Thomas NHS Foundation Trust,23/10/2020,(81200) Medical Surgical Supplies & Equipment,(id:42473) Surgical Oncology,KLS MARTIN UK LTD,id:13413197   ,1913.06
Department of Health,Guys and St Thomas NHS Foundation Trust,29/10/2020,(81200) Medical Surgical Supplies & Equipment,(id:42473) Surgical Oncology,MEDTRONIC LTD,id:13417612  , 619.20
Department of Health,Guys and St Thomas NHS Foundation Trust,02/10/2020,(81200) Medical Surgical Supplies & Equipment,(id:42473) Surgical Oncology,MEDTRONIC LTD,id:13319390  ,1046.40
Department of Health,Guys and St Thomas NHS Foundation Trust,02/10/2020,(81200) Medical Surgical Supplies & Equipment,(id:42473) Surgical Oncology,MEDTRONIC LTD,id:13326639  , 964.80
Department of Health,Guys and St Thomas NHS Foundation Trust,02/10/2020,(81200) Medical Surgical Supplies & Equipment,(id:42473) Surgical Oncology,SQUADRON MEDICAL LTD,id:13338919, 720.94
Department of Health,Guys and St Thomas NHS Foundation Trust,02/10/2020,(81200) Medical Surgical Supplies & Equipment,(id:42473) Surgical Oncology,STRYKER UK LTD,id:13346016 ,5700.00
Department of Health,Guys and St Thomas NHS Foundation Trust,16/10/2020,(81200) Medical Surgical Supplies & Equipment,(id:42473) Surgical Oncology,SQUADRON MEDICAL LTD,id:13344512, 638.42
Department of Health,Guys and St Thomas NHS Foundation Trust,16/10/2020,(81200) Medical Surgical Supplies & Equipment,(id:42473) Surgical Oncology,STRYKER UK LTD,id:13362826 ,1800.00
Department of Health,Guys and St Thomas NHS Foundation Trust,23/10/2020,(81215) Medical Surgical Supplies & Equipment,(id:42475) Surgical Oncology,NHS SUPPLY CHAIN (MAIDSTONE),id:13336014  ,    34769.48
Department of Health,Guys and St Thomas NHS Foundation Trust,09/10/2020,(81215) Medical Surgical Supplies & Equipment,(id:42475) Surgical Oncology,ADVANCED BIONICS SARL (AND UK LTD),id:13370474 ,7200.00
Department of Health,Guys and St Thomas NHS Foundation Trust,02/10/2020,(81225) Medical Surgical Supplies & Equipment,(id:42475) Surgical Oncology,COCHLEAR EUROPE LTD,id:13337839 ,4686.00
Department of Health,Guys and St Thomas NHS Foundation Trust,16/10/2020,(81400) Medical Surgical Supplies & Equipment,(id:42286) Surgical Oncology,KARL STORZ ENDOSCOPY UK LTD,id:13364414   , 705.00
Department of Health,Guys and St Thomas NHS Foundation Trust,29/10/2020,(81200) Medical Surgical Supplies & Equipment,(id:42286) Surgical Oncology,MEDTRONIC LTD,id:13417611  ,2303.28
Department of Health,Guys and St Thomas NHS Foundation Trust,16/10/2020,(81200) Medical Surgical Supplies & Equipment,(id:42286) Surgical Oncology,JOHNSON & JOHNSON MEDICAL LTD,id:13357166 , 585.94
Department of Health,Guys and St Thomas NHS Foundation Trust,23/10/2020,(81200) Medical Surgical Supplies & Equipment,(id:42286) Surgical Oncology,NHS SUPPLY CHAIN (MAIDSTONE),id:13336014  ,3129.02
Department of Health,Guys and St Thomas NHS Foundation Trust,23/10/2020,(81200) Medical Surgical Supplies & Equipment,(id:42284) Surgical Oncology,NHS SUPPLY CHAIN (MAIDSTONE),id:13356014  , 576.95
Department of Health,Guys and St Thomas NHS Foundation Trust,23/10/2020,(82700) Uniforms & Clothing,(id:42470) Surgical Oncology,NHS SUPPLY CHAIN (MAIDSTONE),id:13356014,  31.68
Department of Health,Guys and St Thomas NHS Foundation Trust,02/10/2020,(50522) Unqualified Nursing Staff,(id:42470) Surgical Oncology,MSI GROUP LTD,id:13354951    , 291.93
Department of Health,Guys and St Thomas NHS Foundation Trust,23/10/2020,(83400) Office Equipment,(id:42470) Surgical Oncology,NHS SUPPLY CHAIN (MAIDSTONE),id:13356014   ,  84.77
Department of Health,Guys and St Thomas NHS Foundation Trust,23/10/2020,(81225) Medical Surgical Supplies & Equipment,(id:2182419) Medicine,NHS SUPPLY CHAIN (MAIDSTONE),id:13336014    ,  48.48
Department of Health,Guys and St Thomas NHS Foundation Trust,23/10/2020,(82800) Bedding & Linen,(id:2182419) Medicine,NHS SUPPLY CHAIN (MAIDSTONE),id:13356014 , 683.91
Department of Health,Guys and St Thomas NHS Foundation Trust,29/10/2020,(50552) Qualified Nursing Staff,(id:2182419) Medicine,MSI GROUP LTD,id:13427365   , 729.15
Department of Health,Guys and St Thomas NHS Foundation Trust,16/10/2020,(50522) Unqualified Nursing Staff,(id:2182419) Medicine,MSI GROUP LTD,id:13391514 , 251.65
Department of Health,Guys and St Thomas NHS Foundation Trust,09/10/2020,(50522) Unqualified Nursing Staff,(id:2182419) Medicine,MSI GROUP LTD,id:13373282 , 272.81
Department of Health,Guys and St Thomas NHS Foundation Trust,02/10/2020,(82600) Uniforms & Clothing,(id:41860) Medicine,SQUADRON MEDICAL LTD,id:13331797  , 504.00
Department of Health,Guys and St Thomas NHS Foundation Trust,23/10/2020,(82800) Bedding & Linen,(id:41860) Medicine,NHS SUPPLY CHAIN (MAIDSTONE),id:13356014   , 137.41
Department of Health,Guys and St Thomas NHS Foundation Trust,09/10/2020,(50552) Qualified Nursing Staff,(id:41860) Medicine,CARE PROVIDERS HEALTHCARE,id:13375958   , 679.88
Department of Health,Guys and St Thomas NHS Foundation Trust,23/10/2020,(82700) Uniforms & Clothing,(id:41859) Medicine,NHS SUPPLY CHAIN (MAIDSTONE),id:13356014    ,  10.56
Department of Health,Guys and St Thomas NHS Foundation Trust,23/10/2020,(82000) Provisions & Kitchens,(id:41859) Medicine,NHS SUPPLY CHAIN (MAIDSTONE),id:13356014  , 398.40
Department of Health,Guys and St Thomas NHS Foundation Trust,23/10/2020,(82800) Bedding & Linen,(id:41859) Medicine,NHS SUPPLY CHAIN (MAIDSTONE),id:13336014   , 175.65
Department of Health,Guys and St Thomas NHS Foundation Trust,23/10/2020,(50552) Qualified Nursing Staff,(id:41859) Medicine,MSI GROUP LTD,id:13414534, 304.52
Department of Health,Guys and St Thomas NHS Foundation Trust,02/10/2020,(50552) Qualified Nursing Staff,(id:41859) Medicine,MSI GROUP LTD,id:13354984, 268.11
Department of Health,Guys and St Thomas NHS Foundation Trust,23/10/2020,(81255) Medical Surgical Supplies & Equipment,(id:41859) Medicine,NHS SUPPLY CHAIN (MAIDSTONE),id:13336014 ,   2.49
Department of Health,Guys and St Thomas NHS Foundation Trust,23/10/2020,(81255) Medical Surgical Supplies & Equipment,(id:41859) Medicine,NHS SUPPLY CHAIN (MAIDSTONE),id:13356014 ,    .62
Department of Health,Guys and St Thomas NHS Foundation Trust,23/10/2020,(50522) Unqualified Nursing Staff,(id:41859) Medicine,MSI GROUP LTD,id:13414501   , 277.83
Department of Health,Guys and St Thomas NHS Foundation Trust,02/10/2020,(50522) Unqualified Nursing Staff,(id:41859) Medicine,MSI GROUP LTD,id:13354830   , 208.27
Department of Health,Guys and St Thomas NHS Foundation Trust,09/10/2020,(50522) Unqualified Nursing Staff,(id:41858) Medicine,MSI GROUP LTD,id:13373282   , 272.80
Department of Health,Guys and St Thomas NHS Foundation Trust,23/10/2020,(81700) Lab Equipment Purchase,(id:41858) Medicine,NHS SUPPLY CHAIN (MAIDSTONE),id:13336014 ,   6.36
Department of Health,Guys and St Thomas NHS Foundation Trust,09/10/2020,(50552) Qualified Nursing Staff,(id:41872) Medicine,MEDICSPRO LTD,id:13373190, 673.18
Department of Health,Guys and St Thomas NHS Foundation Trust,09/10/2020,(50552) Qualified Nursing Staff,(id:41872) Medicine,MSI GROUP LTD,id:13373512, 348.35
Department of Health,Guys and St Thomas NHS Foundation Trust,09/10/2020,(50522) Unqualified Nursing Staff,(id:41872) Medicine,BPP PROFESSIONAL EDUCATION:69598900,id:13352294 ,   6.00
Department of Health,Guys and St Thomas NHS Foundation Trust,16/10/2020,(84500) Establishment,(id:41870) Medicine,OFFICE DEPOT UK LTD,id:13355273    ,  68.75
Department of Health,Guys and St Thomas NHS Foundation Trust,09/10/2020,(83350) Premises Services,(id:41870) Medicine,CORPS SECURITY,id:13375748,5498.88
Department of Health,Guys and St Thomas NHS Foundation Trust,19/10/2020,(84500) Establishment,(id:41869) Medicine,UNIVERSITY OF MANCHESTER,id:13385252    ,    10105.20
Department of Health,Guys and St Thomas NHS Foundation Trust,09/10/2020,(81200) Medical Surgical Supplies & Equipment,(id:41869) Medicine,SQUADRON MEDICAL LTD,id:13315091    , 569.49
Department of Health,Guys and St Thomas NHS Foundation Trust,23/10/2020,(81100) Dressings,(id:41868) Medicine,NHS SUPPLY CHAIN (MAIDSTONE),id:13336014    ,   4.64
Department of Health,Guys and St Thomas NHS Foundation Trust,23/10/2020,(82800) Bedding & Linen,(id:41880) Medicine,NHS SUPPLY CHAIN (MAIDSTONE),id:13356014   , 340.74
Department of Health,Guys and St Thomas NHS Foundation Trust,29/10/2020,(50522) Unqualified Nursing Staff,(id:41880) Medicine,GLOBE LOCUMS LTD,id:13427387, 248.32
Department of Health,Guys and St Thomas NHS Foundation Trust,29/10/2020,(50522) Unqualified Nursing Staff,(id:41880) Medicine,MSI GROUP LTD,id:13427323   , 791.36
Department of Health,Guys and St Thomas NHS Foundation Trust,23/10/2020,(50522) Unqualified Nursing Staff,(id:41880) Medicine,GLOBE LOCUMS LTD,id:13414366, 232.88
Department of Health,Guys and St Thomas NHS Foundation Trust,16/10/2020,(83500) Furniture & Fittings,(id:41879) Medicine,HOSPITAL METALCRAFT LTD,id:13381075   , 637.06
Department of Health,Guys and St Thomas NHS Foundation Trust,23/10/2020,(81100) Dressings,(id:41879) Medicine,NHS SUPPLY CHAIN (MAIDSTONE),id:13336014    , 255.18
Department of Health,Guys and St Thomas NHS Foundation Trust,29/10/2020,(50522) Unqualified Nursing Staff,(id:41879) Medicine,MSI GROUP LTD,id:13427323   , 263.79
Department of Health,Guys and St Thomas NHS Foundation Trust,23/10/2020,(81200) Medical Surgical Supplies & Equipment,(id:41879) Medicine,NHS SUPPLY CHAIN (MAIDSTONE),id:13336014 , 333.74
Department of Health,Guys and St Thomas NHS Foundation Trust,23/10/2020,(81200) Medical Surgical Supplies & Equipment,(id:41879) Medicine,ARJO UK LIMITED,id:13381648    , 685.20
Department of Health,Guys and St Thomas NHS Foundation Trust,23/10/2020,(82000) Provisions & Kitchens,(id:41878) Medicine,NHS SUPPLY CHAIN (MAIDSTONE),id:13356014  ,1499.49
Department of Health,Guys and St Thomas NHS Foundation Trust,09/10/2020,(50552) Qualified Nursing Staff,(id:41878) Medicine,MSI GROUP LTD,id:13373239, 316.74
Department of Health,Guys and St Thomas NHS Foundation Trust,09/10/2020,(50522) Unqualified Nursing Staff,(id:41878) Medicine,MSI GROUP LTD,id:13373325   , 255.87
Department of Health,Guys and St Thomas NHS Foundation Trust,23/10/2020,(50522) Unqualified Nursing Staff,(id:41878) Medicine,GLOBE LOCUMS LTD,id:13414386, 217.48
Department of Health,Guys and St Thomas NHS Foundation Trust,23/10/2020,(82800) Bedding & Linen,(id:41881) Medicine,NHS SUPPLY CHAIN (MAIDSTONE),id:13356014   , 251.36
Department of Health,Guys and St Thomas NHS Foundation Trust,23/10/2020,(81100) Dressings,(id:41881) Medicine,NHS SUPPLY CHAIN (MAIDSTONE),id:13356014    , 409.08
Department of Health,Guys and St Thomas NHS Foundation Trust,23/10/2020,(81100) Dressings,(id:41881) Medicine,NHS SUPPLY CHAIN (MAIDSTONE),id:13336014    ,  81.56
Department of Health,Guys and St Thomas NHS Foundation Trust,29/10/2020,(50522) Unqualified Nursing Staff,(id:41881) Medicine,MSI GROUP LTD,id:13427221   , 210.03
Department of Health,Guys and St Thomas NHS Foundation Trust,16/10/2020,(50522) Unqualified Nursing Staff,(id:41881) Medicine,MSI GROUP LTD,id:13391616   , 203.95
Department of Health,Guys and St Thomas NHS Foundation Trust,09/10/2020,(50522) Unqualified Nursing Staff,(id:41881) Medicine,MSI GROUP LTD,id:13373198   , 894.04
Department of Health,Guys and St Thomas NHS Foundation Trust,23/10/2020,(50522) Unqualified Nursing Staff,(id:41881) Medicine,MSI GROUP LTD,id:13414119   , 244.84
Department of Health,Guys and St Thomas NHS Foundation Trust,02/10/2020,(50522) Unqualified Nursing Staff,(id:41881) Medicine,MSI GROUP LTD,id:13354904   , 416.55
Department of Health,Guys and St Thomas NHS Foundation Trust,02/10/2020,(50522) Unqualified Nursing Staff,(id:41881) Medicine,MSI GROUP LTD,id:13354949   , 237.18
Department of Health,Guys and St Thomas NHS Foundation Trust,23/10/2020,(81225) Medical Surgical Supplies & Equipment,(id:41881) Medicine,NHS SUPPLY CHAIN (MAIDSTONE),id:13336014 ,  20.55
Department of Health,Guys and St Thomas NHS Foundation Trust,23/10/2020,(81255) Medical Surgical Supplies & Equipment,(id:41881) Medicine,NHS SUPPLY CHAIN (MAIDSTONE),id:13356014 ,   1.56
Department of Health,Guys and St Thomas NHS Foundation Trust,16/10/2020,(86300) Healthcare from non-NHS bodies,(id:42237) Integrated Therapies and Rehabilitation,PHYSIOTHERAPY SOLUTIONS LTD,id:13330295   ,    46574.00
Department of Health,Guys and St Thomas NHS Foundation Trust,30/10/2020,(83400) Office Equipment,(id:42240) Integrated Therapies and Rehabilitation,GSTT PROCUREMENT CARD,id:13433842   ,  12.24
Department of Health,Guys and St Thomas NHS Foundation Trust,21/10/2020,(51462) Occupational Therapists,(id:42240) Integrated Therapies and Rehabilitation,PRICEWATERHOUSECOOPERS LLP,id:13406958 ,1167.31
Department of Health,Guys and St Thomas NHS Foundation Trust,06/10/2020,(51462) Occupational Therapists,(id:42240) Integrated Therapies and Rehabilitation,PRICEWATERHOUSECOOPERS LLP,id:13362974 ,3602.94
Department of Health,Guys and St Thomas NHS Foundation Trust,13/10/2020,(51472) Occupational Therapists,(id:42240) Integrated Therapies and Rehabilitation,PRICEWATERHOUSECOOPERS LLP,id:13385020 ,1415.96
Department of Health,Guys and St Thomas NHS Foundation Trust,23/10/2020,(81100) Dressings,(id:42239) Integrated Therapies and Rehabilitation,PROMEDICS ORTHOPAEDICS LTD,id:13407314,  10.20
Department of Health,Guys and St Thomas NHS Foundation Trust,23/10/2020,(81100) Dressings,(id:42239) Integrated Therapies and Rehabilitation,NHS SUPPLY CHAIN (MAIDSTONE),id:13356014   ,2197.18
Department of Health,Guys and St Thomas NHS Foundation Trust,16/10/2020,(81225) Medical Surgical Supplies & Equipment,(id:42239) Integrated Therapies and Rehabilitation,PROMEDICS ORTHOPAEDICS LTD,id:13390697  , 838.26
Department of Health,Guys and St Thomas NHS Foundation Trust,23/10/2020,(83400) Office Equipment,(id:590530) Integrated Therapies and Rehabilitation,NHS SUPPLY CHAIN (MAIDSTONE),id:13336014,  46.82
Department of Health,Guys and St Thomas NHS Foundation Trust,16/10/2020,(81100) Dressings,(id:590530) Integrated Therapies and Rehabilitation,BAILEY INSTRUMENTS LIMITED,id:13361817    , 510.00
Department of Health,Guys and St Thomas NHS Foundation Trust,23/10/2020,(81200) Medical Surgical Supplies & Equipment,(id:590530) Integrated Therapies and Rehabilitation,NHS SUPPLY CHAIN (MAIDSTONE),id:13336014    ,  36.94
Department of Health,Guys and St Thomas NHS Foundation Trust,23/10/2020,(81200) Medical Surgical Supplies & Equipment,(id:590490) Integrated Therapies and Rehabilitation,NHS SUPPLY CHAIN (MAIDSTONE),id:13336014    ,  27.24
Department of Health,Guys and St Thomas NHS Foundation Trust,02/10/2020,(81100) Dressings,(id:590490) Integrated Therapies and Rehabilitation,BAILEY INSTRUMENTS LIMITED,id:13266594    , 657.00
Department of Health,Guys and St Thomas NHS Foundation Trust,23/10/2020,(83500) Furniture & Fittings,(id:590490) Integrated Therapies and Rehabilitation,NHS SUPPLY CHAIN (MAIDSTONE),id:13356014 ,  39.60
Department of Health,Guys and St Thomas NHS Foundation Trust,29/10/2020,(81200) Medical Surgical Supplies & Equipment,(id:590499) Integrated Therapies and Rehabilitation,INVACARE LTD,id:13412943, 669.60
Department of Health,Guys and St Thomas NHS Foundation Trust,02/10/2020,(81200) Medical Surgical Supplies & Equipment,(id:590499) Integrated Therapies and Rehabilitation,SUNRISE MEDICAL LIMITED,id:13332574    ,1653.60
Department of Health,Guys and St Thomas NHS Foundation Trust,16/10/2020,(81225) Medical Surgical Supplies & Equipment,(id:590499) Integrated Therapies and Rehabilitation,DIRECT HEALTHCARE GROUP LTD,id:13377081, 980.40
Department of Health,Guys and St Thomas NHS Foundation Trust,29/10/2020,(81225) Medical Surgical Supplies & Equipment,(id:590499) Integrated Therapies and Rehabilitation,QBITUS PRODUCTS LTD,id:13413411   , 548.10
Department of Health,Guys and St Thomas NHS Foundation Trust,27/10/2020,(51862) Physiotherapists,(id:590499) Integrated Therapies and Rehabilitation,PRICEWATERHOUSECOOPERS LLP,id:13423614  , 753.89
Department of Health,Guys and St Thomas NHS Foundation Trust,23/10/2020,(81225) Medical Surgical Supplies & Equipment,(id:590498) Integrated Therapies and Rehabilitation,JANE SAUNDERS & MANNING LTD,id:13380214, 554.45
Department of Health,Guys and St Thomas NHS Foundation Trust,02/10/2020,(81000) Surgical Appliances,(id:590498) Integrated Therapies and Rehabilitation,THUASNE UK LTD,id:13277116 ,1344.00
Department of Health,Guys and St Thomas NHS Foundation Trust,16/10/2020,(81400) Medical Surgical Supplies & Equipment,(id:590498) Integrated Therapies and Rehabilitation,WYNNLODGE LTD,id:13376505    ,2400.00
Department of Health,Guys and St Thomas NHS Foundation Trust,02/10/2020,(84520) Establishment,(id:590496) Integrated Therapies and Rehabilitation,PITNEY BOWES LTD,id:13220895,4040.00
Department of Health,Guys and St Thomas NHS Foundation Trust,23/10/2020,(81100) Dressings,(id:1042419) Integrated Therapies and Rehabilitation,NHS SUPPLY CHAIN (MAIDSTONE),id:13356014 ,  46.66
Department of Health,Guys and St Thomas NHS Foundation Trust,09/10/2020,(83400) Office Equipment,(id:1042419) Integrated Therapies and Rehabilitation,CITY & KENT CLEANING LTD,id:12172331   ,3800.00
Department of Health,Guys and St Thomas NHS Foundation Trust,23/10/2020,(83400) Office Equipment,(id:42255) Integrated Local Services,NHS SUPPLY CHAIN (MAIDSTONE),id:13336014,  28.68
Department of Health,Guys and St Thomas NHS Foundation Trust,02/10/2020,(89640) Non-Healthcare from NHS Trusts,(id:42255) Integrated Local Services,ST HELENS & KNOWSLEY HOSPITALS NHS TRUST,id:13344802    ,9985.51
Department of Health,Guys and St Thomas NHS Foundation Trust,16/10/2020,(89270) Establishment,(id:42255) Integrated Local Services,RICHARD KNIGHT,id:13373096  ,2560.00
Department of Health,Guys and St Thomas NHS Foundation Trust,23/10/2020,(83500) Furniture & Fittings,(id:590431) Integrated Local Services,NHS SUPPLY CHAIN (MAIDSTONE),id:13356014,  21.60
Department of Health,Guys and St Thomas NHS Foundation Trust,23/10/2020,(82000) Provisions & Kitchens,(id:590563) Integrated Local Services,NHS SUPPLY CHAIN (MAIDSTONE),id:13336014    ,  21.60
Department of Health,Guys and St Thomas NHS Foundation Trust,23/10/2020,(86300) Healthcare from non-NHS bodies,(id:590563) Integrated Local Services,PAVILION MEDICAL CENTRE,id:13407857, 510.00
Department of Health,Guys and St Thomas NHS Foundation Trust,16/10/2020,(50532) Unqualified Nursing Staff,(id:590495) Integrated Local Services,NURSING 2000 LTD,id:13376022  , 706.89
Department of Health,Guys and St Thomas NHS Foundation Trust,23/10/2020,(81200) Medical Surgical Supplies & Equipment,(id:1885424) Integrated Local Services,NHS SUPPLY CHAIN (MAIDSTONE),id:13336014  ,  13.68
Department of Health,Guys and St Thomas NHS Foundation Trust,23/10/2020,(81700) Lab Equipment Purchase,(id:1885424) Integrated Local Services,NHS SUPPLY CHAIN (MAIDSTONE),id:13336014  ,   5.34
Department of Health,Guys and St Thomas NHS Foundation Trust,21/10/2020,(51862) Physiotherapists,(id:1885424) Integrated Local Services,PRICEWATERHOUSECOOPERS LLP,id:13406958,7237.33
Department of Health,Guys and St Thomas NHS Foundation Trust,06/10/2020,(51872) Physiotherapists,(id:1371419) Integrated Local Services,PRICEWATERHOUSECOOPERS LLP,id:13362974,1450.29
Department of Health,Guys and St Thomas NHS Foundation Trust,29/10/2020,(50562) Qualified Nursing Staff,(id:699422) Integrated Local Services,MSI GROUP LTD,id:13427225  , 815.44
Department of Health,Guys and St Thomas NHS Foundation Trust,16/10/2020,(50562) Qualified Nursing Staff,(id:699422) Integrated Local Services,MSI GROUP LTD,id:13391512  ,1352.17
Department of Health,Guys and St Thomas NHS Foundation Trust,23/10/2020,(50572) Qualified Nursing Staff,(id:699422) Integrated Local Services,MSI GROUP LTD,id:13414500  , 880.06
Department of Health,Guys and St Thomas NHS Foundation Trust,27/10/2020,(51832) Physiotherapists,(id:699422) Integrated Local Services,PRICEWATERHOUSECOOPERS LLP,id:13423614 ,3646.96
Department of Health,Guys and St Thomas NHS Foundation Trust,21/10/2020,(51832) Physiotherapists,(id:590523) Integrated Local Services,PRICEWATERHOUSECOOPERS LLP,id:13406958 ,1652.29
Department of Health,Guys and St Thomas NHS Foundation Trust,23/10/2020,(81225) Medical Surgical Supplies & Equipment,(id:2357419) Integrated Local Services,NHS SUPPLY CHAIN (MAIDSTONE),id:13336014  ,  16.57
Department of Health,Guys and St Thomas NHS Foundation Trust,02/10/2020,(50200) Consultants,(id:1913419) Integrated Local Services,KING'S COLLEGE HOSPITAL NHS FOUNDATION TRUST,id:13348477  ,5682.38
Department of Health,Guys and St Thomas NHS Foundation Trust,21/10/2020,(51862) Physiotherapists,(id:1888419) Integrated Local Services,PRICEWATERHOUSECOOPERS LLP,id:13406958, 968.76
Department of Health,Guys and St Thomas NHS Foundation Trust,13/10/2020,(53072) Speech Therapists,(id:1888419) Integrated Local Services,PRICEWATERHOUSECOOPERS LLP,id:13385020    ,2919.86
Department of Health,Guys and St Thomas NHS Foundation Trust,23/10/2020,(83400) Office Equipment,(id:684420) Integrated Local Services,NHS SUPPLY CHAIN (MAIDSTONE),id:13356014    ,   5.94
Department of Health,Guys and St Thomas NHS Foundation Trust,06/10/2020,(51862) Physiotherapists,(id:684419) Integrated Local Services,PRICEWATERHOUSECOOPERS LLP,id:13362974 ,3779.05
Department of Health,Guys and St Thomas NHS Foundation Trust,27/10/2020,(51842) Physiotherapists,(id:684419) Integrated Local Services,PRICEWATERHOUSECOOPERS LLP,id:13423614 , 813.57
Department of Health,Guys and St Thomas NHS Foundation Trust,16/10/2020,(50552) Qualified Nursing Staff,(id:590521) Integrated Local Services,NURSING 2000 LTD,id:13376045    , 509.16
Department of Health,Guys and St Thomas NHS Foundation Trust,02/10/2020,(50552) Qualified Nursing Staff,(id:590521) Integrated Local Services,NURSING 2000 LTD,id:13344881    ,1426.79
Department of Health,Guys and St Thomas NHS Foundation Trust,23/10/2020,(81200) Medical Surgical Supplies & Equipment,(id:590520) Integrated Local Services,NHS SUPPLY CHAIN (MAIDSTONE),id:13356014   , 309.00
Department of Health,Guys and St Thomas NHS Foundation Trust,16/10/2020,(50552) Qualified Nursing Staff,(id:590520) Integrated Local Services,CARE PROVIDERS HEALTHCARE,id:13391608, 795.00
Department of Health,Guys and St Thomas NHS Foundation Trust,02/10/2020,(50552) Qualified Nursing Staff,(id:590520) Integrated Local Services,YOUR WORLD RECRUITMENT LIMITED(YOUR WORLD HEALTHCARE),id:13343506  , 987.75
Department of Health,Guys and St Thomas NHS Foundation Trust,23/10/2020,(81100) Dressings,(id:590473) Integrated Local Services,NHS SUPPLY CHAIN (MAIDSTONE),id:13336014 , 148.39
Department of Health,Guys and St Thomas NHS Foundation Trust,23/10/2020,(81200) Medical Surgical Supplies & Equipment,(id:590473) Integrated Local Services,NHS SUPPLY CHAIN (MAIDSTONE),id:13336014   ,1082.60
Department of Health,Guys and St Thomas NHS Foundation Trust,29/10/2020,(50552) Qualified Nursing Staff,(id:590473) Integrated Local Services,MSI GROUP LTD,id:13427220  ,1170.60
Department of Health,Guys and St Thomas NHS Foundation Trust,23/10/2020,(83400) Office Equipment,(id:590470) Integrated Local Services,NHS SUPPLY CHAIN (MAIDSTONE),id:13356014    ,  73.18
Department of Health,Guys and St Thomas NHS Foundation Trust,23/10/2020,(83400) Office Equipment,(id:590470) Integrated Local Services,NHS SUPPLY CHAIN (MAIDSTONE),id:13336014    ,  52.69
Department of Health,Guys and St Thomas NHS Foundation Trust,23/10/2020,(82800) Bedding & Linen,(id:590470) Integrated Local Services,NHS SUPPLY CHAIN (MAIDSTONE),id:13356014,  70.70
Department of Health,Guys and St Thomas NHS Foundation Trust,23/10/2020,(81200) Medical Surgical Supplies & Equipment,(id:590535) Integrated Local Services,NHS SUPPLY CHAIN (MAIDSTONE),id:13356014   , 120.37
Department of Health,Guys and St Thomas NHS Foundation Trust,16/10/2020,(81225) Medical Surgical Supplies & Equipment,(id:590527) Integrated Local Services,ROBLETT ELECTRICAL SUPPLIES LTD,id:13390348, 682.80
Department of Health,Guys and St Thomas NHS Foundation Trust,23/10/2020,(82800) Bedding & Linen,(id:590526) Integrated Local Services,NHS SUPPLY CHAIN (MAIDSTONE),id:13336014, 128.18
Department of Health,Guys and St Thomas NHS Foundation Trust,23/10/2020,(82000) Provisions & Kitchens,(id:590526) Integrated Local Services,NHS SUPPLY CHAIN (MAIDSTONE),id:13356014    ,  51.09
Department of Health,Guys and St Thomas NHS Foundation Trust,23/10/2020,(81100) Dressings,(id:590526) Integrated Local Services,NHS SUPPLY CHAIN (MAIDSTONE),id:13336014 ,  46.30
Department of Health,Guys and St Thomas NHS Foundation Trust,23/10/2020,(83610) IT Costs,(id:590526) Integrated Local Services,SCC PLC)SPECIALIST COMPUTER CENTRES,id:13338088, 541.98
Department of Health,Guys and St Thomas NHS Foundation Trust,23/10/2020,(82800) Bedding & Linen,(id:903421) Integrated Local Services,NHS SUPPLY CHAIN (MAIDSTONE),id:13356014,  46.82
Department of Health,Guys and St Thomas NHS Foundation Trust,16/10/2020,(89270) Establishment,(id:903421) Integrated Local Services,SELDOC LTD,id:13390835,    23962.00
Department of Health,Guys and St Thomas NHS Foundation Trust,16/10/2020,(89270) Establishment,(id:903421) Integrated Local Services,SELDOC LTD,id:13390934,2677.73
Department of Health,Guys and St Thomas NHS Foundation Trust,16/10/2020,(89270) Establishment,(id:903421) Integrated Local Services,SELDOC LTD,id:13390774,9261.06
Department of Health,Guys and St Thomas NHS Foundation Trust,23/10/2020,(81200) Medical Surgical Supplies & Equipment,(id:903421) Integrated Local Services,NHS SUPPLY CHAIN (MAIDSTONE),id:13356014   , 412.98
Department of Health,Guys and St Thomas NHS Foundation Trust,02/10/2020,(50204) Consultants,(id:903421) Integrated Local Services,KING'S COLLEGE HOSPITAL NHS FOUNDATION TRUST,id:13328729   ,3898.09
Department of Health,Guys and St Thomas NHS Foundation Trust,23/10/2020,(81400) Medical Surgical Supplies & Equipment,(id:590491) Integrated Local Services,VIAPATH ANALYTICS LLP,id:13084481,5246.82
Department of Health,Guys and St Thomas NHS Foundation Trust,29/10/2020,(50552) Qualified Nursing Staff,(id:4609419) Integrated Local Services,NURSING 2000 LTD,id:13394157   , 366.85
Department of Health,Guys and St Thomas NHS Foundation Trust,23/10/2020,(50552) Qualified Nursing Staff,(id:4609419) Integrated Local Services,NURSING 2000 LTD,id:13376019   ,1197.06
Department of Health,Guys and St Thomas NHS Foundation Trust,23/10/2020,(81700) Lab Equipment Purchase,(id:4263422) Integrated Local Services,NHS SUPPLY CHAIN (MAIDSTONE),id:13356014  ,  18.97
Department of Health,Guys and St Thomas NHS Foundation Trust,02/10/2020,(89595) Non-Healthcare from Foundation Trusts,(id:42683) Integrated Care SBU Management,MANCHESTER UNIVERSITY NHS FOUNDATION TRUST,id:13356694,1080.90
Department of Health,Guys and St Thomas NHS Foundation Trust,23/10/2020,(81275) Medical Surgical Supplies & Equipment,(id:42518) Evelina Womens Services,NHS SUPPLY CHAIN (MAIDSTONE),id:13336014 ,  17.79
Department of Health,Guys and St Thomas NHS Foundation Trust,29/10/2020,(80100) Drug Costs,(id:42517) Evelina Womens Services,BOC LTD :02107500,id:13417673    ,2835.45
Department of Health,Guys and St Thomas NHS Foundation Trust,02/10/2020,(81400) Medical Surgical Supplies & Equipment,(id:42517) Evelina Womens Services,ANETIC AID LTD,id:13348595,1862.35
Department of Health,Guys and St Thomas NHS Foundation Trust,23/10/2020,(81200) Medical Surgical Supplies & Equipment,(id:42517) Evelina Womens Services,COOK UK LTD,id:13287571   ,3456.00
Department of Health,Guys and St Thomas NHS Foundation Trust,23/10/2020,(81275) Medical Surgical Supplies & Equipment,(id:42517) Evelina Womens Services,ORIGIO LTD DELTA PARK,id:13325774   ,2436.60
Department of Health,Guys and St Thomas NHS Foundation Trust,23/10/2020,(81700) Lab Equipment Purchase,(id:42517) Evelina Womens Services,ORIGIO LTD DELTA PARK,id:13360994   ,6076.80
Department of Health,Guys and St Thomas NHS Foundation Trust,30/10/2020,(84600) Establishment,(id:42517) Evelina Womens Services,GSTT PROCUREMENT CARD,id:13433842  ,1703.29
Department of Health,Guys and St Thomas NHS Foundation Trust,09/10/2020,(89120) Other - Legal fees,(id:42515) Evelina Womens Services,BEACHCROFT LLP OFFICE ACCOUNT,id:13376075    ,6691.66
Department of Health,Guys and St Thomas NHS Foundation Trust,23/10/2020,(83400) Office Equipment,(id:42513) Evelina Womens Services,NHS SUPPLY CHAIN (MAIDSTONE),id:13356014  , 157.80
Department of Health,Guys and St Thomas NHS Foundation Trust,23/10/2020,(81100) Dressings,(id:42513) Evelina Womens Services,NHS SUPPLY CHAIN (MAIDSTONE),id:13356014    , 259.38
Department of Health,Guys and St Thomas NHS Foundation Trust,16/10/2020,(81200) Medical Surgical Supplies & Equipment,(id:42511) Evelina Womens Services,CRYOLIFE EUROPA LTD,id:13358597, 726.00
Department of Health,Guys and St Thomas NHS Foundation Trust,29/10/2020,(81200) Medical Surgical Supplies & Equipment,(id:42511) Evelina Womens Services,AQUILANT LTD - TRADING AS AQUILANT SURGICAL,id:13399474 ,2376.00
Department of Health,Guys and St Thomas NHS Foundation Trust,23/10/2020,(81225) Medical Surgical Supplies & Equipment,(id:42510) Evelina Womens Services,NHS SUPPLY CHAIN (MAIDSTONE),id:13336014 ,  37.10
Department of Health,Guys and St Thomas NHS Foundation Trust,16/10/2020,(81200) Medical Surgical Supplies & Equipment,(id:42506) Evelina Womens Services,SCHULTZ MEDICAL (UK) LTD,id:13380839,1218.00
Department of Health,Guys and St Thomas NHS Foundation Trust,23/10/2020,(83400) Office Equipment,(id:42506) Evelina Womens Services,NHS SUPPLY CHAIN (MAIDSTONE),id:13356014  , 106.44
Department of Health,Guys and St Thomas NHS Foundation Trust,23/10/2020,(82800) Bedding & Linen,(id:42506) Evelina Womens Services,NHS SUPPLY CHAIN (MAIDSTONE),id:13356014   , 120.72
Department of Health,Guys and St Thomas NHS Foundation Trust,29/10/2020,(89600) Non-Healthcare from other NHS bodies,(id:42486) Evelina Womens Services,NHS BLOOD AND TRANSPLANT,id:13326774 , 890.38
Department of Health,Guys and St Thomas NHS Foundation Trust,23/10/2020,(80200) Drug Costs,(id:42496) Evelina Womens Services,VIAPATH SERVICES LLP,id:13090615 ,3626.00
Department of Health,Guys and St Thomas NHS Foundation Trust,23/10/2020,(81700) Lab Equipment Purchase,(id:42496) Evelina Womens Services,NHS SUPPLY CHAIN (MAIDSTONE),id:13336014 ,  93.75
Department of Health,Guys and St Thomas NHS Foundation Trust,23/10/2020,(81700) Lab Equipment Purchase,(id:42496) Evelina Womens Services,NHS SUPPLY CHAIN (MAIDSTONE),id:13356014 ,  64.29
Department of Health,Guys and St Thomas NHS Foundation Trust,23/10/2020,(83400) Office Equipment,(id:42493) Evelina Womens Services,NHS SUPPLY CHAIN (MAIDSTONE),id:13336014  ,  77.28
Department of Health,Guys and St Thomas NHS Foundation Trust,23/10/2020,(81275) Medical Surgical Supplies & Equipment,(id:42493) Evelina Womens Services,NHS SUPPLY CHAIN (MAIDSTONE),id:13356014 ,  17.79
Department of Health,Guys and St Thomas NHS Foundation Trust,23/10/2020,(81700) Lab Equipment Purchase,(id:42493) Evelina Womens Services,NHS SUPPLY CHAIN (MAIDSTONE),id:13356014 ,  63.02
Department of Health,Guys and St Thomas NHS Foundation Trust,29/10/2020,(82600) Uniforms & Clothing,(id:42492) Evelina Womens Services,MELYD SURGICAL LTD,id:13419494    ,1668.00
Department of Health,Guys and St Thomas NHS Foundation Trust,23/10/2020,(83400) Office Equipment,(id:42492) Evelina Womens Services,NHS SUPPLY CHAIN (MAIDSTONE),id:13356014  , 329.21
Department of Health,Guys and St Thomas NHS Foundation Trust,16/10/2020,(81200) Medical Surgical Supplies & Equipment,(id:42492) Evelina Womens Services,365 HEALTHCARE LTD,id:13368494 ,1622.88
Department of Health,Guys and St Thomas NHS Foundation Trust,23/10/2020,(81275) Medical Surgical Supplies & Equipment,(id:42492) Evelina Womens Services,NHS SUPPLY CHAIN (MAIDSTONE),id:13356014 ,   5.93
Department of Health,Guys and St Thomas NHS Foundation Trust,23/10/2020,(81275) Medical Surgical Supplies & Equipment,(id:42491) Evelina Womens Services,NHS SUPPLY CHAIN (MAIDSTONE),id:13336014 , 120.17
Department of Health,Guys and St Thomas NHS Foundation Trust,23/10/2020,(81700) Lab Equipment Purchase,(id:42491) Evelina Womens Services,NHS SUPPLY CHAIN (MAIDSTONE),id:13356014 ,  28.87
Department of Health,Guys and St Thomas NHS Foundation Trust,09/10/2020,(50200) Consultants,(id:42504) Evelina Womens Services,KINGS COLLEGE LONDON:03529700,id:13288314 ,    38149.14
Department of Health,Guys and St Thomas NHS Foundation Trust,23/10/2020,(82800) Bedding & Linen,(id:42331) Evelina Central,NHS SUPPLY CHAIN (MAIDSTONE),id:13356014 ,  74.76
Department of Health,Guys and St Thomas NHS Foundation Trust,23/10/2020,(81700) Lab Equipment Purchase,(id:42331) Evelina Central,NHS SUPPLY CHAIN (MAIDSTONE),id:13356014    ,  30.40
Department of Health,Guys and St Thomas NHS Foundation Trust,23/10/2020,(82000) Provisions & Kitchens,(id:42331) Evelina Central,NHS SUPPLY CHAIN (MAIDSTONE),id:13356014,  72.02
Department of Health,Guys and St Thomas NHS Foundation Trust,02/10/2020,(83400) Office Equipment,(id:2709419) Evelina Central,STATIC SYSTEMS GROUP PLC CIS5,id:13350957  , 540.00
Department of Health,Guys and St Thomas NHS Foundation Trust,29/10/2020,(80010) Drug Costs,(id:2709419) Evelina Central,LABCOLD LTD,id:13399172 , 719.04
Department of Health,Guys and St Thomas NHS Foundation Trust,23/10/2020,(81200) Medical Surgical Supplies & Equipment,(id:42319) Evelina Central,NHS SUPPLY CHAIN (MAIDSTONE),id:13336014    , 163.86
Department of Health,Guys and St Thomas NHS Foundation Trust,23/10/2020,(82800) Bedding & Linen,(id:590444) Evelina Community Services,NHS SUPPLY CHAIN (MAIDSTONE),id:13336014    ,  16.94
Department of Health,Guys and St Thomas NHS Foundation Trust,02/10/2020,(81225) Medical Surgical Supplies & Equipment,(id:590550) Evelina Community Services,R82 UK LTD,id:13354776,1420.80
Department of Health,Guys and St Thomas NHS Foundation Trust,23/10/2020,(82000) Provisions & Kitchens,(id:1831419) Evelina Community Services,NHS SUPPLY CHAIN (MAIDSTONE),id:13336014  ,1394.10
Department of Health,Guys and St Thomas NHS Foundation Trust,13/10/2020,(51262) Dieticians,(id:590412) Evelina Community Services,PRICEWATERHOUSECOOPERS LLP,id:13385020 ,1270.02
Department of Health,Guys and St Thomas NHS Foundation Trust,27/10/2020,(51262) Dieticians,(id:590412) Evelina Community Services,PRICEWATERHOUSECOOPERS LLP,id:13423614 ,1149.24
Department of Health,Guys and St Thomas NHS Foundation Trust,06/10/2020,(51262) Dieticians,(id:590412) Evelina Community Services,PRICEWATERHOUSECOOPERS LLP,id:13362974 ,1011.21
Department of Health,Guys and St Thomas NHS Foundation Trust,29/10/2020,(81200) Medical Surgical Supplies & Equipment,(id:4621420) Evelina Community Services,TARA SIGNS LTD,id:13420161,  55.20
Department of Health,Guys and St Thomas NHS Foundation Trust,23/10/2020,(83400) Office Equipment,(id:590446) Evelina Community Services,NHS SUPPLY CHAIN (MAIDSTONE),id:13356014   ,  31.11
Department of Health,Guys and St Thomas NHS Foundation Trust,09/10/2020,(84657) Establishment,(id:590452) Evelina Community Services,IRON MOUNTAIN (UK) LTD,id:13299070  , 719.37
Department of Health,Guys and St Thomas NHS Foundation Trust,09/10/2020,(89640) Non-Healthcare from NHS Trusts,(id:590447) Evelina Community Services,LEWISHAM AND GREENWICH NHS TRUST,id:13366995,    -9400.00
Department of Health,Guys and St Thomas NHS Foundation Trust,23/10/2020,(82000) Provisions & Kitchens,(id:590539) Evelina Community Services,NHS SUPPLY CHAIN (MAIDSTONE),id:13336014   , 152.82
Department of Health,Guys and St Thomas NHS Foundation Trust,29/10/2020,(81200) Medical Surgical Supplies & Equipment,(id:2356419) Evelina Medicine & Neonatology,VYGON (UK) LTD,id:13385010 , 553.50
Department of Health,Guys and St Thomas NHS Foundation Trust,23/10/2020,(81100) Dressings,(id:2356419) Evelina Medicine & Neonatology,NHS SUPPLY CHAIN (MAIDSTONE),id:13356014, 199.66
Department of Health,Guys and St Thomas NHS Foundation Trust,16/10/2020,(80010) Drug Costs,(id:42349) Evelina Medicine & Neonatology,BAXTER HEALTHCARE LTD,id:13326447   ,9902.64
Department of Health,Guys and St Thomas NHS Foundation Trust,02/10/2020,(81235) Medical Surgical Supplies & Equipment,(id:42349) Evelina Medicine & Neonatology,BOSTON SCIENTIFIC LTD,id:13358357 , 198.72
Department of Health,Guys and St Thomas NHS Foundation Trust,23/10/2020,(81275) Medical Surgical Supplies & Equipment,(id:817420) Evelina Medicine & Neonatology,RADIOMETER LTD,id:13397115  ,1939.02
Department of Health,Guys and St Thomas NHS Foundation Trust,02/10/2020,(50552) Qualified Nursing Staff,(id:2497419) Evelina Medicine & Neonatology,MSI GROUP LTD,id:13354986 , 655.60
Department of Health,Guys and St Thomas NHS Foundation Trust,02/10/2020,(81000) Surgical Appliances,(id:42335) Evelina Medicine & Neonatology,JOHN FLORENCE LTD,id:13352865   , 751.42
Department of Health,Guys and St Thomas NHS Foundation Trust,23/10/2020,(82000) Provisions & Kitchens,(id:42327) Evelina Medicine & Neonatology,NHS SUPPLY CHAIN (MAIDSTONE),id:13336014,  47.30
Department of Health,Guys and St Thomas NHS Foundation Trust,23/10/2020,(82600) Uniforms & Clothing,(id:42327) Evelina Medicine & Neonatology,SQUADRON MEDICAL LTD,id:13331714, 661.38
Department of Health,Guys and St Thomas NHS Foundation Trust,09/10/2020,(50200) Consultants,(id:42327) Evelina Medicine & Neonatology,KINGS COLLEGE LONDON:03529700,id:13288172    ,6652.13
Department of Health,Guys and St Thomas NHS Foundation Trust,09/10/2020,(50200) Consultants,(id:42327) Evelina Medicine & Neonatology,KINGS COLLEGE LONDON:03529700,id:13126354    ,6652.13
Department of Health,Guys and St Thomas NHS Foundation Trust,23/10/2020,(81100) Dressings,(id:42327) Evelina Medicine & Neonatology,NHS SUPPLY CHAIN (MAIDSTONE),id:13336014  , 367.57
Department of Health,Guys and St Thomas NHS Foundation Trust,09/10/2020,(50552) Qualified Nursing Staff,(id:42327) Evelina Medicine & Neonatology,CONTINENTAL NURSE LTD,id:13373202,2756.33
Department of Health,Guys and St Thomas NHS Foundation Trust,23/10/2020,(81225) Medical Surgical Supplies & Equipment,(id:42327) Evelina Medicine & Neonatology,NHS SUPPLY CHAIN (MAIDSTONE),id:13336014    ,  38.58
Department of Health,Guys and St Thomas NHS Foundation Trust,23/10/2020,(81700) Lab Equipment Purchase,(id:42327) Evelina Medicine & Neonatology,NHS SUPPLY CHAIN (MAIDSTONE),id:13336014    ,  55.95
Department of Health,Guys and St Thomas NHS Foundation Trust,29/10/2020,(80010) Drug Costs,(id:1196420) Evelina Medicine & Neonatology,INSULET INTERNATIONAL LTD,id:13421239  , 706.32
Department of Health,Guys and St Thomas NHS Foundation Trust,23/10/2020,(80010) Drug Costs,(id:1196420) Evelina Medicine & Neonatology,MEDTRONIC LTD,id:12803237    , 567.00
Department of Health,Guys and St Thomas NHS Foundation Trust,23/10/2020,(80010) Drug Costs,(id:1196420) Evelina Medicine & Neonatology,MEDTRONIC LTD,id:13223854    , 567.00
Department of Health,Guys and St Thomas NHS Foundation Trust,23/10/2020,(80010) Drug Costs,(id:1196420) Evelina Medicine & Neonatology,MEDTRONIC LTD,id:12748577    , 602.08
Department of Health,Guys and St Thomas NHS Foundation Trust,23/10/2020,(80010) Drug Costs,(id:1196420) Evelina Medicine & Neonatology,DEXCOM INTERNATIONAL LTD,id:13394110   , 793.50
Department of Health,Guys and St Thomas NHS Foundation Trust,23/10/2020,(80010) Drug Costs,(id:1196420) Evelina Medicine & Neonatology,DEXCOM INTERNATIONAL LTD,id:13394111   , 793.50
Department of Health,Guys and St Thomas NHS Foundation Trust,16/10/2020,(80010) Drug Costs,(id:1196420) Evelina Medicine & Neonatology,INSULET INTERNATIONAL LTD,id:13364047  , 712.08
Department of Health,Guys and St Thomas NHS Foundation Trust,16/10/2020,(80010) Drug Costs,(id:1196420) Evelina Medicine & Neonatology,INSULET INTERNATIONAL LTD,id:13364034  , 712.08
Department of Health,Guys and St Thomas NHS Foundation Trust,09/10/2020,(50552) Qualified Nursing Staff,(id:2496419) Evelina Medicine & Neonatology,CONTINENTAL NURSE LTD,id:13373286   ,2379.12
Department of Health,Guys and St Thomas NHS Foundation Trust,23/10/2020,(50552) Qualified Nursing Staff,(id:2496419) Evelina Medicine & Neonatology,CONTINENTAL NURSE LTD,id:13414479   ,2016.10
Department of Health,Guys and St Thomas NHS Foundation Trust,23/10/2020,(81200) Medical Surgical Supplies & Equipment,(id:41874) Evelina Medicine & Neonatology,NHS SUPPLY CHAIN (MAIDSTONE),id:13356014    ,  23.28
Department of Health,Guys and St Thomas NHS Foundation Trust,23/10/2020,(80100) Drug Costs,(id:42326) Evelina Medicine & Neonatology,BOC LTD :02107500,id:13348449  ,4585.00
Department of Health,Guys and St Thomas NHS Foundation Trust,16/10/2020,(89600) Non-Healthcare from other NHS bodies,(id:42326) Evelina Medicine & Neonatology,NHS BLOOD AND TRANSPLANT,id:13189754    ,3285.00
Department of Health,Guys and St Thomas NHS Foundation Trust,23/10/2020,(81700) Lab Equipment Purchase,(id:42323) Evelina Medicine & Neonatology,NHS SUPPLY CHAIN (MAIDSTONE),id:13336014    ,   7.42
Department of Health,Guys and St Thomas NHS Foundation Trust,23/10/2020,(81200) Medical Surgical Supplies & Equipment,(id:42315) Evelina Medicine & Neonatology,NHS SUPPLY CHAIN (MAIDSTONE),id:13356014    , 374.55
Department of Health,Guys and St Thomas NHS Foundation Trust,09/10/2020,(50552) Qualified Nursing Staff,(id:2499419) Evelina Surgery Theatres & PICU,CONTINENTAL NURSE LTD,id:13373204  , 317.86
Department of Health,Guys and St Thomas NHS Foundation Trust,29/10/2020,(50200) Consultants,(id:42312) Evelina Surgery Theatres & PICU,KINGS COLLEGE LONDON:03529700,id:13417618   ,1686.37
Department of Health,Guys and St Thomas NHS Foundation Trust,02/10/2020,(81200) Medical Surgical Supplies & Equipment,(id:42312) Evelina Surgery Theatres & PICU,BOSTON SCIENTIFIC LTD,id:13358130, 901.20
Department of Health,Guys and St Thomas NHS Foundation Trust,02/10/2020,(81200) Medical Surgical Supplies & Equipment,(id:42312) Evelina Surgery Theatres & PICU,SQUADRON MEDICAL LTD,id:13339165 , 898.01
Department of Health,Guys and St Thomas NHS Foundation Trust,23/10/2020,(81200) Medical Surgical Supplies & Equipment,(id:42312) Evelina Surgery Theatres & PICU,CASMED INTERNATIONAL LTD,id:13362954  , 603.07
Department of Health,Guys and St Thomas NHS Foundation Trust,09/10/2020,(81200) Medical Surgical Supplies & Equipment,(id:42312) Evelina Surgery Theatres & PICU,CARDIO LOGIC LTD,id:13367974,3802.20
Department of Health,Guys and St Thomas NHS Foundation Trust,23/10/2020,(81200) Medical Surgical Supplies & Equipment,(id:42312) Evelina Surgery Theatres & PICU,COOK UK LTD,id:13337278, 372.00
Department of Health,Guys and St Thomas NHS Foundation Trust,09/10/2020,(81280) Medical Surgical Supplies & Equipment,(id:42312) Evelina Surgery Theatres & PICU,EDWARDS LIFESCIENCES LTD,id:13370614  ,    25530.00
Department of Health,Guys and St Thomas NHS Foundation Trust,02/10/2020,(81235) Medical Surgical Supplies & Equipment,(id:42312) Evelina Surgery Theatres & PICU,BOSTON SCIENTIFIC LTD,id:13358130, 100.80
Department of Health,Guys and St Thomas NHS Foundation Trust,23/10/2020,(81230) Medical Surgical Supplies & Equipment,(id:42312) Evelina Surgery Theatres & PICU,COOK UK LTD,id:13339254, 798.00
Department of Health,Guys and St Thomas NHS Foundation Trust,23/10/2020,(81100) Dressings,(id:42351) Evelina Surgery Theatres & PICU,JEWEL MANAGEMENT LTD T/A GENERAL MEDICAL,id:13408234    , 785.94
Department of Health,Guys and St Thomas NHS Foundation Trust,23/10/2020,(82800) Bedding & Linen,(id:41914) Evelina Surgery Theatres & PICU,NHS SUPPLY CHAIN (MAIDSTONE),id:13336014, 143.71
Department of Health,Guys and St Thomas NHS Foundation Trust,16/10/2020,(81200) Medical Surgical Supplies & Equipment,(id:41914) Evelina Surgery Theatres & PICU,SQUADRON MEDICAL LTD,id:13355368 ,   7.69
Department of Health,Guys and St Thomas NHS Foundation Trust,23/10/2020,(50562) Qualified Nursing Staff,(id:41914) Evelina Surgery Theatres & PICU,MEDICSPRO LTD,id:13414295  ,1134.59
Department of Health,Guys and St Thomas NHS Foundation Trust,23/10/2020,(50562) Qualified Nursing Staff,(id:41914) Evelina Surgery Theatres & PICU,YOUR WORLD RECRUITMENT LIMITED(YOUR WORLD HEALTHCARE),id:13391638  ,1326.00
Department of Health,Guys and St Thomas NHS Foundation Trust,16/10/2020,(50562) Qualified Nursing Staff,(id:41914) Evelina Surgery Theatres & PICU,PULSE HEALTHCARE LIMITED,id:13391543 , 951.06
Department of Health,Guys and St Thomas NHS Foundation Trust,16/10/2020,(50562) Qualified Nursing Staff,(id:41914) Evelina Surgery Theatres & PICU,MEDICSPRO LTD,id:13391567  , 859.28
Department of Health,Guys and St Thomas NHS Foundation Trust,02/10/2020,(50562) Qualified Nursing Staff,(id:41914) Evelina Surgery Theatres & PICU,MEDICSPRO LTD,id:13354942  , 533.92
Department of Health,Guys and St Thomas NHS Foundation Trust,23/10/2020,(81100) Dressings,(id:41914) Evelina Surgery Theatres & PICU,NHS SUPPLY CHAIN (MAIDSTONE),id:13336014 , 921.93
Department of Health,Guys and St Thomas NHS Foundation Trust,23/10/2020,(81100) Dressings,(id:41914) Evelina Surgery Theatres & PICU,NHS SUPPLY CHAIN (MAIDSTONE),id:13356014 , 443.82
Department of Health,Guys and St Thomas NHS Foundation Trust,23/10/2020,(81100) Dressings,(id:41914) Evelina Surgery Theatres & PICU,ELIS UK LIMITED,id:13346004    , 564.00
Department of Health,Guys and St Thomas NHS Foundation Trust,23/10/2020,(81100) Dressings,(id:41914) Evelina Surgery Theatres & PICU,ELIS UK LIMITED,id:13361666    , 696.45
Department of Health,Guys and St Thomas NHS Foundation Trust,23/10/2020,(81100) Dressings,(id:41914) Evelina Surgery Theatres & PICU,ELIS UK LIMITED,id:13366176    , 552.35
Department of Health,Guys and St Thomas NHS Foundation Trust,23/10/2020,(50552) Qualified Nursing Staff,(id:41914) Evelina Surgery Theatres & PICU,CONTINENTAL NURSE LTD,id:13415711    ,1532.73
Department of Health,Guys and St Thomas NHS Foundation Trust,23/10/2020,(81200) Medical Surgical Supplies & Equipment,(id:41910) Evelina Surgery Theatres & PICU,PENTLAND MEDICAL LTD,id:13382094 ,1692.00
Department of Health,Guys and St Thomas NHS Foundation Trust,16/10/2020,(81200) Medical Surgical Supplies & Equipment,(id:41910) Evelina Surgery Theatres & PICU,SQUADRON MEDICAL LTD,id:13258946 , 213.70
Department of Health,Guys and St Thomas NHS Foundation Trust,02/10/2020,(81200) Medical Surgical Supplies & Equipment,(id:4622419) Evelina Surgery Theatres & PICU,STRYKER UK LTD,id:13344815,-921.60
Department of Health,Guys and St Thomas NHS Foundation Trust,23/10/2020,(81200) Medical Surgical Supplies & Equipment,(id:1196421) Evelina Surgery Theatres & PICU,SQUADRON MEDICAL LTD,id:13337288    , 387.46
Department of Health,Guys and St Thomas NHS Foundation Trust,29/10/2020,(81200) Medical Surgical Supplies & Equipment,(id:1196421) Evelina Surgery Theatres & PICU,NUVASIVE UK LTD,id:13417554    ,9618.60
Department of Health,Guys and St Thomas NHS Foundation Trust,29/10/2020,(81200) Medical Surgical Supplies & Equipment,(id:1196421) Evelina Surgery Theatres & PICU,NUVASIVE UK LTD,id:13402024    ,1264.80
Department of Health,Guys and St Thomas NHS Foundation Trust,02/10/2020,(81200) Medical Surgical Supplies & Equipment,(id:1196421) Evelina Surgery Theatres & PICU,SQUADRON MEDICAL LTD,id:13338978    , 387.46
Department of Health,Guys and St Thomas NHS Foundation Trust,02/10/2020,(81000) Surgical Appliances,(id:431409) Evelina Surgery Theatres & PICU,JOHN FLORENCE LTD,id:13353454 , 918.66
Department of Health,Guys and St Thomas NHS Foundation Trust,23/10/2020,(81200) Medical Surgical Supplies & Equipment,(id:468410) Evelina Surgery Theatres & PICU,NHS SUPPLY CHAIN (MAIDSTONE),id:13336014  ,  71.79
Department of Health,Guys and St Thomas NHS Foundation Trust,29/10/2020,(84656) Establishment,(id:468409) Evelina Surgery Theatres & PICU,DICT8 LIMITED,id:13413189 ,1142.04
Department of Health,Guys and St Thomas NHS Foundation Trust,29/10/2020,(81200) Medical Surgical Supplies & Equipment,(id:42344) Evelina Surgery Theatres & PICU,SMITHS MEDICAL INTERNATIONAL LTD:69519000,id:13376978, 576.00
Department of Health,Guys and St Thomas NHS Foundation Trust,23/10/2020,(82000) Provisions & Kitchens,(id:42339) Evelina Surgery Theatres & PICU,NHS SUPPLY CHAIN (MAIDSTONE),id:13336014    , 168.71
Department of Health,Guys and St Thomas NHS Foundation Trust,23/10/2020,(82000) Provisions & Kitchens,(id:42339) Evelina Surgery Theatres & PICU,NHS SUPPLY CHAIN (MAIDSTONE),id:13356014    , 118.90
Department of Health,Guys and St Thomas NHS Foundation Trust,16/10/2020,(80100) Drug Costs,(id:42339) Evelina Surgery Theatres & PICU,BOC LTD :02107500,id:13361962 ,3848.94
Department of Health,Guys and St Thomas NHS Foundation Trust,02/10/2020,(81200) Medical Surgical Supplies & Equipment,(id:42339) Evelina Surgery Theatres & PICU,AQUILANT CRITICAL CARE,id:13350440    , 792.00
Department of Health,Guys and St Thomas NHS Foundation Trust,16/10/2020,(81200) Medical Surgical Supplies & Equipment,(id:42339) Evelina Surgery Theatres & PICU,INTERSURGICAL LTD,id:13389754    , 630.00
Department of Health,Guys and St Thomas NHS Foundation Trust,23/10/2020,(83400) Office Equipment,(id:42339) Evelina Surgery Theatres & PICU,NHS SUPPLY CHAIN (MAIDSTONE),id:13336014    , 772.78
Department of Health,Guys and St Thomas NHS Foundation Trust,23/10/2020,(81225) Medical Surgical Supplies & Equipment,(id:42339) Evelina Surgery Theatres & PICU,NHS SUPPLY CHAIN (MAIDSTONE),id:13336014   ,  73.68
Department of Health,Guys and St Thomas NHS Foundation Trust,29/10/2020,(50200) Consultants,(id:2626419) Evelina R&D and Charity,KINGS COLLEGE LONDON:03529700,id:13416294    ,4034.63
Department of Health,Guys and St Thomas NHS Foundation Trust,16/10/2020,(80010) Drug Costs,(id:375410) Evelina R&D and Charity,CVENT EUROPE LTD,id:13393257    ,2583.54
Department of Health,Guys and St Thomas NHS Foundation Trust,02/10/2020,(84501) Establishment,(id:43176) Evelina R&D and Charity,CDP  PRINT MANAGEMENT,id:13351202  , 487.00
Department of Health,Guys and St Thomas NHS Foundation Trust,23/10/2020,(50200) Consultants,(id:2634419) Evelina R&D and Charity,KING'S COLLEGE HOSPITAL NHS FOUNDATION TRUST,id:13410594    ,1917.07
Department of Health,Guys and St Thomas NHS Foundation Trust,23/10/2020,(89270) Establishment,(id:2634419) Evelina R&D and Charity,DR STEPHANIE LAMB,id:13402652    ,3200.00
Department of Health,Guys and St Thomas NHS Foundation Trust,16/10/2020,(81000) Surgical Appliances,(id:41830) Gastrointestinal Medicine & Surgery,TALAR MADE ORTHOTICS LTD,id:13389055 ,  29.40
Department of Health,Guys and St Thomas NHS Foundation Trust,23/10/2020,(81200) Medical Surgical Supplies & Equipment,(id:41958) Gastrointestinal Medicine & Surgery,NHS SUPPLY CHAIN (MAIDSTONE),id:13336014    , 565.26
Department of Health,Guys and St Thomas NHS Foundation Trust,23/10/2020,(50552) Qualified Nursing Staff,(id:41958) Gastrointestinal Medicine & Surgery,CONTINENTAL NURSE LTD,id:13414482,2237.84
Department of Health,Guys and St Thomas NHS Foundation Trust,23/10/2020,(81225) Medical Surgical Supplies & Equipment,(id:41958) Gastrointestinal Medicine & Surgery,NHS SUPPLY CHAIN (MAIDSTONE),id:13336014    ,  24.24
Department of Health,Guys and St Thomas NHS Foundation Trust,23/10/2020,(82700) Uniforms & Clothing,(id:41954) Gastrointestinal Medicine & Surgery,NHS SUPPLY CHAIN (MAIDSTONE),id:13356014  ,  52.97
Department of Health,Guys and St Thomas NHS Foundation Trust,23/10/2020,(83400) Office Equipment,(id:41954) Gastrointestinal Medicine & Surgery,NHS SUPPLY CHAIN (MAIDSTONE),id:13356014,  39.26
Department of Health,Guys and St Thomas NHS Foundation Trust,29/10/2020,(50522) Unqualified Nursing Staff,(id:41954) Gastrointestinal Medicine & Surgery,MSI GROUP LTD,id:13427373 , 208.27
Department of Health,Guys and St Thomas NHS Foundation Trust,02/10/2020,(50522) Unqualified Nursing Staff,(id:41954) Gastrointestinal Medicine & Surgery,MSI GROUP LTD,id:13354830 , 208.28
Department of Health,Guys and St Thomas NHS Foundation Trust,23/10/2020,(50552) Qualified Nursing Staff,(id:41954) Gastrointestinal Medicine & Surgery,CONTINENTAL NURSE LTD,id:13414537,1937.64
Department of Health,Guys and St Thomas NHS Foundation Trust,23/10/2020,(81100) Dressings,(id:41951) Gastrointestinal Medicine & Surgery,NHS SUPPLY CHAIN (MAIDSTONE),id:13356014  ,   1.50
Department of Health,Guys and St Thomas NHS Foundation Trust,23/10/2020,(81100) Dressings,(id:41949) Gastrointestinal Medicine & Surgery,NHS SUPPLY CHAIN (MAIDSTONE),id:13336014  ,1465.10
Department of Health,Guys and St Thomas NHS Foundation Trust,02/10/2020,(81200) Medical Surgical Supplies & Equipment,(id:41949) Gastrointestinal Medicine & Surgery,SQUADRON MEDICAL LTD,id:13337157  ,2959.67
Department of Health,Guys and St Thomas NHS Foundation Trust,02/10/2020,(81200) Medical Surgical Supplies & Equipment,(id:41949) Gastrointestinal Medicine & Surgery,SQUADRON MEDICAL LTD,id:13331944  ,1304.78
Department of Health,Guys and St Thomas NHS Foundation Trust,02/10/2020,(81200) Medical Surgical Supplies & Equipment,(id:41949) Gastrointestinal Medicine & Surgery,SQUADRON MEDICAL LTD,id:13208917  , 507.47
Department of Health,Guys and St Thomas NHS Foundation Trust,02/10/2020,(81200) Medical Surgical Supplies & Equipment,(id:41949) Gastrointestinal Medicine & Surgery,MEDTRONIC LTD,id:13336933    , 797.04
Department of Health,Guys and St Thomas NHS Foundation Trust,29/10/2020,(81200) Medical Surgical Supplies & Equipment,(id:41949) Gastrointestinal Medicine & Surgery,MEDTRONIC LTD,id:13387416    ,2152.80
Department of Health,Guys and St Thomas NHS Foundation Trust,29/10/2020,(81200) Medical Surgical Supplies & Equipment,(id:41949) Gastrointestinal Medicine & Surgery,MEDTRONIC LTD,id:13378623    ,5417.71
Department of Health,Guys and St Thomas NHS Foundation Trust,23/10/2020,(81200) Medical Surgical Supplies & Equipment,(id:41949) Gastrointestinal Medicine & Surgery,SQUADRON MEDICAL LTD,id:13332068  , 373.27
Department of Health,Guys and St Thomas NHS Foundation Trust,23/10/2020,(81200) Medical Surgical Supplies & Equipment,(id:41949) Gastrointestinal Medicine & Surgery,COOK UK LTD,id:13357170 ,1488.00
Department of Health,Guys and St Thomas NHS Foundation Trust,16/10/2020,(81200) Medical Surgical Supplies & Equipment,(id:41949) Gastrointestinal Medicine & Surgery,SQUADRON MEDICAL LTD,id:13355514  ,2792.15
Department of Health,Guys and St Thomas NHS Foundation Trust,02/10/2020,(50522) Unqualified Nursing Staff,(id:2367419) Gastrointestinal Medicine & Surgery,MSI GROUP LTD,id:13354853    , 263.39
Department of Health,Guys and St Thomas NHS Foundation Trust,23/10/2020,(82800) Bedding & Linen,(id:2367419) Gastrointestinal Medicine & Surgery,NHS SUPPLY CHAIN (MAIDSTONE),id:13356014    ,  85.71
Department of Health,Guys and St Thomas NHS Foundation Trust,23/10/2020,(82800) Bedding & Linen,(id:2367419) Gastrointestinal Medicine & Surgery,NHS SUPPLY CHAIN (MAIDSTONE),id:13336014    ,  60.69
Department of Health,Guys and St Thomas NHS Foundation Trust,23/10/2020,(81100) Dressings,(id:2367419) Gastrointestinal Medicine & Surgery,NHS SUPPLY CHAIN (MAIDSTONE),id:13336014,  85.74
Department of Health,Guys and St Thomas NHS Foundation Trust,23/10/2020,(81200) Medical Surgical Supplies & Equipment,(id:41942) Gastrointestinal Medicine & Surgery,NHS SUPPLY CHAIN (MAIDSTONE),id:13356014    ,  55.20
Department of Health,Guys and St Thomas NHS Foundation Trust,23/10/2020,(81700) Lab Equipment Purchase,(id:41942) Gastrointestinal Medicine & Surgery,NHS SUPPLY CHAIN (MAIDSTONE),id:13336014    ,  32.18
Department of Health,Guys and St Thomas NHS Foundation Trust,23/10/2020,(82000) Provisions & Kitchens,(id:41917) Gastrointestinal Medicine & Surgery,NHS SUPPLY CHAIN (MAIDSTONE),id:13336014, 127.30
Department of Health,Guys and St Thomas NHS Foundation Trust,02/10/2020,(81235) Medical Surgical Supplies & Equipment,(id:41917) Gastrointestinal Medicine & Surgery,BOSTON SCIENTIFIC LTD,id:13358326 , 630.62
Department of Health,Guys and St Thomas NHS Foundation Trust,29/10/2020,(81235) Medical Surgical Supplies & Equipment,(id:41917) Gastrointestinal Medicine & Surgery,BOSTON SCIENTIFIC LTD,id:13378619 ,1891.87
Department of Health,Guys and St Thomas NHS Foundation Trust,23/10/2020,(81235) Medical Surgical Supplies & Equipment,(id:41917) Gastrointestinal Medicine & Surgery,BOSTON SCIENTIFIC LTD,id:13364106 , 966.00
Department of Health,Guys and St Thomas NHS Foundation Trust,02/10/2020,(81200) Medical Surgical Supplies & Equipment,(id:41917) Gastrointestinal Medicine & Surgery,BOSTON SCIENTIFIC LTD,id:13359099 ,4244.42
Department of Health,Guys and St Thomas NHS Foundation Trust,02/10/2020,(81200) Medical Surgical Supplies & Equipment,(id:41917) Gastrointestinal Medicine & Surgery,BOSTON SCIENTIFIC LTD,id:13357358 ,2195.86
Department of Health,Guys and St Thomas NHS Foundation Trust,23/10/2020,(81200) Medical Surgical Supplies & Equipment,(id:41917) Gastrointestinal Medicine & Surgery,SYNECTICS MEDICAL LTD (SYNMED),id:13413468  ,1490.40
Department of Health,Guys and St Thomas NHS Foundation Trust,29/10/2020,(81200) Medical Surgical Supplies & Equipment,(id:41917) Gastrointestinal Medicine & Surgery,DIAGMED HEALTHCARE LTD,id:13420186, 978.00
Department of Health,Guys and St Thomas NHS Foundation Trust,29/10/2020,(81200) Medical Surgical Supplies & Equipment,(id:41917) Gastrointestinal Medicine & Surgery,AAH PHARMACEUTICALS LTD,id:13409534    ,1395.36
Department of Health,Guys and St Thomas NHS Foundation Trust,29/10/2020,(81200) Medical Surgical Supplies & Equipment,(id:41917) Gastrointestinal Medicine & Surgery,BOSTON SCIENTIFIC LTD,id:13387384 ,3480.00
Department of Health,Guys and St Thomas NHS Foundation Trust,09/10/2020,(81200) Medical Surgical Supplies & Equipment,(id:41917) Gastrointestinal Medicine & Surgery,BOSTON SCIENTIFIC LTD,id:13359129 , 900.86
Department of Health,Guys and St Thomas NHS Foundation Trust,16/10/2020,(81200) Medical Surgical Supplies & Equipment,(id:41917) Gastrointestinal Medicine & Surgery,BOSTON SCIENTIFIC LTD,id:13386860 ,2958.05
Department of Health,Guys and St Thomas NHS Foundation Trust,16/10/2020,(81200) Medical Surgical Supplies & Equipment,(id:41917) Gastrointestinal Medicine & Surgery,BOSTON SCIENTIFIC LTD,id:13383863 , 788.26
Department of Health,Guys and St Thomas NHS Foundation Trust,16/10/2020,(81200) Medical Surgical Supplies & Equipment,(id:41917) Gastrointestinal Medicine & Surgery,BOSTON SCIENTIFIC LTD,id:13382603 ,1124.52
Department of Health,Guys and St Thomas NHS Foundation Trust,16/10/2020,(81200) Medical Surgical Supplies & Equipment,(id:41917) Gastrointestinal Medicine & Surgery,BOSTON SCIENTIFIC LTD,id:13382581 ,3480.00
Department of Health,Guys and St Thomas NHS Foundation Trust,02/10/2020,(81400) Medical Surgical Supplies & Equipment,(id:41917) Gastrointestinal Medicine & Surgery,ANETIC AID LTD,id:13346146   ,1711.19
Department of Health,Guys and St Thomas NHS Foundation Trust,23/10/2020,(81700) Lab Equipment Purchase,(id:41917) Gastrointestinal Medicine & Surgery,NHS SUPPLY CHAIN (MAIDSTONE),id:13356014    , 128.11
Department of Health,Guys and St Thomas NHS Foundation Trust,23/10/2020,(81255) Medical Surgical Supplies & Equipment,(id:41917) Gastrointestinal Medicine & Surgery,NHS SUPPLY CHAIN (MAIDSTONE),id:13336014    , 303.60
Department of Health,Guys and St Thomas NHS Foundation Trust,09/10/2020,(50200) Consultants,(id:42282) Cancer Strategy,KING'S COLLEGE HOSPITAL NHS FOUNDATION TRUST,id:13313125    ,    11622.01
Department of Health,Guys and St Thomas NHS Foundation Trust,05/10/2020,(89440) Research and Development,(id:4049419) Cardiovascular Services,OHIOHEALTH CORPORATION,id:13359540   ,1210.52
Department of Health,Guys and St Thomas NHS Foundation Trust,23/10/2020,(81100) Dressings,(id:780420) Cardiovascular Services,NHS SUPPLY CHAIN (MAIDSTONE),id:13336014   , 672.22
Department of Health,Guys and St Thomas NHS Foundation Trust,23/10/2020,(82000) Provisions & Kitchens,(id:780420) Cardiovascular Services,NHS SUPPLY CHAIN (MAIDSTONE),id:13356014 , 423.45
Department of Health,Guys and St Thomas NHS Foundation Trust,09/10/2020,(50552) Qualified Nursing Staff,(id:780420) Cardiovascular Services,CARE PROVIDERS HEALTHCARE,id:13373384  , 679.88
Department of Health,Guys and St Thomas NHS Foundation Trust,23/10/2020,(50522) Unqualified Nursing Staff,(id:780420) Cardiovascular Services,MSI GROUP LTD,id:13414425  , 254.59
Department of Health,Guys and St Thomas NHS Foundation Trust,29/10/2020,(81200) Medical Surgical Supplies & Equipment,(id:639421) Cardiovascular Services,BENTLEY INNOMED GMBH,id:13419021   ,1020.00
Department of Health,Guys and St Thomas NHS Foundation Trust,29/10/2020,(81200) Medical Surgical Supplies & Equipment,(id:639421) Cardiovascular Services,COOK UK LTD,id:13387641  ,7200.00
Department of Health,Guys and St Thomas NHS Foundation Trust,02/10/2020,(81200) Medical Surgical Supplies & Equipment,(id:639421) Cardiovascular Services,ABBOTT MEDICAL UK LTD,id:13342587  ,2160.00
Department of Health,Guys and St Thomas NHS Foundation Trust,16/10/2020,(81200) Medical Surgical Supplies & Equipment,(id:639421) Cardiovascular Services,BENTLEY INNOMED GMBH,id:13363575   ,1020.00
Department of Health,Guys and St Thomas NHS Foundation Trust,09/10/2020,(81235) Medical Surgical Supplies & Equipment,(id:639421) Cardiovascular Services,BOSTON SCIENTIFIC LTD,id:13358977  , 540.00
Department of Health,Guys and St Thomas NHS Foundation Trust,23/10/2020,(82000) Provisions & Kitchens,(id:41953) Cardiovascular Services,NHS SUPPLY CHAIN (MAIDSTONE),id:13336014  ,  50.70
Department of Health,Guys and St Thomas NHS Foundation Trust,23/10/2020,(82800) Bedding & Linen,(id:41953) Cardiovascular Services,NHS SUPPLY CHAIN (MAIDSTONE),id:13356014   , 133.39
Department of Health,Guys and St Thomas NHS Foundation Trust,23/10/2020,(81700) Lab Equipment Purchase,(id:41953) Cardiovascular Services,NHS SUPPLY CHAIN (MAIDSTONE),id:13336014 ,   3.14
Department of Health,Guys and St Thomas NHS Foundation Trust,23/10/2020,(81700) Lab Equipment Purchase,(id:41953) Cardiovascular Services,NHS SUPPLY CHAIN (MAIDSTONE),id:13356014 ,   6.38
Department of Health,Guys and St Thomas NHS Foundation Trust,23/10/2020,(82000) Provisions & Kitchens,(id:41952) Cardiovascular Services,NHS SUPPLY CHAIN (MAIDSTONE),id:13336014  ,   4.98
Department of Health,Guys and St Thomas NHS Foundation Trust,23/10/2020,(82700) Uniforms & Clothing,(id:41952) Cardiovascular Services,NHS SUPPLY CHAIN (MAIDSTONE),id:13336014    ,  31.68
Department of Health,Guys and St Thomas NHS Foundation Trust,23/10/2020,(81200) Medical Surgical Supplies & Equipment,(id:41952) Cardiovascular Services,NHS SUPPLY CHAIN (MAIDSTONE),id:13356014 , 261.27
Department of Health,Guys and St Thomas NHS Foundation Trust,09/10/2020,(50200) Consultants,(id:41950) Cardiovascular Services,KINGS COLLEGE LONDON:03529700,id:13204016 ,    23069.50
Department of Health,Guys and St Thomas NHS Foundation Trust,23/10/2020,(81200) Medical Surgical Supplies & Equipment,(id:41950) Cardiovascular Services,COOK UK LTD,id:13357173   , 792.00
Department of Health,Guys and St Thomas NHS Foundation Trust,23/10/2020,(81200) Medical Surgical Supplies & Equipment,(id:41950) Cardiovascular Services,COOK UK LTD,id:13350196   ,1491.60
Department of Health,Guys and St Thomas NHS Foundation Trust,02/10/2020,(81200) Medical Surgical Supplies & Equipment,(id:41950) Cardiovascular Services,MERIT MEDICAL UK LTD,id:13094684    , 570.60
Department of Health,Guys and St Thomas NHS Foundation Trust,02/10/2020,(81000) Surgical Appliances,(id:41950) Cardiovascular Services,TALAR MADE ORTHOTICS LTD,id:13357000   ,   8.50
Department of Health,Guys and St Thomas NHS Foundation Trust,16/10/2020,(81000) Surgical Appliances,(id:41950) Cardiovascular Services,BSN MEDICAL LTD,id:13385074  , 701.14
Department of Health,Guys and St Thomas NHS Foundation Trust,23/10/2020,(81225) Medical Surgical Supplies & Equipment,(id:41950) Cardiovascular Services,NHS SUPPLY CHAIN (MAIDSTONE),id:13356014 ,  29.09
Department of Health,Guys and St Thomas NHS Foundation Trust,23/10/2020,(81100) Dressings,(id:41948) Cardiovascular Services,NHS SUPPLY CHAIN (MAIDSTONE),id:13356014    ,   9.90
Department of Health,Guys and St Thomas NHS Foundation Trust,23/10/2020,(81200) Medical Surgical Supplies & Equipment,(id:41948) Cardiovascular Services,VASCUTEK LTD,id:13384361  , 642.60
Department of Health,Guys and St Thomas NHS Foundation Trust,23/10/2020,(83400) Office Equipment,(id:42305) Cardiovascular Services,NHS SUPPLY CHAIN (MAIDSTONE),id:13336014  ,  28.94
Department of Health,Guys and St Thomas NHS Foundation Trust,09/10/2020,(80010) Drug Costs,(id:42305) Cardiovascular Services,KINGS COLLEGE LONDON:03529700,id:13223594  ,    19666.04
Department of Health,Guys and St Thomas NHS Foundation Trust,16/10/2020,(84656) Establishment,(id:42305) Cardiovascular Services,DICT8 LIMITED,id:13367160, 594.72
Department of Health,Guys and St Thomas NHS Foundation Trust,23/10/2020,(81200) Medical Surgical Supplies & Equipment,(id:3923419) Cardiovascular Services,NHS SUPPLY CHAIN (MAIDSTONE),id:13356014    , 577.92
Department of Health,Guys and St Thomas NHS Foundation Trust,16/10/2020,(81400) Medical Surgical Supplies & Equipment,(id:1243420) Cardiovascular Services,SCHILLER UK LTD,id:13376577  , 670.00
Department of Health,Guys and St Thomas NHS Foundation Trust,29/10/2020,(81200) Medical Surgical Supplies & Equipment,(id:1243419) Cardiovascular Services,WSR MEDICAL SOLUTIONS T/A ROTHBAND,id:13418990   ,  18.00
Department of Health,Guys and St Thomas NHS Foundation Trust,27/10/2020,(52072) Radiographers,(id:1243419) Cardiovascular Services,PRICEWATERHOUSECOOPERS LLP,id:13423614, 628.42
Department of Health,Guys and St Thomas NHS Foundation Trust,16/10/2020,(50200) Consultants,(id:42304) Cardiovascular Services,SURREY AND SUSSEX HEALTHCARE NHS TRUST,id:13363596  ,1154.02
Department of Health,Guys and St Thomas NHS Foundation Trust,21/10/2020,(54072) Technical Officers,(id:42303) Cardiovascular Services,PRICEWATERHOUSECOOPERS LLP,id:13406958  ,3061.35
Department of Health,Guys and St Thomas NHS Foundation Trust,13/10/2020,(51842) Physiotherapists,(id:42303) Cardiovascular Services,PRICEWATERHOUSECOOPERS LLP,id:13385020    ,1646.45
Department of Health,Guys and St Thomas NHS Foundation Trust,16/10/2020,(83400) Office Equipment,(id:42302) Cardiovascular Services,EDWARDS LIFESCIENCES LTD,id:13394744 ,    25530.00
Department of Health,Guys and St Thomas NHS Foundation Trust,16/10/2020,(83400) Office Equipment,(id:42302) Cardiovascular Services,EDWARDS LIFESCIENCES LTD,id:13394760 ,    25530.00
Department of Health,Guys and St Thomas NHS Foundation Trust,09/10/2020,(83400) Office Equipment,(id:42302) Cardiovascular Services,EDWARDS LIFESCIENCES LTD,id:13367419 ,    25530.00
Department of Health,Guys and St Thomas NHS Foundation Trust,23/10/2020,(83400) Office Equipment,(id:42302) Cardiovascular Services,EDWARDS LIFESCIENCES LTD,id:13412196 ,    25530.00
Department of Health,Guys and St Thomas NHS Foundation Trust,23/10/2020,(83400) Office Equipment,(id:42302) Cardiovascular Services,EDWARDS LIFESCIENCES LTD,id:13412457 ,    25530.00
Department of Health,Guys and St Thomas NHS Foundation Trust,23/10/2020,(83400) Office Equipment,(id:42302) Cardiovascular Services,EDWARDS LIFESCIENCES LTD,id:13412436 ,    25530.00
Department of Health,Guys and St Thomas NHS Foundation Trust,23/10/2020,(83400) Office Equipment,(id:42302) Cardiovascular Services,EDWARDS LIFESCIENCES LTD,id:13412275 ,    25530.00
Department of Health,Guys and St Thomas NHS Foundation Trust,23/10/2020,(83400) Office Equipment,(id:42302) Cardiovascular Services,EDWARDS LIFESCIENCES LTD,id:13412134 ,    25530.00
Department of Health,Guys and St Thomas NHS Foundation Trust,23/10/2020,(83400) Office Equipment,(id:42302) Cardiovascular Services,EDWARDS LIFESCIENCES LTD,id:13412130 ,    25530.00
Department of Health,Guys and St Thomas NHS Foundation Trust,23/10/2020,(82800) Bedding & Linen,(id:42302) Cardiovascular Services,NHS SUPPLY CHAIN (MAIDSTONE),id:13356014   , 116.60
Department of Health,Guys and St Thomas NHS Foundation Trust,02/10/2020,(81200) Medical Surgical Supplies & Equipment,(id:42302) Cardiovascular Services,BOSTON SCIENTIFIC LTD,id:13358339   ,1152.00
Department of Health,Guys and St Thomas NHS Foundation Trust,02/10/2020,(81200) Medical Surgical Supplies & Equipment,(id:42302) Cardiovascular Services,BOSTON SCIENTIFIC LTD,id:13358295   ,2460.00
Department of Health,Guys and St Thomas NHS Foundation Trust,02/10/2020,(81200) Medical Surgical Supplies & Equipment,(id:42302) Cardiovascular Services,BOSTON SCIENTIFIC LTD,id:13358284   ,1152.00
Department of Health,Guys and St Thomas NHS Foundation Trust,02/10/2020,(81200) Medical Surgical Supplies & Equipment,(id:42302) Cardiovascular Services,BOSTON SCIENTIFIC LTD,id:13358131   ,1452.00
Department of Health,Guys and St Thomas NHS Foundation Trust,16/10/2020,(81200) Medical Surgical Supplies & Equipment,(id:42302) Cardiovascular Services,BOSTON SCIENTIFIC LTD,id:13383834   , 240.00
Department of Health,Guys and St Thomas NHS Foundation Trust,16/10/2020,(81200) Medical Surgical Supplies & Equipment,(id:42302) Cardiovascular Services,BOSTON SCIENTIFIC LTD,id:13385979   ,2388.00
Department of Health,Guys and St Thomas NHS Foundation Trust,16/10/2020,(81200) Medical Surgical Supplies & Equipment,(id:42302) Cardiovascular Services,BOSTON SCIENTIFIC LTD,id:13386554   ,1152.00
Department of Health,Guys and St Thomas NHS Foundation Trust,16/10/2020,(81200) Medical Surgical Supplies & Equipment,(id:42302) Cardiovascular Services,XAVIOURMED LLP,id:13376558,1020.00
Department of Health,Guys and St Thomas NHS Foundation Trust,29/10/2020,(81200) Medical Surgical Supplies & Equipment,(id:42302) Cardiovascular Services,VASCULAR PERSPECTIVES LTD,id:13421435    ,1080.00
Department of Health,Guys and St Thomas NHS Foundation Trust,29/10/2020,(81200) Medical Surgical Supplies & Equipment,(id:42302) Cardiovascular Services,BOSTON SCIENTIFIC LTD,id:13378617   , 990.00
Department of Health,Guys and St Thomas NHS Foundation Trust,09/10/2020,(81200) Medical Surgical Supplies & Equipment,(id:42302) Cardiovascular Services,BOSTON SCIENTIFIC LTD,id:13358669   ,1920.00
Department of Health,Guys and St Thomas NHS Foundation Trust,02/10/2020,(81235) Medical Surgical Supplies & Equipment,(id:42302) Cardiovascular Services,BOSTON SCIENTIFIC LTD,id:13358310   , 662.40
Department of Health,Guys and St Thomas NHS Foundation Trust,16/10/2020,(81235) Medical Surgical Supplies & Equipment,(id:42302) Cardiovascular Services,BOSTON SCIENTIFIC LTD,id:13383126   , 604.80
Department of Health,Guys and St Thomas NHS Foundation Trust,16/10/2020,(81235) Medical Surgical Supplies & Equipment,(id:42302) Cardiovascular Services,BOSTON SCIENTIFIC LTD,id:13383822   , 352.80
Department of Health,Guys and St Thomas NHS Foundation Trust,23/10/2020,(83400) Office Equipment,(id:42300) Cardiovascular Services,NHS SUPPLY CHAIN (MAIDSTONE),id:13336014  , 175.89
Department of Health,Guys and St Thomas NHS Foundation Trust,23/10/2020,(82800) Bedding & Linen,(id:42300) Cardiovascular Services,NHS SUPPLY CHAIN (MAIDSTONE),id:13336014   , 129.57
Department of Health,Guys and St Thomas NHS Foundation Trust,23/10/2020,(81200) Medical Surgical Supplies & Equipment,(id:42300) Cardiovascular Services,NHS SUPPLY CHAIN (MAIDSTONE),id:13356014 , 473.81
Department of Health,Guys and St Thomas NHS Foundation Trust,09/10/2020,(50552) Qualified Nursing Staff,(id:42300) Cardiovascular Services,GLOBE LOCUMS LTD,id:13373527  , 328.93
Department of Health,Guys and St Thomas NHS Foundation Trust,23/10/2020,(81200) Medical Surgical Supplies & Equipment,(id:42298) Cardiovascular Services,MEDTRONIC LTD,id:13339259 ,8400.00
Department of Health,Guys and St Thomas NHS Foundation Trust,16/10/2020,(81200) Medical Surgical Supplies & Equipment,(id:42298) Cardiovascular Services,JOHNSON & JOHNSON MEDICAL LTD,id:13353041,6000.00
Department of Health,Guys and St Thomas NHS Foundation Trust,16/10/2020,(81200) Medical Surgical Supplies & Equipment,(id:42298) Cardiovascular Services,JOHNSON & JOHNSON MEDICAL LTD,id:13357151,2233.67
Department of Health,Guys and St Thomas NHS Foundation Trust,16/10/2020,(81200) Medical Surgical Supplies & Equipment,(id:42298) Cardiovascular Services,MEDTRONIC LTD,id:13359133 ,    13560.00
Department of Health,Guys and St Thomas NHS Foundation Trust,16/10/2020,(81200) Medical Surgical Supplies & Equipment,(id:42298) Cardiovascular Services,SQUADRON MEDICAL LTD,id:13346493    , 799.61
Department of Health,Guys and St Thomas NHS Foundation Trust,23/10/2020,(81200) Medical Surgical Supplies & Equipment,(id:42298) Cardiovascular Services,BOSTON SCIENTIFIC LTD,id:13392821   ,1800.00
Department of Health,Guys and St Thomas NHS Foundation Trust,29/10/2020,(81200) Medical Surgical Supplies & Equipment,(id:42298) Cardiovascular Services,COOK UK LTD,id:13379642   ,1760.16
Department of Health,Guys and St Thomas NHS Foundation Trust,09/10/2020,(81200) Medical Surgical Supplies & Equipment,(id:42298) Cardiovascular Services,MERIT MEDICAL UK LTD,id:13232314    , 523.80
Department of Health,Guys and St Thomas NHS Foundation Trust,23/10/2020,(81200) Medical Surgical Supplies & Equipment,(id:42298) Cardiovascular Services,ZOLL MEDICAL UK LTD,id:13369196, 536.00
Department of Health,Guys and St Thomas NHS Foundation Trust,23/10/2020,(81200) Medical Surgical Supplies & Equipment,(id:42298) Cardiovascular Services,VASCULAR PERSPECTIVES LTD,id:13277318    , 660.00
Department of Health,Guys and St Thomas NHS Foundation Trust,02/10/2020,(81200) Medical Surgical Supplies & Equipment,(id:42298) Cardiovascular Services,MEDTRONIC LTD,id:13327729 , 540.00
Department of Health,Guys and St Thomas NHS Foundation Trust,02/10/2020,(81200) Medical Surgical Supplies & Equipment,(id:42298) Cardiovascular Services,MEDTRONIC LTD,id:13352397 , 960.00
Department of Health,Guys and St Thomas NHS Foundation Trust,02/10/2020,(81200) Medical Surgical Supplies & Equipment,(id:42298) Cardiovascular Services,MEDTRONIC LTD,id:13124075 , 960.00
Department of Health,Guys and St Thomas NHS Foundation Trust,16/10/2020,(81200) Medical Surgical Supplies & Equipment,(id:42298) Cardiovascular Services,ABBOTT MEDICAL UK LTD,id:13366853   ,  60.00
Department of Health,Guys and St Thomas NHS Foundation Trust,23/10/2020,(81100) Dressings,(id:42298) Cardiovascular Services,NHS SUPPLY CHAIN (MAIDSTONE),id:13356014    ,  25.50
Department of Health,Guys and St Thomas NHS Foundation Trust,02/10/2020,(81250) Medical Surgical Supplies & Equipment,(id:42298) Cardiovascular Services,BOSTON SCIENTIFIC LTD,id:13353034   ,2856.00
Department of Health,Guys and St Thomas NHS Foundation Trust,16/10/2020,(81280) Medical Surgical Supplies & Equipment,(id:42298) Cardiovascular Services,ABIOMED,id:13141226  ,9600.00
Department of Health,Guys and St Thomas NHS Foundation Trust,09/10/2020,(81265) Medical Surgical Supplies & Equipment,(id:42298) Cardiovascular Services,BOSTON SCIENTIFIC LTD,id:13358617   ,    15420.00
Department of Health,Guys and St Thomas NHS Foundation Trust,23/10/2020,(81240) Medical Surgical Supplies & Equipment,(id:42298) Cardiovascular Services,BOSTON SCIENTIFIC LTD,id:13346624   ,3014.40
Department of Health,Guys and St Thomas NHS Foundation Trust,02/10/2020,(81240) Medical Surgical Supplies & Equipment,(id:42298) Cardiovascular Services,MEDTRONIC LTD,id:13352399 ,7080.00
Department of Health,Guys and St Thomas NHS Foundation Trust,16/10/2020,(81240) Medical Surgical Supplies & Equipment,(id:42298) Cardiovascular Services,MEDTRONIC LTD,id:13377020 ,1920.00
Department of Health,Guys and St Thomas NHS Foundation Trust,16/10/2020,(81240) Medical Surgical Supplies & Equipment,(id:42298) Cardiovascular Services,BOSTON SCIENTIFIC LTD,id:13383837   ,6028.80
Department of Health,Guys and St Thomas NHS Foundation Trust,29/10/2020,(81240) Medical Surgical Supplies & Equipment,(id:42298) Cardiovascular Services,MEDTRONIC LTD,id:13417645 ,3240.00
Department of Health,Guys and St Thomas NHS Foundation Trust,23/10/2020,(83400) Office Equipment,(id:42291) Cardiovascular Services,NHS SUPPLY CHAIN (MAIDSTONE),id:13336014  ,  49.09
Department of Health,Guys and St Thomas NHS Foundation Trust,23/10/2020,(82800) Bedding & Linen,(id:42291) Cardiovascular Services,NHS SUPPLY CHAIN (MAIDSTONE),id:13356014   ,  60.18
Department of Health,Guys and St Thomas NHS Foundation Trust,23/10/2020,(81225) Medical Surgical Supplies & Equipment,(id:42291) Cardiovascular Services,NHS SUPPLY CHAIN (MAIDSTONE),id:13336014 ,   3.68
Department of Health,Guys and St Thomas NHS Foundation Trust,09/10/2020,(50552) Qualified Nursing Staff,(id:42290) Cardiovascular Services,GLOBE LOCUMS LTD,id:13373529  , 308.94
Department of Health,Guys and St Thomas NHS Foundation Trust,16/10/2020,(50552) Qualified Nursing Staff,(id:42290) Cardiovascular Services,GLOBE LOCUMS LTD,id:13391482  , 300.50
Department of Health,Guys and St Thomas NHS Foundation Trust,23/10/2020,(81255) Medical Surgical Supplies & Equipment,(id:42290) Cardiovascular Services,NHS SUPPLY CHAIN (MAIDSTONE),id:13356014 ,   1.87
Department of Health,Guys and St Thomas NHS Foundation Trust,23/10/2020,(83400) Office Equipment,(id:42293) Cardiovascular Services,NHS SUPPLY CHAIN (MAIDSTONE),id:13356014  ,  10.80
Department of Health,Guys and St Thomas NHS Foundation Trust,23/10/2020,(81200) Medical Surgical Supplies & Equipment,(id:42293) Cardiovascular Services,EDWARDS LIFESCIENCES LTD,id:13390164,2328.00
Department of Health,Guys and St Thomas NHS Foundation Trust,23/10/2020,(81200) Medical Surgical Supplies & Equipment,(id:42293) Cardiovascular Services,VASCUTEK LTD,id:13384554  , 956.40
Department of Health,Guys and St Thomas NHS Foundation Trust,29/10/2020,(81200) Medical Surgical Supplies & Equipment,(id:42293) Cardiovascular Services,VASCUTEK LTD,id:13388535  , 970.20
Department of Health,Guys and St Thomas NHS Foundation Trust,29/10/2020,(81200) Medical Surgical Supplies & Equipment,(id:42293) Cardiovascular Services,EDWARDS LIFESCIENCES LTD,id:13422393, 676.50
Department of Health,Guys and St Thomas NHS Foundation Trust,02/10/2020,(81200) Medical Surgical Supplies & Equipment,(id:42293) Cardiovascular Services,SQUADRON MEDICAL LTD,id:13339008    , 529.47
Department of Health,Guys and St Thomas NHS Foundation Trust,02/10/2020,(81200) Medical Surgical Supplies & Equipment,(id:42293) Cardiovascular Services,SQUADRON MEDICAL LTD,id:13337002    , 499.82
Department of Health,Guys and St Thomas NHS Foundation Trust,02/10/2020,(81200) Medical Surgical Supplies & Equipment,(id:42293) Cardiovascular Services,SQUADRON MEDICAL LTD,id:13341093    , 779.06
Department of Health,Guys and St Thomas NHS Foundation Trust,02/10/2020,(81200) Medical Surgical Supplies & Equipment,(id:42293) Cardiovascular Services,EMMAT MEDICAL LTD,id:13352287  ,3852.00
Department of Health,Guys and St Thomas NHS Foundation Trust,09/10/2020,(81200) Medical Surgical Supplies & Equipment,(id:42293) Cardiovascular Services,LIVANOVA UK LTD,id:13370876    , 780.00
Department of Health,Guys and St Thomas NHS Foundation Trust,16/10/2020,(81200) Medical Surgical Supplies & Equipment,(id:42293) Cardiovascular Services,SQUADRON MEDICAL LTD,id:13346425    ,1068.63
Department of Health,Guys and St Thomas NHS Foundation Trust,16/10/2020,(81200) Medical Surgical Supplies & Equipment,(id:42293) Cardiovascular Services,SQUADRON MEDICAL LTD,id:13353145    , 488.06
Department of Health,Guys and St Thomas NHS Foundation Trust,16/10/2020,(81200) Medical Surgical Supplies & Equipment,(id:42293) Cardiovascular Services,SQUADRON MEDICAL LTD,id:13258951    , 610.58
Department of Health,Guys and St Thomas NHS Foundation Trust,16/10/2020,(81200) Medical Surgical Supplies & Equipment,(id:42293) Cardiovascular Services,BAXTER HEALTHCARE LTD,id:13331106   ,2641.75
Department of Health,Guys and St Thomas NHS Foundation Trust,02/10/2020,(81200) Medical Surgical Supplies & Equipment,(id:42293) Cardiovascular Services,SQUADRON MEDICAL LTD,id:13338993    ,  61.08
Department of Health,Guys and St Thomas NHS Foundation Trust,02/10/2020,(89595) Non-Healthcare from Foundation Trusts,(id:42293) Cardiovascular Services,MANCHESTER UNIVERSITY NHS FOUNDATION TRUST,id:10179491  , 800.00
Department of Health,Guys and St Thomas NHS Foundation Trust,23/10/2020,(81280) Medical Surgical Supplies & Equipment,(id:42293) Cardiovascular Services,LEMAITRE VASCULAR LTD,id:13382599   ,2238.00
Department of Health,Guys and St Thomas NHS Foundation Trust,23/10/2020,(81280) Medical Surgical Supplies & Equipment,(id:42293) Cardiovascular Services,EDWARDS LIFESCIENCES LTD,id:13412121,3420.00
Department of Health,Guys and St Thomas NHS Foundation Trust,02/10/2020,(81280) Medical Surgical Supplies & Equipment,(id:42293) Cardiovascular Services,LEMAITRE VASCULAR LTD,id:13356396   ,1158.00
Department of Health,Guys and St Thomas NHS Foundation Trust,02/10/2020,(81280) Medical Surgical Supplies & Equipment,(id:42293) Cardiovascular Services,EDWARDS LIFESCIENCES LTD,id:13354660,3420.00
Department of Health,Guys and St Thomas NHS Foundation Trust,02/10/2020,(81280) Medical Surgical Supplies & Equipment,(id:42293) Cardiovascular Services,ROYAL BROMPTON AND HAREFIELD NHS FOUNDATION TRUST,id:13313234,3786.56
Department of Health,Guys and St Thomas NHS Foundation Trust,16/10/2020,(81280) Medical Surgical Supplies & Equipment,(id:42293) Cardiovascular Services,LEMAITRE VASCULAR LTD,id:13356400   ,1158.00
Department of Health,Guys and St Thomas NHS Foundation Trust,16/10/2020,(81280) Medical Surgical Supplies & Equipment,(id:42293) Cardiovascular Services,LEMAITRE VASCULAR LTD,id:13382774   ,1158.00
Department of Health,Guys and St Thomas NHS Foundation Trust,29/10/2020,(81280) Medical Surgical Supplies & Equipment,(id:42293) Cardiovascular Services,EDWARDS LIFESCIENCES LTD,id:13422330,3264.00
Department of Health,Guys and St Thomas NHS Foundation Trust,29/10/2020,(81280) Medical Surgical Supplies & Equipment,(id:42293) Cardiovascular Services,EDWARDS LIFESCIENCES LTD,id:13422399,1440.00
Department of Health,Guys and St Thomas NHS Foundation Trust,29/10/2020,(81280) Medical Surgical Supplies & Equipment,(id:42293) Cardiovascular Services,EDWARDS LIFESCIENCES LTD,id:13422378,2880.00
Department of Health,Guys and St Thomas NHS Foundation Trust,29/10/2020,(81280) Medical Surgical Supplies & Equipment,(id:42293) Cardiovascular Services,EDWARDS LIFESCIENCES LTD,id:13422344,5640.00
Department of Health,Guys and St Thomas NHS Foundation Trust,29/10/2020,(81200) Medical Surgical Supplies & Equipment,(id:42292) Cardiovascular Services,MAQUET LIMITED,id:13400579, 475.20
Department of Health,Guys and St Thomas NHS Foundation Trust,16/10/2020,(81200) Medical Surgical Supplies & Equipment,(id:42292) Cardiovascular Services,MAQUET LIMITED,id:13363941, 673.92
Department of Health,Guys and St Thomas NHS Foundation Trust,16/10/2020,(81200) Medical Surgical Supplies & Equipment,(id:42292) Cardiovascular Services,MAQUET LIMITED,id:13363957, 475.20
Department of Health,Guys and St Thomas NHS Foundation Trust,16/10/2020,(81200) Medical Surgical Supplies & Equipment,(id:42292) Cardiovascular Services,MAQUET LIMITED,id:13369289, 475.20
Department of Health,Guys and St Thomas NHS Foundation Trust,16/10/2020,(81100) Dressings,(id:42292) Cardiovascular Services,MAQUET LIMITED,id:13365999   , 732.00
Department of Health,Guys and St Thomas NHS Foundation Trust,02/10/2020,(81270) Medical Surgical Supplies & Equipment,(id:42292) Cardiovascular Services,MAQUET LIMITED,id:13346000, 540.00
Department of Health,Guys and St Thomas NHS Foundation Trust,23/10/2020,(81270) Medical Surgical Supplies & Equipment,(id:42292) Cardiovascular Services,MAQUET LIMITED,id:13363966, 720.00
Department of Health,Guys and St Thomas NHS Foundation Trust,23/10/2020,(82700) Uniforms & Clothing,(id:42287) Cardiovascular Services,NHS SUPPLY CHAIN (MAIDSTONE),id:13336014    ,  77.55
Department of Health,Guys and St Thomas NHS Foundation Trust,23/10/2020,(82000) Provisions & Kitchens,(id:42287) Cardiovascular Services,NHS SUPPLY CHAIN (MAIDSTONE),id:13356014  ,1120.81
Department of Health,Guys and St Thomas NHS Foundation Trust,23/10/2020,(81200) Medical Surgical Supplies & Equipment,(id:42287) Cardiovascular Services,NHS SUPPLY CHAIN (MAIDSTONE),id:13356014 , 699.18
Department of Health,Guys and St Thomas NHS Foundation Trust,09/10/2020,(50200) Consultants,(id:42368) Clinical Imaging & Med Physics,KINGS COLLEGE LONDON:03529700,id:13288163    ,6402.09
Department of Health,Guys and St Thomas NHS Foundation Trust,21/10/2020,(52062) Radiographers,(id:42368) Clinical Imaging & Med Physics,PRICEWATERHOUSECOOPERS LLP,id:13406958,4375.50
Department of Health,Guys and St Thomas NHS Foundation Trust,23/10/2020,(82700) Uniforms & Clothing,(id:42367) Clinical Imaging & Med Physics,NHS SUPPLY CHAIN (MAIDSTONE),id:13356014  ,  31.68
Department of Health,Guys and St Thomas NHS Foundation Trust,02/10/2020,(81200) Medical Surgical Supplies & Equipment,(id:42367) Clinical Imaging & Med Physics,SQUADRON MEDICAL LTD,id:13341180  , 577.58
Department of Health,Guys and St Thomas NHS Foundation Trust,02/10/2020,(81200) Medical Surgical Supplies & Equipment,(id:42367) Clinical Imaging & Med Physics,SQUADRON MEDICAL LTD,id:13330149  ,2177.40
Department of Health,Guys and St Thomas NHS Foundation Trust,02/10/2020,(81200) Medical Surgical Supplies & Equipment,(id:42367) Clinical Imaging & Med Physics,SQUADRON MEDICAL LTD,id:13341078  , 830.52
Department of Health,Guys and St Thomas NHS Foundation Trust,02/10/2020,(81200) Medical Surgical Supplies & Equipment,(id:42367) Clinical Imaging & Med Physics,BOSTON SCIENTIFIC LTD,id:13336930 , 660.00
Department of Health,Guys and St Thomas NHS Foundation Trust,02/10/2020,(81200) Medical Surgical Supplies & Equipment,(id:42367) Clinical Imaging & Med Physics,SQUADRON MEDICAL LTD,id:13336955  , 695.64
Department of Health,Guys and St Thomas NHS Foundation Trust,02/10/2020,(81200) Medical Surgical Supplies & Equipment,(id:42367) Clinical Imaging & Med Physics,BOSTON SCIENTIFIC LTD,id:13358322 ,2160.00
Department of Health,Guys and St Thomas NHS Foundation Trust,02/10/2020,(81200) Medical Surgical Supplies & Equipment,(id:42367) Clinical Imaging & Med Physics,ABBOTT MEDICAL UK LTD,id:13342595 , 888.00
Department of Health,Guys and St Thomas NHS Foundation Trust,23/10/2020,(81200) Medical Surgical Supplies & Equipment,(id:42367) Clinical Imaging & Med Physics,VYGON (UK) LTD,id:13383088   , 972.00
Department of Health,Guys and St Thomas NHS Foundation Trust,02/10/2020,(81200) Medical Surgical Supplies & Equipment,(id:42367) Clinical Imaging & Med Physics,BOSTON SCIENTIFIC LTD,id:13358283 ,1512.00
Department of Health,Guys and St Thomas NHS Foundation Trust,02/10/2020,(81200) Medical Surgical Supplies & Equipment,(id:42367) Clinical Imaging & Med Physics,VOLCANO EUROPE BVBA/SPRL,id:13350380   ,1680.00
Department of Health,Guys and St Thomas NHS Foundation Trust,02/10/2020,(81200) Medical Surgical Supplies & Equipment,(id:42367) Clinical Imaging & Med Physics,BOSTON SCIENTIFIC LTD,id:13358348 ,1896.00
Department of Health,Guys and St Thomas NHS Foundation Trust,16/10/2020,(81200) Medical Surgical Supplies & Equipment,(id:42367) Clinical Imaging & Med Physics,BOSTON SCIENTIFIC LTD,id:13386534 ,2172.00
Department of Health,Guys and St Thomas NHS Foundation Trust,16/10/2020,(81200) Medical Surgical Supplies & Equipment,(id:42367) Clinical Imaging & Med Physics,VYGON (UK) LTD,id:13361719   , 357.60
Department of Health,Guys and St Thomas NHS Foundation Trust,29/10/2020,(81200) Medical Surgical Supplies & Equipment,(id:42367) Clinical Imaging & Med Physics,BOSTON SCIENTIFIC LTD,id:13388085 ,1344.00
Department of Health,Guys and St Thomas NHS Foundation Trust,09/10/2020,(81200) Medical Surgical Supplies & Equipment,(id:42367) Clinical Imaging & Med Physics,BOSTON SCIENTIFIC LTD,id:13359098 ,3792.00
Department of Health,Guys and St Thomas NHS Foundation Trust,23/10/2020,(81235) Medical Surgical Supplies & Equipment,(id:42367) Clinical Imaging & Med Physics,NHS SUPPLY CHAIN (MAIDSTONE),id:13356014    , 114.00
Department of Health,Guys and St Thomas NHS Foundation Trust,09/10/2020,(81230) Medical Surgical Supplies & Equipment,(id:42367) Clinical Imaging & Med Physics,SQUADRON MEDICAL LTD,id:13289065  , 456.32
Department of Health,Guys and St Thomas NHS Foundation Trust,16/10/2020,(81230) Medical Surgical Supplies & Equipment,(id:42367) Clinical Imaging & Med Physics,VYGON (UK) LTD,id:13358495   , 329.15
Department of Health,Guys and St Thomas NHS Foundation Trust,23/10/2020,(81500) X Ray Equipment Purchase,(id:42367) Clinical Imaging & Med Physics,BAYER PLC,id:13387037 ,1680.00
Department of Health,Guys and St Thomas NHS Foundation Trust,16/10/2020,(81500) X Ray Equipment Purchase,(id:42367) Clinical Imaging & Med Physics,BAYER PLC,id:13376494 ,2520.00
Department of Health,Guys and St Thomas NHS Foundation Trust,23/10/2020,(81200) Medical Surgical Supplies & Equipment,(id:42366) Clinical Imaging & Med Physics,UK MEDICAL LTD,id:13383555   ,3083.82
Department of Health,Guys and St Thomas NHS Foundation Trust,23/10/2020,(81500) X Ray Equipment Purchase,(id:42366) Clinical Imaging & Med Physics,NHS SUPPLY CHAIN (MAIDSTONE),id:13356014  ,5425.42
Department of Health,Guys and St Thomas NHS Foundation Trust,23/10/2020,(81225) Medical Surgical Supplies & Equipment,(id:42366) Clinical Imaging & Med Physics,NHS SUPPLY CHAIN (MAIDSTONE),id:13356014    ,  60.73
Department of Health,Guys and St Thomas NHS Foundation Trust,16/10/2020,(83400) Office Equipment,(id:4187419) Clinical Imaging & Med Physics,BAYER PLC,id:13364534  ,2112.00
Department of Health,Guys and St Thomas NHS Foundation Trust,09/10/2020,(83400) Office Equipment,(id:4187419) Clinical Imaging & Med Physics,BAYER PLC,id:13345552  ,2112.00
Department of Health,Guys and St Thomas NHS Foundation Trust,09/10/2020,(83400) Office Equipment,(id:4187419) Clinical Imaging & Med Physics,BAYER PLC,id:13336820  ,2112.00
Department of Health,Guys and St Thomas NHS Foundation Trust,23/10/2020,(81200) Medical Surgical Supplies & Equipment,(id:4187419) Clinical Imaging & Med Physics,ADVANCED ACCELERATOR APPLICATIONS (UK & IRELAND) LTD,id:13398714   ,    16690.50
Department of Health,Guys and St Thomas NHS Foundation Trust,16/10/2020,(81200) Medical Surgical Supplies & Equipment,(id:4187419) Clinical Imaging & Med Physics,ADVANCED ACCELERATOR APPLICATIONS (UK & IRELAND) LTD,id:13355184   ,    16690.50
Department of Health,Guys and St Thomas NHS Foundation Trust,09/10/2020,(50203) Consultants,(id:42372) Clinical Imaging & Med Physics,KINGS COLLEGE LONDON:03529700,id:13126155    ,5727.65
Department of Health,Guys and St Thomas NHS Foundation Trust,23/10/2020,(82800) Bedding & Linen,(id:42372) Clinical Imaging & Med Physics,NHS SUPPLY CHAIN (MAIDSTONE),id:13356014 ,  73.72
Department of Health,Guys and St Thomas NHS Foundation Trust,29/10/2020,(81275) Medical Surgical Supplies & Equipment,(id:42372) Clinical Imaging & Med Physics,GE HEALTHCARE UK LTD:00475800,id:13421294   , 630.00
Department of Health,Guys and St Thomas NHS Foundation Trust,29/10/2020,(81275) Medical Surgical Supplies & Equipment,(id:42372) Clinical Imaging & Med Physics,GE HEALTHCARE (50652318),id:13421274   , 630.00
Department of Health,Guys and St Thomas NHS Foundation Trust,09/10/2020,(81500) X Ray Equipment Purchase,(id:42372) Clinical Imaging & Med Physics,CURIUM PHARMA UK LTD,id:13359151,1717.20
Department of Health,Guys and St Thomas NHS Foundation Trust,16/10/2020,(81500) X Ray Equipment Purchase,(id:42372) Clinical Imaging & Med Physics,CURIUM PHARMA UK LTD,id:13383145,1717.20
Department of Health,Guys and St Thomas NHS Foundation Trust,29/10/2020,(83610) IT Costs,(id:42380) Clinical Imaging & Med Physics,KINGSFIELD COMPUTER PRODUCTS LTD,id:13422333    , 681.54
Department of Health,Guys and St Thomas NHS Foundation Trust,23/10/2020,(81200) Medical Surgical Supplies & Equipment,(id:42379) Clinical Imaging & Med Physics,FRESENIUS KABI LTD,id:13385714    ,2393.64
Department of Health,Guys and St Thomas NHS Foundation Trust,29/10/2020,(81200) Medical Surgical Supplies & Equipment,(id:42379) Clinical Imaging & Med Physics,PARITY MEDICAL,id:13417662   , 624.00
Department of Health,Guys and St Thomas NHS Foundation Trust,29/10/2020,(81200) Medical Surgical Supplies & Equipment,(id:42379) Clinical Imaging & Med Physics,VERATHON MEDICAL UK LTD,id:13107555    ,1617.82
Department of Health,Guys and St Thomas NHS Foundation Trust,09/10/2020,(81200) Medical Surgical Supplies & Equipment,(id:42379) Clinical Imaging & Med Physics,GRAFTON OPTICAL CO.LTD,id:13186195,  12.00
Department of Health,Guys and St Thomas NHS Foundation Trust,09/10/2020,(81200) Medical Surgical Supplies & Equipment,(id:42379) Clinical Imaging & Med Physics,FRESENIUS KABI LTD,id:13085854    , 607.39
Department of Health,Guys and St Thomas NHS Foundation Trust,16/10/2020,(81275) Medical Surgical Supplies & Equipment,(id:42378) Clinical Imaging & Med Physics,CARBOLITE FURANCES LIMITED,id:13389834 ,1210.80
Department of Health,Guys and St Thomas NHS Foundation Trust,09/10/2020,(81500) X Ray Equipment Purchase,(id:42378) Clinical Imaging & Med Physics,ONCOLOGY SYSTEMS LTD,id:13336440,1785.60
Department of Health,Guys and St Thomas NHS Foundation Trust,23/10/2020,(81700) Lab Equipment Purchase,(id:1348419) Clinical Imaging & Med Physics,NHS SUPPLY CHAIN (MAIDSTONE),id:13336014  , 184.37
Department of Health,Guys and St Thomas NHS Foundation Trust,23/10/2020,(82800) Bedding & Linen,(id:1348419) Clinical Imaging & Med Physics,NHS SUPPLY CHAIN (MAIDSTONE),id:13336014    , 234.00
Department of Health,Guys and St Thomas NHS Foundation Trust,23/10/2020,(81200) Medical Surgical Supplies & Equipment,(id:2625419) Transplant Renal and Urology,SQUADRON MEDICAL LTD,id:13341226  ,  68.78
Department of Health,Guys and St Thomas NHS Foundation Trust,23/10/2020,(83500) Furniture & Fittings,(id:42419) Transplant Renal and Urology,TECHNIBLINDS LTD,id:13384818, 500.40
Department of Health,Guys and St Thomas NHS Foundation Trust,23/10/2020,(82800) Bedding & Linen,(id:42419) Transplant Renal and Urology,NHS SUPPLY CHAIN (MAIDSTONE),id:13336014   ,  91.12
Department of Health,Guys and St Thomas NHS Foundation Trust,23/10/2020,(81100) Dressings,(id:42419) Transplant Renal and Urology,NHS SUPPLY CHAIN (MAIDSTONE),id:13356014    ,  87.46
Department of Health,Guys and St Thomas NHS Foundation Trust,23/10/2020,(81200) Medical Surgical Supplies & Equipment,(id:42419) Transplant Renal and Urology,NHS SUPPLY CHAIN (MAIDSTONE),id:13336014 , 936.96
Department of Health,Guys and St Thomas NHS Foundation Trust,23/10/2020,(81200) Medical Surgical Supplies & Equipment,(id:42419) Transplant Renal and Urology,NHS SUPPLY CHAIN (MAIDSTONE),id:13356014 , 434.15
Department of Health,Guys and St Thomas NHS Foundation Trust,29/10/2020,(50552) Qualified Nursing Staff,(id:42419) Transplant Renal and Urology,MSI GROUP LTD,id:13427273, 295.22
Department of Health,Guys and St Thomas NHS Foundation Trust,29/10/2020,(50552) Qualified Nursing Staff,(id:42419) Transplant Renal and Urology,MSI GROUP LTD,id:13427270, 754.29
Department of Health,Guys and St Thomas NHS Foundation Trust,23/10/2020,(81200) Medical Surgical Supplies & Equipment,(id:42450) Transplant Renal and Urology,SQUADRON MEDICAL LTD,id:13357612    ,1743.55
Department of Health,Guys and St Thomas NHS Foundation Trust,29/10/2020,(81200) Medical Surgical Supplies & Equipment,(id:42449) Transplant Renal and Urology,BXTACCELYON LIMITED,id:13416395,1254.00
Department of Health,Guys and St Thomas NHS Foundation Trust,29/10/2020,(81200) Medical Surgical Supplies & Equipment,(id:42449) Transplant Renal and Urology,BXTACCELYON LIMITED,id:13416397,7254.00
Department of Health,Guys and St Thomas NHS Foundation Trust,23/10/2020,(81225) Medical Surgical Supplies & Equipment,(id:42449) Transplant Renal and Urology,NHS SUPPLY CHAIN (MAIDSTONE),id:13336014 ,  88.68
Department of Health,Guys and St Thomas NHS Foundation Trust,29/10/2020,(81200) Medical Surgical Supplies & Equipment,(id:42447) Transplant Renal and Urology,Q MEDICAL TECHNOLOGIES LTD,id:13416094   , 940.20
Department of Health,Guys and St Thomas NHS Foundation Trust,09/10/2020,(50203) Consultants,(id:42447) Transplant Renal and Urology,KINGS COLLEGE LONDON:03529700,id:13126234 ,    28140.70
Department of Health,Guys and St Thomas NHS Foundation Trust,23/10/2020,(82600) Uniforms & Clothing,(id:42446) Transplant Renal and Urology,NHS SUPPLY CHAIN (MAIDSTONE),id:13356014    ,  72.65
Department of Health,Guys and St Thomas NHS Foundation Trust,16/10/2020,(81200) Medical Surgical Supplies & Equipment,(id:42446) Transplant Renal and Urology,SQUADRON MEDICAL LTD,id:13353217    , 645.16
Department of Health,Guys and St Thomas NHS Foundation Trust,09/10/2020,(81200) Medical Surgical Supplies & Equipment,(id:42446) Transplant Renal and Urology,BOSTON SCIENTIFIC LTD,id:13358618   ,1626.64
Department of Health,Guys and St Thomas NHS Foundation Trust,23/10/2020,(81200) Medical Surgical Supplies & Equipment,(id:42446) Transplant Renal and Urology,RICHARD WOLF U K  LTD,id:13413774   ,1096.80
Department of Health,Guys and St Thomas NHS Foundation Trust,23/10/2020,(81200) Medical Surgical Supplies & Equipment,(id:42446) Transplant Renal and Urology,COOK UK LTD,id:13316934   , 792.00
Department of Health,Guys and St Thomas NHS Foundation Trust,23/10/2020,(81200) Medical Surgical Supplies & Equipment,(id:42446) Transplant Renal and Urology,BOSTON SCIENTIFIC LTD,id:13300074   ,1640.44
Department of Health,Guys and St Thomas NHS Foundation Trust,23/10/2020,(81200) Medical Surgical Supplies & Equipment,(id:42446) Transplant Renal and Urology,STRYKER UK LTD,id:13329574, 504.00
Department of Health,Guys and St Thomas NHS Foundation Trust,16/10/2020,(81230) Medical Surgical Supplies & Equipment,(id:42446) Transplant Renal and Urology,SQUADRON MEDICAL LTD,id:13322300    ,  77.28
Department of Health,Guys and St Thomas NHS Foundation Trust,02/10/2020,(81200) Medical Surgical Supplies & Equipment,(id:42444) Transplant Renal and Urology,BOSTON SCIENTIFIC LTD,id:13358135   , 686.28
Department of Health,Guys and St Thomas NHS Foundation Trust,02/10/2020,(81200) Medical Surgical Supplies & Equipment,(id:42444) Transplant Renal and Urology,BOSTON SCIENTIFIC LTD,id:13358277   ,1038.36
Department of Health,Guys and St Thomas NHS Foundation Trust,09/10/2020,(81200) Medical Surgical Supplies & Equipment,(id:42444) Transplant Renal and Urology,BOSTON SCIENTIFIC LTD,id:13359048   , 520.49
Department of Health,Guys and St Thomas NHS Foundation Trust,09/10/2020,(81200) Medical Surgical Supplies & Equipment,(id:42444) Transplant Renal and Urology,BOSTON SCIENTIFIC LTD,id:13358643   ,1221.96
Department of Health,Guys and St Thomas NHS Foundation Trust,16/10/2020,(81200) Medical Surgical Supplies & Equipment,(id:42444) Transplant Renal and Urology,BOSTON SCIENTIFIC LTD,id:13386094   , 837.16
Department of Health,Guys and St Thomas NHS Foundation Trust,16/10/2020,(81200) Medical Surgical Supplies & Equipment,(id:42444) Transplant Renal and Urology,BOSTON SCIENTIFIC LTD,id:13384348   ,1376.20
Department of Health,Guys and St Thomas NHS Foundation Trust,23/10/2020,(81200) Medical Surgical Supplies & Equipment,(id:42444) Transplant Renal and Urology,STRYKER UK LTD,id:13328492, 504.00
Department of Health,Guys and St Thomas NHS Foundation Trust,23/10/2020,(81200) Medical Surgical Supplies & Equipment,(id:42444) Transplant Renal and Urology,COOK UK LTD,id:13341216   , 687.60
Department of Health,Guys and St Thomas NHS Foundation Trust,23/10/2020,(83400) Office Equipment,(id:42443) Transplant Renal and Urology,NHS SUPPLY CHAIN (MAIDSTONE),id:13356014  , 100.50
Department of Health,Guys and St Thomas NHS Foundation Trust,23/10/2020,(81100) Dressings,(id:42439) Transplant Renal and Urology,MEDTRONIC LTD,id:13365370    , 936.00
Department of Health,Guys and St Thomas NHS Foundation Trust,02/10/2020,(81200) Medical Surgical Supplies & Equipment,(id:3671419) Transplant Renal and Urology,FRESENIUS MEDICAL CARE UK LTD,id:13352057   , 684.00
Department of Health,Guys and St Thomas NHS Foundation Trust,23/10/2020,(81200) Medical Surgical Supplies & Equipment,(id:3671419) Transplant Renal and Urology,NHS SUPPLY CHAIN (MAIDSTONE),id:13356014    , 219.05
Department of Health,Guys and St Thomas NHS Foundation Trust,23/10/2020,(82800) Bedding & Linen,(id:42435) Transplant Renal and Urology,NHS SUPPLY CHAIN (MAIDSTONE),id:13336014   , 252.23
Department of Health,Guys and St Thomas NHS Foundation Trust,23/10/2020,(81275) Medical Surgical Supplies & Equipment,(id:42435) Transplant Renal and Urology,NHS SUPPLY CHAIN (MAIDSTONE),id:13356014 , 100.20
Department of Health,Guys and St Thomas NHS Foundation Trust,23/10/2020,(81200) Medical Surgical Supplies & Equipment,(id:42430) Transplant Renal and Urology,B.BRAUN MEDICAL LTD,id:13372375,1886.92
Department of Health,Guys and St Thomas NHS Foundation Trust,23/10/2020,(81200) Medical Surgical Supplies & Equipment,(id:42428) Transplant Renal and Urology,NHS SUPPLY CHAIN (MAIDSTONE),id:13336014 , 236.26
Department of Health,Guys and St Thomas NHS Foundation Trust,23/10/2020,(83400) Office Equipment,(id:42428) Transplant Renal and Urology,NHS SUPPLY CHAIN (MAIDSTONE),id:13356014  ,  17.28
Department of Health,Guys and St Thomas NHS Foundation Trust,29/10/2020,(81200) Medical Surgical Supplies & Equipment,(id:42420) Transplant Renal and Urology,BAXTER HEALTHCARE LTD,id:13391839   ,1877.76
Department of Health,Guys and St Thomas NHS Foundation Trust,16/10/2020,(81200) Medical Surgical Supplies & Equipment,(id:42420) Transplant Renal and Urology,FRESENIUS MEDICAL CARE UK LTD,id:13384874,2188.80
Department of Health,Guys and St Thomas NHS Foundation Trust,02/10/2020,(50562) Qualified Nursing Staff,(id:42438) Transplant Renal and Urology,GLOBE LOCUMS LTD,id:13354909  , 837.74
Department of Health,Guys and St Thomas NHS Foundation Trust,09/10/2020,(81275) Medical Surgical Supplies & Equipment,(id:42438) Transplant Renal and Urology,MAIDSTONE AND TUNBRIDGE WELLS NHS TRUST,id:12559856, 996.19
Department of Health,Guys and St Thomas NHS Foundation Trust,09/10/2020,(81275) Medical Surgical Supplies & Equipment,(id:42438) Transplant Renal and Urology,MAIDSTONE AND TUNBRIDGE WELLS NHS TRUST,id:11688411,2799.96
Department of Health,Guys and St Thomas NHS Foundation Trust,23/10/2020,(81200) Medical Surgical Supplies & Equipment,(id:42432) Transplant Renal and Urology,NHS SUPPLY CHAIN (MAIDSTONE),id:13336014 ,  12.86
Department of Health,Guys and St Thomas NHS Foundation Trust,23/10/2020,(86300) Healthcare from non-NHS bodies,(id:42427) Transplant Renal and Urology,DIAVERUM UK LTD,id:13405694 ,    47782.44
Department of Health,Guys and St Thomas NHS Foundation Trust,23/10/2020,(86300) Healthcare from non-NHS bodies,(id:42424) Transplant Renal and Urology,DIAVERUM UK LTD,id:13405594 ,    37213.02
Department of Health,Guys and St Thomas NHS Foundation Trust,02/10/2020,(81200) Medical Surgical Supplies & Equipment,(id:42422) Transplant Renal and Urology,NXSTAGE MEDICAL UK LIMITED,id:13349276   , 729.72
Department of Health,Guys and St Thomas NHS Foundation Trust,02/10/2020,(81200) Medical Surgical Supplies & Equipment,(id:42422) Transplant Renal and Urology,NXSTAGE MEDICAL UK LIMITED,id:13348818   , 893.40
Department of Health,Guys and St Thomas NHS Foundation Trust,02/10/2020,(81200) Medical Surgical Supplies & Equipment,(id:42422) Transplant Renal and Urology,NXSTAGE MEDICAL UK LIMITED,id:13348850   ,1057.08
Department of Health,Guys and St Thomas NHS Foundation Trust,02/10/2020,(81200) Medical Surgical Supplies & Equipment,(id:42422) Transplant Renal and Urology,NXSTAGE MEDICAL UK LIMITED,id:13349285   ,1309.44
Department of Health,Guys and St Thomas NHS Foundation Trust,09/10/2020,(81200) Medical Surgical Supplies & Equipment,(id:42422) Transplant Renal and Urology,NXSTAGE MEDICAL UK LIMITED,id:13375941   , 893.40
Department of Health,Guys and St Thomas NHS Foundation Trust,09/10/2020,(81200) Medical Surgical Supplies & Equipment,(id:42422) Transplant Renal and Urology,FRESENIUS MEDICAL CARE UK LTD,id:13374696,1171.96
Department of Health,Guys and St Thomas NHS Foundation Trust,09/10/2020,(81200) Medical Surgical Supplies & Equipment,(id:42422) Transplant Renal and Urology,FRESENIUS MEDICAL CARE UK LTD,id:13374641,1287.70
Department of Health,Guys and St Thomas NHS Foundation Trust,09/10/2020,(81200) Medical Surgical Supplies & Equipment,(id:42422) Transplant Renal and Urology,FRESENIUS MEDICAL CARE UK LTD,id:13374741,1758.59
Department of Health,Guys and St Thomas NHS Foundation Trust,09/10/2020,(81200) Medical Surgical Supplies & Equipment,(id:42422) Transplant Renal and Urology,FRESENIUS MEDICAL CARE UK LTD,id:13374737,2049.49
Department of Health,Guys and St Thomas NHS Foundation Trust,16/10/2020,(81200) Medical Surgical Supplies & Equipment,(id:42422) Transplant Renal and Urology,FRESENIUS MEDICAL CARE UK LTD,id:13374752,1062.14
Department of Health,Guys and St Thomas NHS Foundation Trust,16/10/2020,(81200) Medical Surgical Supplies & Equipment,(id:42422) Transplant Renal and Urology,NXSTAGE MEDICAL UK LIMITED,id:13355180   ,1276.33
Department of Health,Guys and St Thomas NHS Foundation Trust,23/10/2020,(81200) Medical Surgical Supplies & Equipment,(id:42422) Transplant Renal and Urology,FRESENIUS MEDICAL CARE UK LTD,id:13386836, 539.28
Department of Health,Guys and St Thomas NHS Foundation Trust,09/10/2020,(83765) Rent,(id:4622425) Transplant Renal and Urology,FRESENIUS MEDICAL CARE RENAL SERVICES LT,id:13351594,    -1200.00
Department of Health,Guys and St Thomas NHS Foundation Trust,23/10/2020,(83400) Office Equipment,(id:42037) Dental Services,NHS SUPPLY CHAIN (MAIDSTONE),id:13336014,  33.48
Department of Health,Guys and St Thomas NHS Foundation Trust,02/10/2020,(84500) Establishment,(id:42007) Dental Services,CDP  PRINT MANAGEMENT,id:13353990,1231.38
Department of Health,Guys and St Thomas NHS Foundation Trust,29/10/2020,(81200) Medical Surgical Supplies & Equipment,(id:42007) Dental Services,HENRY SCHEIN,id:13418434, 925.20
Department of Health,Guys and St Thomas NHS Foundation Trust,29/10/2020,(81200) Medical Surgical Supplies & Equipment,(id:42007) Dental Services,HENRY SCHEIN,id:13395915, 969.88
Department of Health,Guys and St Thomas NHS Foundation Trust,23/10/2020,(82800) Bedding & Linen,(id:42005) Dental Services,NHS SUPPLY CHAIN (MAIDSTONE),id:13336014 , 176.56
Department of Health,Guys and St Thomas NHS Foundation Trust,09/10/2020,(50200) Consultants,(id:42015) Dental Services,KINGS COLLEGE LONDON:03529700,id:13204056    ,2202.55
Department of Health,Guys and St Thomas NHS Foundation Trust,09/10/2020,(50343) Other Medical Grades,(id:42015) Dental Services,KINGS COLLEGE LONDON:03529700,id:13288048,1622.36
Department of Health,Guys and St Thomas NHS Foundation Trust,23/10/2020,(81700) Lab Equipment Purchase,(id:42028) Dental Services,NHS SUPPLY CHAIN (MAIDSTONE),id:13336014    ,   3.12
Department of Health,Guys and St Thomas NHS Foundation Trust,09/10/2020,(50200) Consultants,(id:42018) Dental Services,KINGS COLLEGE LONDON:03529700,id:13126214    ,1363.71
Department of Health,Guys and St Thomas NHS Foundation Trust,09/10/2020,(50200) Consultants,(id:42019) Dental Services,KINGS COLLEGE LONDON:03529700,id:13288048    ,1416.27
Department of Health,Guys and St Thomas NHS Foundation Trust,09/10/2020,(50200) Consultants,(id:42019) Dental Services,KINGS COLLEGE LONDON:03529700,id:13204056    ,1444.07
Department of Health,Guys and St Thomas NHS Foundation Trust,09/10/2020,(50343) Other Medical Grades,(id:41998) Dental Services,KINGS COLLEGE LONDON:03529700,id:13204056,1346.98
Department of Health,Guys and St Thomas NHS Foundation Trust,09/10/2020,(81200) Medical Surgical Supplies & Equipment,(id:42016) Dental Services,DENTSPLY IH LTD,id:13359535  , 589.97
Department of Health,Guys and St Thomas NHS Foundation Trust,09/10/2020,(81200) Medical Surgical Supplies & Equipment,(id:42016) Dental Services,DENTSPLY IH LTD,id:13331075  , 812.70
Department of Health,Guys and St Thomas NHS Foundation Trust,16/10/2020,(81200) Medical Surgical Supplies & Equipment,(id:42016) Dental Services,GEISTLICH SONS LTD,id:13376968    , 516.12
Department of Health,Guys and St Thomas NHS Foundation Trust,02/10/2020,(81200) Medical Surgical Supplies & Equipment,(id:42016) Dental Services,STRAUMANN LTD,id:13331538    ,1552.74
Department of Health,Guys and St Thomas NHS Foundation Trust,29/10/2020,(81200) Medical Surgical Supplies & Equipment,(id:42016) Dental Services,DENTSPLY IH LTD,id:13399097  ,1019.98
Department of Health,Guys and St Thomas NHS Foundation Trust,29/10/2020,(81200) Medical Surgical Supplies & Equipment,(id:42016) Dental Services,DENTSPLY IH LTD,id:13399155  , 759.16
Department of Health,Guys and St Thomas NHS Foundation Trust,09/10/2020,(50343) Other Medical Grades,(id:42022) Dental Services,KINGS COLLEGE LONDON:03529700,id:13126214,1590.81
Department of Health,Guys and St Thomas NHS Foundation Trust,09/10/2020,(50200) Consultants,(id:3088419) Dental Services,KINGS COLLEGE LONDON:03529700,id:13126214  ,2001.58
Department of Health,Guys and St Thomas NHS Foundation Trust,16/10/2020,(81200) Medical Surgical Supplies & Equipment,(id:42014) Dental Services,HENRY SCHEIN,id:13369154, 883.32
Department of Health,Guys and St Thomas NHS Foundation Trust,23/10/2020,(55632) Maintenance Staff,(id:41996) Dental Services,GRANTLEIGH LTD,id:13397014   ,1380.00
Department of Health,Guys and St Thomas NHS Foundation Trust,09/10/2020,(81200) Medical Surgical Supplies & Equipment,(id:4622420) Dental Services,OPTIDENT LTD,id:13366539   ,    72618.00
Department of Health,Guys and St Thomas NHS Foundation Trust,09/10/2020,(50200) Consultants,(id:42035) Dental Services,KINGS COLLEGE LONDON:03529700,id:13288048    ,    10927.45
Department of Health,Guys and St Thomas NHS Foundation Trust,16/10/2020,(81200) Medical Surgical Supplies & Equipment,(id:1634432) Dental Services,HENRY SCHEIN,id:13375759   , 940.90
Department of Health,Guys and St Thomas NHS Foundation Trust,23/10/2020,(81200) Medical Surgical Supplies & Equipment,(id:1634432) Dental Services,HENRY SCHEIN,id:13124254   , 897.77
Department of Health,Guys and St Thomas NHS Foundation Trust,23/10/2020,(81200) Medical Surgical Supplies & Equipment,(id:1634432) Dental Services,HENRY SCHEIN,id:13400698   , 924.31
Department of Health,Guys and St Thomas NHS Foundation Trust,02/10/2020,(81200) Medical Surgical Supplies & Equipment,(id:1634429) Dental Services,HENRY SCHEIN,id:13345355   , 833.17
Department of Health,Guys and St Thomas NHS Foundation Trust,02/10/2020,(81200) Medical Surgical Supplies & Equipment,(id:1634429) Dental Services,HENRY SCHEIN,id:13348755   , 535.92
Department of Health,Guys and St Thomas NHS Foundation Trust,29/10/2020,(50200) Consultants,(id:4225419) Specialist Ambulatory Services,KINGS COLLEGE LONDON:03529700,id:13417601  ,4157.96
Department of Health,Guys and St Thomas NHS Foundation Trust,23/10/2020,(81275) Medical Surgical Supplies & Equipment,(id:641456) Specialist Ambulatory Services,NHS SUPPLY CHAIN (MAIDSTONE),id:13356014   , 203.76
Department of Health,Guys and St Thomas NHS Foundation Trust,29/10/2020,(55070) Admin & Clerical,(id:334405) Specialist Ambulatory Services,KINGS COLLEGE LONDON:03529700,id:13417644   ,7187.82
Department of Health,Guys and St Thomas NHS Foundation Trust,09/10/2020,(50200) Consultants,(id:42194) Specialist Ambulatory Services,LEWISHAM AND GREENWICH NHS TRUST,id:12990929 ,1260.36
Department of Health,Guys and St Thomas NHS Foundation Trust,09/10/2020,(50203) Consultants,(id:42193) Specialist Ambulatory Services,KINGS COLLEGE LONDON:03529700,id:13126134    ,2162.97
Department of Health,Guys and St Thomas NHS Foundation Trust,23/10/2020,(81200) Medical Surgical Supplies & Equipment,(id:42193) Specialist Ambulatory Services,NHS SUPPLY CHAIN (MAIDSTONE),id:13356014    ,1931.40
Department of Health,Guys and St Thomas NHS Foundation Trust,09/10/2020,(50552) Qualified Nursing Staff,(id:42193) Specialist Ambulatory Services,CONTINENTAL NURSE LTD,id:13373418,1920.75
Department of Health,Guys and St Thomas NHS Foundation Trust,23/10/2020,(50552) Qualified Nursing Staff,(id:42193) Specialist Ambulatory Services,CONTINENTAL NURSE LTD,id:13415690,1920.75
Department of Health,Guys and St Thomas NHS Foundation Trust,09/10/2020,(84656) Establishment,(id:42193) Specialist Ambulatory Services,DICT8 LIMITED,id:13370894   , 871.92
Department of Health,Guys and St Thomas NHS Foundation Trust,29/10/2020,(89640) Non-Healthcare from NHS Trusts,(id:42354) Specialist Ambulatory Services,LEEDS TEACHING HOSPITALS NHS TRUST,id:13327059, 953.83
Department of Health,Guys and St Thomas NHS Foundation Trust,29/10/2020,(89640) Non-Healthcare from NHS Trusts,(id:42354) Specialist Ambulatory Services,LEEDS TEACHING HOSPITALS NHS TRUST,id:13356195,1907.66
Department of Health,Guys and St Thomas NHS Foundation Trust,09/10/2020,(50200) Consultants,(id:42099) Specialist Ambulatory Services,KINGS COLLEGE LONDON:03529700,id:13126174    ,5447.05
Department of Health,Guys and St Thomas NHS Foundation Trust,09/10/2020,(50203) Consultants,(id:42099) Specialist Ambulatory Services,KINGS COLLEGE LONDON:03529700,id:13134475    ,8353.46
Department of Health,Guys and St Thomas NHS Foundation Trust,23/10/2020,(81200) Medical Surgical Supplies & Equipment,(id:42091) Specialist Ambulatory Services,NHS SUPPLY CHAIN (MAIDSTONE),id:13336014    ,  98.23
Department of Health,Guys and St Thomas NHS Foundation Trust,02/10/2020,(81275) Medical Surgical Supplies & Equipment,(id:42088) Specialist Ambulatory Services,CANUTE PHARMA LTD,id:13345635, 681.36
Department of Health,Guys and St Thomas NHS Foundation Trust,23/10/2020,(81100) Dressings,(id:42097) Specialist Ambulatory Services,NHS SUPPLY CHAIN (MAIDSTONE),id:13356014  , 368.95
Department of Health,Guys and St Thomas NHS Foundation Trust,09/10/2020,(81200) Medical Surgical Supplies & Equipment,(id:42097) Specialist Ambulatory Services,SCHUCO INTERNATIONAL LTD,id:13359794   , 612.00
Department of Health,Guys and St Thomas NHS Foundation Trust,23/10/2020,(81200) Medical Surgical Supplies & Equipment,(id:42097) Specialist Ambulatory Services,NHS SUPPLY CHAIN (MAIDSTONE),id:13356014    ,1032.20
Department of Health,Guys and St Thomas NHS Foundation Trust,23/10/2020,(80010) Drug Costs,(id:42079) Specialist Ambulatory Services,THERAKOS (UK) LIMITED,id:13403075   ,-748.80
Department of Health,Guys and St Thomas NHS Foundation Trust,23/10/2020,(81200) Medical Surgical Supplies & Equipment,(id:42079) Specialist Ambulatory Services,THERAKOS (UK) LIMITED,id:13403533 ,1920.00
Department of Health,Guys and St Thomas NHS Foundation Trust,23/10/2020,(81275) Medical Surgical Supplies & Equipment,(id:42079) Specialist Ambulatory Services,THERAKOS (UK) LIMITED,id:13403135 ,    22464.00
Department of Health,Guys and St Thomas NHS Foundation Trust,23/10/2020,(81275) Medical Surgical Supplies & Equipment,(id:42079) Specialist Ambulatory Services,THERAKOS (UK) LIMITED,id:13403314 ,    22464.00
Department of Health,Guys and St Thomas NHS Foundation Trust,23/10/2020,(81200) Medical Surgical Supplies & Equipment,(id:391417) Specialist Ambulatory Services,NHS SUPPLY CHAIN (MAIDSTONE),id:13356014   ,  25.67
Department of Health,Guys and St Thomas NHS Foundation Trust,23/10/2020,(81200) Medical Surgical Supplies & Equipment,(id:590565) Specialist Ambulatory Services,NHS SUPPLY CHAIN (MAIDSTONE),id:13336014   ,   9.00
Department of Health,Guys and St Thomas NHS Foundation Trust,16/10/2020,(54032) Technical Officers,(id:4632421) Specialist Ambulatory Services,TFS HEALTHCARE,id:13391629, 566.40
Department of Health,Guys and St Thomas NHS Foundation Trust,16/10/2020,(54032) Technical Officers,(id:4632421) Specialist Ambulatory Services,TFS HEALTHCARE,id:13391455, 424.80
Department of Health,Guys and St Thomas NHS Foundation Trust,09/10/2020,(54032) Technical Officers,(id:4632421) Specialist Ambulatory Services,TFS HEALTHCARE,id:13373391, 528.65
Department of Health,Guys and St Thomas NHS Foundation Trust,09/10/2020,(54032) Technical Officers,(id:4632421) Specialist Ambulatory Services,TFS HEALTHCARE,id:13375960, 566.40
Department of Health,Guys and St Thomas NHS Foundation Trust,09/10/2020,(54032) Technical Officers,(id:4632421) Specialist Ambulatory Services,TFS HEALTHCARE,id:13373228, 726.86
Department of Health,Guys and St Thomas NHS Foundation Trust,29/10/2020,(50200) Consultants,(id:42057) Specialist Ambulatory Services,KINGS COLLEGE LONDON:03529700,id:13416334    ,5651.78
Department of Health,Guys and St Thomas NHS Foundation Trust,09/10/2020,(84656) Establishment,(id:42057) Specialist Ambulatory Services,DICT8 LIMITED,id:13370854   ,1274.04
Department of Health,Guys and St Thomas NHS Foundation Trust,23/10/2020,(83400) Office Equipment,(id:42055) Specialist Ambulatory Services,NHS SUPPLY CHAIN (MAIDSTONE),id:13356014,  15.48
Department of Health,Guys and St Thomas NHS Foundation Trust,23/10/2020,(83400) Office Equipment,(id:42050) Specialist Ambulatory Services,NHS SUPPLY CHAIN (MAIDSTONE),id:13356014, 337.82
Department of Health,Guys and St Thomas NHS Foundation Trust,29/10/2020,(83610) IT Costs,(id:42050) Specialist Ambulatory Services,PROBRAND LIMITED,id:13422343, 997.20
Department of Health,Guys and St Thomas NHS Foundation Trust,09/10/2020,(89600) Non-Healthcare from other NHS bodies,(id:42134) Pathology SDU,NHS BLOOD AND TRANSPLANT,id:13354557 ,6823.30
Department of Health,Guys and St Thomas NHS Foundation Trust,21/10/2020,(53682) Pharmacists,(id:42165) Pharmacy,PRICEWATERHOUSECOOPERS LLP,id:13406958    ,1412.37
Department of Health,Guys and St Thomas NHS Foundation Trust,06/10/2020,(53682) Pharmacists,(id:42165) Pharmacy,PRICEWATERHOUSECOOPERS LLP,id:13362974    ,1756.66
Department of Health,Guys and St Thomas NHS Foundation Trust,23/10/2020,(81200) Medical Surgical Supplies & Equipment,(id:581409) Pharmacy,NHS SUPPLY CHAIN (MAIDSTONE),id:13336014,1316.71
Department of Health,Guys and St Thomas NHS Foundation Trust,23/10/2020,(81200) Medical Surgical Supplies & Equipment,(id:581409) Pharmacy,AMERCARE LTD,id:13385814 , 827.40
Department of Health,Guys and St Thomas NHS Foundation Trust,16/10/2020,(81400) Medical Surgical Supplies & Equipment,(id:581409) Pharmacy,VALIDAIR (EURO) LTD,id:13369200    ,1200.00
Department of Health,Guys and St Thomas NHS Foundation Trust,23/10/2020,(82600) Uniforms & Clothing,(id:581409) Pharmacy,NHS SUPPLY CHAIN (MAIDSTONE),id:13336014   ,  77.51
Department of Health,Guys and St Thomas NHS Foundation Trust,23/10/2020,(82600) Uniforms & Clothing,(id:581409) Pharmacy,NHS SUPPLY CHAIN (MAIDSTONE),id:13356014   , 118.80
Department of Health,Guys and St Thomas NHS Foundation Trust,23/10/2020,(83400) Office Equipment,(id:581409) Pharmacy,AQUILANT DISTRIBUTION,id:13384218   , 639.74
Department of Health,Guys and St Thomas NHS Foundation Trust,23/10/2020,(83881) Building & Engineering,(id:581409) Pharmacy,ENVAIR LTD,id:13415447   , 610.00
Department of Health,Guys and St Thomas NHS Foundation Trust,27/10/2020,(54052) Technical Officers,(id:581409) Pharmacy,PRICEWATERHOUSECOOPERS LLP,id:13423614 , 997.66
Department of Health,Guys and St Thomas NHS Foundation Trust,23/10/2020,(82000) Provisions & Kitchens,(id:581409) Pharmacy,FRESENIUS KABI LTD,id:13386972 ,1500.00
Department of Health,Guys and St Thomas NHS Foundation Trust,09/10/2020,(81200) Medical Surgical Supplies & Equipment,(id:42159) Pharmacy,BARBICAN LOGISTICS LTD,id:13364042  , 739.12
Department of Health,Guys and St Thomas NHS Foundation Trust,02/10/2020,(89000) Other - Training courses and conferences,(id:42159) Pharmacy,THE UNIVERSITY OF MANCHESTER,id:13023774   ,3600.00
Department of Health,Guys and St Thomas NHS Foundation Trust,23/10/2020,(81275) Medical Surgical Supplies & Equipment,(id:42159) Pharmacy,LGC LIMITED,id:13402796   , 999.60
Department of Health,Guys and St Thomas NHS Foundation Trust,27/10/2020,(54052) Technical Officers,(id:42160) Pharmacy,PRICEWATERHOUSECOOPERS LLP,id:13423614  ,1067.81
Department of Health,Guys and St Thomas NHS Foundation Trust,27/10/2020,(53632) Pharmacists,(id:42160) Pharmacy,PRICEWATERHOUSECOOPERS LLP,id:13423614    ,1022.04
Department of Health,Guys and St Thomas NHS Foundation Trust,09/10/2020,(84655) Establishment,(id:478416) Medical Specialties,LANGUAGE LINE LTD,id:13364557    , 422.72
Department of Health,Guys and St Thomas NHS Foundation Trust,23/10/2020,(83400) Office Equipment,(id:42217) Medical Specialties,NHS SUPPLY CHAIN (MAIDSTONE),id:13336014 ,  25.01
Department of Health,Guys and St Thomas NHS Foundation Trust,23/10/2020,(82000) Provisions & Kitchens,(id:42250) Medical Specialties,AAH PHARMACEUTICALS LTD,id:13364714 , 540.00
Department of Health,Guys and St Thomas NHS Foundation Trust,02/10/2020,(86300) Healthcare from non-NHS bodies,(id:42224) Medical Specialties,L DOLLAY OPTOMETRIST LTD,id:13318205 ,2332.00
Department of Health,Guys and St Thomas NHS Foundation Trust,23/10/2020,(81200) Medical Surgical Supplies & Equipment,(id:42223) Medical Specialties,NHS SUPPLY CHAIN (MAIDSTONE),id:13336014, 319.53
Department of Health,Guys and St Thomas NHS Foundation Trust,29/10/2020,(81200) Medical Surgical Supplies & Equipment,(id:42223) Medical Specialties,HAAG STREIT UK LTD,id:13400497, 766.20
Department of Health,Guys and St Thomas NHS Foundation Trust,02/10/2020,(81200) Medical Surgical Supplies & Equipment,(id:42223) Medical Specialties,JACK ALLEN CONTACT LENSES,id:13350154   , 620.76
Department of Health,Guys and St Thomas NHS Foundation Trust,02/10/2020,(89600) Non-Healthcare from other NHS bodies,(id:42223) Medical Specialties,NHS BLOOD AND TRANSPLANT,id:13286774,1301.87
Department of Health,Guys and St Thomas NHS Foundation Trust,23/10/2020,(89600) Non-Healthcare from other NHS bodies,(id:42223) Medical Specialties,NHS BLOOD AND TRANSPLANT,id:13361539,1301.87
Department of Health,Guys and St Thomas NHS Foundation Trust,23/10/2020,(89600) Non-Healthcare from other NHS bodies,(id:42223) Medical Specialties,NHS BLOOD AND TRANSPLANT,id:13286754,1301.87
Department of Health,Guys and St Thomas NHS Foundation Trust,23/10/2020,(81700) Lab Equipment Purchase,(id:42223) Medical Specialties,NHS SUPPLY CHAIN (MAIDSTONE),id:13336014,  25.27
Department of Health,Guys and St Thomas NHS Foundation Trust,16/10/2020,(81200) Medical Surgical Supplies & Equipment,(id:42222) Medical Specialties,ALCON EYE CARE UK LIMITED,id:13394123   ,4406.40
Department of Health,Guys and St Thomas NHS Foundation Trust,23/10/2020,(82000) Provisions & Kitchens,(id:42221) Medical Specialties,NHS SUPPLY CHAIN (MAIDSTONE),id:13336014 ,   7.80
Department of Health,Guys and St Thomas NHS Foundation Trust,23/10/2020,(81200) Medical Surgical Supplies & Equipment,(id:42221) Medical Specialties,NHS SUPPLY CHAIN (MAIDSTONE),id:13356014,2629.01
Department of Health,Guys and St Thomas NHS Foundation Trust,23/10/2020,(81200) Medical Surgical Supplies & Equipment,(id:42221) Medical Specialties,ALCON EYE CARE UK LIMITED,id:13359158   , 972.00
Department of Health,Guys and St Thomas NHS Foundation Trust,29/10/2020,(50203) Consultants,(id:42213) Medical Specialties,KINGS COLLEGE LONDON:03529700,id:13416334, 669.61
Department of Health,Guys and St Thomas NHS Foundation Trust,23/10/2020,(81200) Medical Surgical Supplies & Equipment,(id:42213) Medical Specialties,NHS SUPPLY CHAIN (MAIDSTONE),id:13356014,  69.23
Department of Health,Guys and St Thomas NHS Foundation Trust,23/10/2020,(81100) Dressings,(id:42213) Medical Specialties,NHS SUPPLY CHAIN (MAIDSTONE),id:13356014   , 757.22
Department of Health,Guys and St Thomas NHS Foundation Trust,02/10/2020,(81000) Surgical Appliances,(id:42213) Medical Specialties,TALAR MADE ORTHOTICS LTD,id:13356978  ,  86.94
Department of Health,Guys and St Thomas NHS Foundation Trust,02/10/2020,(81000) Surgical Appliances,(id:42213) Medical Specialties,TALAR MADE ORTHOTICS LTD,id:13356983  ,  93.00
Department of Health,Guys and St Thomas NHS Foundation Trust,02/10/2020,(81000) Surgical Appliances,(id:42213) Medical Specialties,TALAR MADE ORTHOTICS LTD,id:13357081  , 663.00
Department of Health,Guys and St Thomas NHS Foundation Trust,16/10/2020,(81000) Surgical Appliances,(id:42213) Medical Specialties,TALAR MADE ORTHOTICS LTD,id:13389055  ,  46.50
Department of Health,Guys and St Thomas NHS Foundation Trust,29/10/2020,(81200) Medical Surgical Supplies & Equipment,(id:42209) Medical Specialties,MEDTRONIC LTD,id:13385554, 270.33
Department of Health,Guys and St Thomas NHS Foundation Trust,09/10/2020,(81200) Medical Surgical Supplies & Equipment,(id:42208) Medical Specialties,DEXCOM INTERNATIONAL LTD,id:13373634    , 793.50
Department of Health,Guys and St Thomas NHS Foundation Trust,16/10/2020,(81200) Medical Surgical Supplies & Equipment,(id:42208) Medical Specialties,DEXCOM INTERNATIONAL LTD,id:13387854    , 793.50
Department of Health,Guys and St Thomas NHS Foundation Trust,29/10/2020,(81200) Medical Surgical Supplies & Equipment,(id:42208) Medical Specialties,INSULET INTERNATIONAL LTD,id:13354147   , 712.08
Department of Health,Guys and St Thomas NHS Foundation Trust,29/10/2020,(81200) Medical Surgical Supplies & Equipment,(id:42208) Medical Specialties,INSULET INTERNATIONAL LTD,id:13350183   , 947.52
Department of Health,Guys and St Thomas NHS Foundation Trust,29/10/2020,(81200) Medical Surgical Supplies & Equipment,(id:42208) Medical Specialties,MEDTRONIC LTD,id:13363458, 515.58
Department of Health,Guys and St Thomas NHS Foundation Trust,29/10/2020,(81200) Medical Surgical Supplies & Equipment,(id:42208) Medical Specialties,MEDTRONIC LTD,id:13359130, 728.93
Department of Health,Guys and St Thomas NHS Foundation Trust,29/10/2020,(81200) Medical Surgical Supplies & Equipment,(id:42208) Medical Specialties,DEXCOM INTERNATIONAL LTD,id:13394116    , 793.50
Department of Health,Guys and St Thomas NHS Foundation Trust,29/10/2020,(81200) Medical Surgical Supplies & Equipment,(id:42208) Medical Specialties,DEXCOM INTERNATIONAL LTD,id:13359435    , 793.50
Department of Health,Guys and St Thomas NHS Foundation Trust,29/10/2020,(81200) Medical Surgical Supplies & Equipment,(id:42208) Medical Specialties,MEDTRONIC LTD,id:13348944, 567.00
Department of Health,Guys and St Thomas NHS Foundation Trust,29/10/2020,(81200) Medical Surgical Supplies & Equipment,(id:42208) Medical Specialties,INSULET INTERNATIONAL LTD,id:13385018   , 706.32
Department of Health,Guys and St Thomas NHS Foundation Trust,29/10/2020,(81200) Medical Surgical Supplies & Equipment,(id:42208) Medical Specialties,INSULET INTERNATIONAL LTD,id:13411912   , 706.32
Department of Health,Guys and St Thomas NHS Foundation Trust,29/10/2020,(81200) Medical Surgical Supplies & Equipment,(id:42208) Medical Specialties,INSULET INTERNATIONAL LTD,id:13411909   , 706.32
Department of Health,Guys and St Thomas NHS Foundation Trust,29/10/2020,(81200) Medical Surgical Supplies & Equipment,(id:42208) Medical Specialties,INSULET INTERNATIONAL LTD,id:13421238   , 706.32
Department of Health,Guys and St Thomas NHS Foundation Trust,29/10/2020,(81200) Medical Surgical Supplies & Equipment,(id:42208) Medical Specialties,INSULET INTERNATIONAL LTD,id:13389175   , 712.08
Department of Health,Guys and St Thomas NHS Foundation Trust,02/10/2020,(81200) Medical Surgical Supplies & Equipment,(id:42208) Medical Specialties,DEXCOM INTERNATIONAL LTD,id:13358497    , 793.50
Department of Health,Guys and St Thomas NHS Foundation Trust,23/10/2020,(81200) Medical Surgical Supplies & Equipment,(id:42208) Medical Specialties,DEXCOM INTERNATIONAL LTD,id:13367334    , 793.50
Department of Health,Guys and St Thomas NHS Foundation Trust,23/10/2020,(81200) Medical Surgical Supplies & Equipment,(id:42208) Medical Specialties,MEDTRONIC LTD,id:13381263, 567.00
Department of Health,Guys and St Thomas NHS Foundation Trust,09/10/2020,(50200) Consultants,(id:42208) Medical Specialties,KINGS COLLEGE LONDON:03529700,id:13288314,1377.50
Department of Health,Guys and St Thomas NHS Foundation Trust,23/10/2020,(82700) Uniforms & Clothing,(id:42204) Medical Specialties,NHS SUPPLY CHAIN (MAIDSTONE),id:13356014   , 211.88
Department of Health,Guys and St Thomas NHS Foundation Trust,02/10/2020,(81000) Surgical Appliances,(id:42204) Medical Specialties,TALAR MADE ORTHOTICS LTD,id:13356981  , 348.00
Department of Health,Guys and St Thomas NHS Foundation Trust,09/10/2020,(89595) Non-Healthcare from Foundation Trusts,(id:42202) Medical Specialties,MANCHESTER UNIVERSITY NHS FOUNDATION TRUST,id:10270551 , 636.00
Department of Health,Guys and St Thomas NHS Foundation Trust,23/10/2020,(81700) Lab Equipment Purchase,(id:42205) Medical Specialties,NHS SUPPLY CHAIN (MAIDSTONE),id:13356014,  16.80
Department of Health,Guys and St Thomas NHS Foundation Trust,02/10/2020,(81200) Medical Surgical Supplies & Equipment,(id:41937) Medical Specialties,BOSTON SCIENTIFIC LTD,id:13358136  ,    12600.00
Department of Health,Guys and St Thomas NHS Foundation Trust,02/10/2020,(81200) Medical Surgical Supplies & Equipment,(id:41937) Medical Specialties,BOSTON SCIENTIFIC LTD,id:13358090  ,    12600.00
Department of Health,Guys and St Thomas NHS Foundation Trust,02/10/2020,(81200) Medical Surgical Supplies & Equipment,(id:41937) Medical Specialties,BOSTON SCIENTIFIC LTD,id:13358088  ,    12600.00
Department of Health,Guys and St Thomas NHS Foundation Trust,02/10/2020,(81200) Medical Surgical Supplies & Equipment,(id:41937) Medical Specialties,BOSTON SCIENTIFIC LTD,id:13358137  ,    12600.00
Department of Health,Guys and St Thomas NHS Foundation Trust,23/10/2020,(81100) Dressings,(id:41937) Medical Specialties,NHS SUPPLY CHAIN (MAIDSTONE),id:13336014   ,  52.16
Department of Health,Guys and St Thomas NHS Foundation Trust,23/10/2020,(82000) Provisions & Kitchens,(id:41937) Medical Specialties,NHS SUPPLY CHAIN (MAIDSTONE),id:13356014 , 190.07
Department of Health,Guys and St Thomas NHS Foundation Trust,09/10/2020,(50200) Consultants,(id:41937) Medical Specialties,KINGS COLLEGE LONDON:03529700,id:13288132,3447.23
Department of Health,Guys and St Thomas NHS Foundation Trust,02/10/2020,(81200) Medical Surgical Supplies & Equipment,(id:4621419) TAP,SQUADRON MEDICAL LTD,id:13063765  , 535.39
Department of Health,Guys and St Thomas NHS Foundation Trust,23/10/2020,(81200) Medical Surgical Supplies & Equipment,(id:850419) TAP,NHS SUPPLY CHAIN (MAIDSTONE),id:13356014, 121.18
Department of Health,Guys and St Thomas NHS Foundation Trust,23/10/2020,(81200) Medical Surgical Supplies & Equipment,(id:850419) TAP,NHS SUPPLY CHAIN (MAIDSTONE),id:13336014, 516.56
Department of Health,Guys and St Thomas NHS Foundation Trust,23/10/2020,(83400) Office Equipment,(id:850419) TAP,NHS SUPPLY CHAIN (MAIDSTONE),id:13336014 ,   2.94
Department of Health,Guys and St Thomas NHS Foundation Trust,23/10/2020,(82600) Uniforms & Clothing,(id:850419) TAP,NHS SUPPLY CHAIN (MAIDSTONE),id:13336014   , 276.72
Department of Health,Guys and St Thomas NHS Foundation Trust,23/10/2020,(81200) Medical Surgical Supplies & Equipment,(id:41897) TAP,NHS SUPPLY CHAIN (MAIDSTONE),id:13336014 ,1671.95
Department of Health,Guys and St Thomas NHS Foundation Trust,09/10/2020,(81100) Dressings,(id:41897) TAP,ELIS UK LIMITED,id:13351894  , 488.50
Department of Health,Guys and St Thomas NHS Foundation Trust,23/10/2020,(81100) Dressings,(id:41897) TAP,ELIS UK LIMITED,id:13375737  , 541.58
Department of Health,Guys and St Thomas NHS Foundation Trust,23/10/2020,(81275) Medical Surgical Supplies & Equipment,(id:41897) TAP,NHS SUPPLY CHAIN (MAIDSTONE),id:13356014 ,   5.93
Department of Health,Guys and St Thomas NHS Foundation Trust,09/10/2020,(50562) Qualified Nursing Staff,(id:41897) TAP,JUST NURSES (NURSCO HEALTHCARE LIMITED),id:13373482    , 629.85
Department of Health,Guys and St Thomas NHS Foundation Trust,09/10/2020,(81100) Dressings,(id:41894) TAP,SQUADRON MEDICAL LTD,id:13246998  ,   5.07
Department of Health,Guys and St Thomas NHS Foundation Trust,23/10/2020,(81100) Dressings,(id:41894) TAP,ELIS UK LIMITED,id:13375715  , 410.40
Department of Health,Guys and St Thomas NHS Foundation Trust,23/10/2020,(82600) Uniforms & Clothing,(id:41894) TAP,NHS SUPPLY CHAIN (MAIDSTONE),id:13336014    ,  16.51
Department of Health,Guys and St Thomas NHS Foundation Trust,23/10/2020,(82600) Uniforms & Clothing,(id:41894) TAP,NHS SUPPLY CHAIN (MAIDSTONE),id:13356014    ,  15.73
Department of Health,Guys and St Thomas NHS Foundation Trust,23/10/2020,(83400) Office Equipment,(id:41894) TAP,NHS SUPPLY CHAIN (MAIDSTONE),id:13336014  ,  95.45
Department of Health,Guys and St Thomas NHS Foundation Trust,16/10/2020,(81200) Medical Surgical Supplies & Equipment,(id:41894) TAP,SQUADRON MEDICAL LTD,id:13355993    , 295.76
Department of Health,Guys and St Thomas NHS Foundation Trust,29/10/2020,(82600) Uniforms & Clothing,(id:41883) TAP,TOFFELN (BRISTOL),id:13389275, 505.00
Department of Health,Guys and St Thomas NHS Foundation Trust,23/10/2020,(81100) Dressings,(id:41883) TAP,SQUADRON MEDICAL LTD,id:13341226  , 158.98
Department of Health,Guys and St Thomas NHS Foundation Trust,23/10/2020,(81100) Dressings,(id:41883) TAP,ELIS UK LIMITED,id:13375683  , 989.79
Department of Health,Guys and St Thomas NHS Foundation Trust,16/10/2020,(81100) Dressings,(id:41883) TAP,SQUADRON MEDICAL LTD,id:13353217  ,   2.70
Department of Health,Guys and St Thomas NHS Foundation Trust,23/10/2020,(81200) Medical Surgical Supplies & Equipment,(id:41883) TAP,NHS SUPPLY CHAIN (MAIDSTONE),id:13336014 ,1171.94
Department of Health,Guys and St Thomas NHS Foundation Trust,02/10/2020,(81200) Medical Surgical Supplies & Equipment,(id:41883) TAP,SQUADRON MEDICAL LTD,id:13330177    ,  13.68
Department of Health,Guys and St Thomas NHS Foundation Trust,16/10/2020,(81200) Medical Surgical Supplies & Equipment,(id:41883) TAP,SQUADRON MEDICAL LTD,id:13317621    ,  51.56
Department of Health,Guys and St Thomas NHS Foundation Trust,16/10/2020,(81200) Medical Surgical Supplies & Equipment,(id:41883) TAP,SQUADRON MEDICAL LTD,id:13355946    , 194.60
Department of Health,Guys and St Thomas NHS Foundation Trust,16/10/2020,(81200) Medical Surgical Supplies & Equipment,(id:41883) TAP,SQUADRON MEDICAL LTD,id:13322300    ,  14.10
Department of Health,Guys and St Thomas NHS Foundation Trust,23/10/2020,(50552) Qualified Nursing Staff,(id:41883) TAP,CONTINENTAL NURSE LTD,id:13415680  ,2010.03
Department of Health,Guys and St Thomas NHS Foundation Trust,23/10/2020,(83400) Office Equipment,(id:41883) TAP,NHS SUPPLY CHAIN (MAIDSTONE),id:13336014  , 380.83
Department of Health,Guys and St Thomas NHS Foundation Trust,02/10/2020,(81200) Medical Surgical Supplies & Equipment,(id:41907) TAP,SQUADRON MEDICAL LTD,id:13190986    , 504.50
Department of Health,Guys and St Thomas NHS Foundation Trust,02/10/2020,(81200) Medical Surgical Supplies & Equipment,(id:41907) TAP,ZOLL MEDICAL UK LTD,id:13352427, 508.80
Department of Health,Guys and St Thomas NHS Foundation Trust,23/10/2020,(81100) Dressings,(id:41907) TAP,NHS SUPPLY CHAIN (MAIDSTONE),id:13336014    ,  32.34
Department of Health,Guys and St Thomas NHS Foundation Trust,02/10/2020,(81200) Medical Surgical Supplies & Equipment,(id:41906) TAP,SQUADRON MEDICAL LTD,id:13340865    , 468.01
Department of Health,Guys and St Thomas NHS Foundation Trust,23/10/2020,(82600) Uniforms & Clothing,(id:41906) TAP,NHS SUPPLY CHAIN (MAIDSTONE),id:13356014    , 115.17
Department of Health,Guys and St Thomas NHS Foundation Trust,23/10/2020,(81255) Medical Surgical Supplies & Equipment,(id:41906) TAP,NHS SUPPLY CHAIN (MAIDSTONE),id:13356014 ,   1.56
Department of Health,Guys and St Thomas NHS Foundation Trust,23/10/2020,(81200) Medical Surgical Supplies & Equipment,(id:41905) TAP,NHS SUPPLY CHAIN (MAIDSTONE),id:13356014 ,2875.81
Department of Health,Guys and St Thomas NHS Foundation Trust,23/10/2020,(81200) Medical Surgical Supplies & Equipment,(id:41905) TAP,INTERSURGICAL LTD,id:13376492  , 739.20
Department of Health,Guys and St Thomas NHS Foundation Trust,23/10/2020,(81100) Dressings,(id:41905) TAP,NHS SUPPLY CHAIN (MAIDSTONE),id:13336014    ,  18.20
Department of Health,Guys and St Thomas NHS Foundation Trust,23/10/2020,(81100) Dressings,(id:41905) TAP,NHS SUPPLY CHAIN (MAIDSTONE),id:13356014    ,  78.51
Department of Health,Guys and St Thomas NHS Foundation Trust,09/10/2020,(50200) Consultants,(id:41905) TAP,KINGS COLLEGE LONDON:03529700,id:13374194 ,2356.77
Department of Health,Guys and St Thomas NHS Foundation Trust,23/10/2020,(81200) Medical Surgical Supplies & Equipment,(id:41918) TAP,NHS SUPPLY CHAIN (MAIDSTONE),id:13336014 ,  60.03
Department of Health,Guys and St Thomas NHS Foundation Trust,23/10/2020,(81200) Medical Surgical Supplies & Equipment,(id:41918) TAP,SQUADRON MEDICAL LTD,id:13353429    , 204.17
Department of Health,Guys and St Thomas NHS Foundation Trust,23/10/2020,(81200) Medical Surgical Supplies & Equipment,(id:41918) TAP,SQUADRON MEDICAL LTD,id:13332068    , 453.29
Department of Health,Guys and St Thomas NHS Foundation Trust,16/10/2020,(81100) Dressings,(id:41918) TAP,ELIS UK LIMITED,id:13351655  , 479.60
Department of Health,Guys and St Thomas NHS Foundation Trust,16/10/2020,(81100) Dressings,(id:41918) TAP,ELIS UK LIMITED,id:13354074  , 501.45
Department of Health,Guys and St Thomas NHS Foundation Trust,23/10/2020,(82000) Provisions & Kitchens,(id:41916) TAP,NHS SUPPLY CHAIN (MAIDSTONE),id:13336014  ,  59.12
Department of Health,Guys and St Thomas NHS Foundation Trust,09/10/2020,(50562) Qualified Nursing Staff,(id:41916) TAP,MEDICSPRO LTD,id:13373184, 717.46
Department of Health,Guys and St Thomas NHS Foundation Trust,23/10/2020,(83400) Office Equipment,(id:42485) Surgery,NHS SUPPLY CHAIN (MAIDSTONE),id:13336014   , 215.03
Department of Health,Guys and St Thomas NHS Foundation Trust,23/10/2020,(81255) Medical Surgical Supplies & Equipment,(id:42485) Surgery,NHS SUPPLY CHAIN (MAIDSTONE),id:13336014  ,    .94
Department of Health,Guys and St Thomas NHS Foundation Trust,23/10/2020,(81700) Lab Equipment Purchase,(id:42485) Surgery,NHS SUPPLY CHAIN (MAIDSTONE),id:13336014  ,  15.00
Department of Health,Guys and St Thomas NHS Foundation Trust,23/10/2020,(81700) Lab Equipment Purchase,(id:42485) Surgery,NHS SUPPLY CHAIN (MAIDSTONE),id:13356014  ,  11.86
Department of Health,Guys and St Thomas NHS Foundation Trust,23/10/2020,(81200) Medical Surgical Supplies & Equipment,(id:42484) Surgery,NHS SUPPLY CHAIN (MAIDSTONE),id:13336014  , 431.28
Department of Health,Guys and St Thomas NHS Foundation Trust,23/10/2020,(81200) Medical Surgical Supplies & Equipment,(id:42484) Surgery,MEDARTIS LTD,id:13413397   , 751.46
Department of Health,Guys and St Thomas NHS Foundation Trust,29/10/2020,(81200) Medical Surgical Supplies & Equipment,(id:42484) Surgery,SEVERN HEALTHCARE TECHNOLOGIES LTD,id:13407141 ,4566.00
Department of Health,Guys and St Thomas NHS Foundation Trust,02/10/2020,(81200) Medical Surgical Supplies & Equipment,(id:42484) Surgery,SQUADRON MEDICAL LTD,id:13341166, 753.15
Department of Health,Guys and St Thomas NHS Foundation Trust,09/10/2020,(81200) Medical Surgical Supplies & Equipment,(id:42484) Surgery,OSTEOTEC LTD,id:13359234   ,1148.52
Department of Health,Guys and St Thomas NHS Foundation Trust,09/10/2020,(81200) Medical Surgical Supplies & Equipment,(id:42484) Surgery,SQUADRON MEDICAL LTD,id:13219544, 496.08
Department of Health,Guys and St Thomas NHS Foundation Trust,23/10/2020,(81200) Medical Surgical Supplies & Equipment,(id:42481) Surgery,NHS SUPPLY CHAIN (MAIDSTONE),id:13336014  ,  95.33
Department of Health,Guys and St Thomas NHS Foundation Trust,23/10/2020,(81200) Medical Surgical Supplies & Equipment,(id:42481) Surgery,DELTA SURGICAL LTD,id:13366858  ,  98.04
Department of Health,Guys and St Thomas NHS Foundation Trust,23/10/2020,(81200) Medical Surgical Supplies & Equipment,(id:42467) Surgery,NHS SUPPLY CHAIN (MAIDSTONE),id:13356014  , 560.00
Department of Health,Guys and St Thomas NHS Foundation Trust,23/10/2020,(81200) Medical Surgical Supplies & Equipment,(id:42467) Surgery,JOHNSON & JOHNSON MEDICAL LTD,id:13368060 , 782.50
Department of Health,Guys and St Thomas NHS Foundation Trust,23/10/2020,(81200) Medical Surgical Supplies & Equipment,(id:42467) Surgery,LEDA ORTHOPAEDICS LTD,id:13413656    ,1320.00
Department of Health,Guys and St Thomas NHS Foundation Trust,02/10/2020,(81200) Medical Surgical Supplies & Equipment,(id:42467) Surgery,JOHNSON & JOHNSON MEDICAL LTD,id:13336942 , 895.79
Department of Health,Guys and St Thomas NHS Foundation Trust,02/10/2020,(81200) Medical Surgical Supplies & Equipment,(id:42467) Surgery,JOHNSON & JOHNSON MEDICAL LTD,id:13340952 , 787.56
Department of Health,Guys and St Thomas NHS Foundation Trust,02/10/2020,(81200) Medical Surgical Supplies & Equipment,(id:42467) Surgery,JOHNSON & JOHNSON MEDICAL LTD,id:13330008 , 613.13
Department of Health,Guys and St Thomas NHS Foundation Trust,23/10/2020,(83400) Office Equipment,(id:42466) Surgery,NHS SUPPLY CHAIN (MAIDSTONE),id:13356014   ,  14.10
Department of Health,Guys and St Thomas NHS Foundation Trust,02/10/2020,(81000) Surgical Appliances,(id:42466) Surgery,TALAR MADE ORTHOTICS LTD,id:13356976    ,  14.40
Department of Health,Guys and St Thomas NHS Foundation Trust,23/10/2020,(82800) Bedding & Linen,(id:42465) Surgery,NHS SUPPLY CHAIN (MAIDSTONE),id:13336014    , 202.51
Department of Health,Guys and St Thomas NHS Foundation Trust,23/10/2020,(81100) Dressings,(id:42465) Surgery,NHS SUPPLY CHAIN (MAIDSTONE),id:13336014,1516.96
Department of Health,Guys and St Thomas NHS Foundation Trust,02/10/2020,(81000) Surgical Appliances,(id:42465) Surgery,TALAR MADE ORTHOTICS LTD,id:13357081    ,   8.50
Department of Health,Guys and St Thomas NHS Foundation Trust,23/10/2020,(81700) Lab Equipment Purchase,(id:42465) Surgery,NHS SUPPLY CHAIN (MAIDSTONE),id:13356014  ,   3.14
Department of Health,Guys and St Thomas NHS Foundation Trust,23/10/2020,(82800) Bedding & Linen,(id:42463) Surgery,NHS SUPPLY CHAIN (MAIDSTONE),id:13356014    ,   3.72
Department of Health,Guys and St Thomas NHS Foundation Trust,23/10/2020,(81200) Medical Surgical Supplies & Equipment,(id:42463) Surgery,SQUADRON MEDICAL LTD,id:13337289,1429.18
Department of Health,Guys and St Thomas NHS Foundation Trust,23/10/2020,(81225) Medical Surgical Supplies & Equipment,(id:42461) Surgery,NHS SUPPLY CHAIN (MAIDSTONE),id:13336014  , 142.20
Department of Health,Guys and St Thomas NHS Foundation Trust,23/10/2020,(81100) Dressings,(id:42461) Surgery,NHS SUPPLY CHAIN (MAIDSTONE),id:13336014, 162.97
Department of Health,Guys and St Thomas NHS Foundation Trust,16/10/2020,(81200) Medical Surgical Supplies & Equipment,(id:42461) Surgery,SPALDING MEDICAL LTD,id:13383130, 500.34
Department of Health,Guys and St Thomas NHS Foundation Trust,16/10/2020,(81000) Surgical Appliances,(id:42461) Surgery,TALAR MADE ORTHOTICS LTD,id:13389102    ,  46.50
Department of Health,Guys and St Thomas NHS Foundation Trust,16/10/2020,(81000) Surgical Appliances,(id:42461) Surgery,TALAR MADE ORTHOTICS LTD,id:13388882    ,  93.00
Department of Health,Guys and St Thomas NHS Foundation Trust,23/10/2020,(82700) Uniforms & Clothing,(id:42459) Surgery,NHS SUPPLY CHAIN (MAIDSTONE),id:13356014,  31.68
Department of Health,Guys and St Thomas NHS Foundation Trust,23/10/2020,(82800) Bedding & Linen,(id:42459) Surgery,NHS SUPPLY CHAIN (MAIDSTONE),id:13336014    , 151.60
Department of Health,Guys and St Thomas NHS Foundation Trust,23/10/2020,(81255) Medical Surgical Supplies & Equipment,(id:42459) Surgery,NHS SUPPLY CHAIN (MAIDSTONE),id:13336014  ,   4.32
Department of Health,Guys and St Thomas NHS Foundation Trust,02/10/2020,(81000) Surgical Appliances,(id:42459) Surgery,TALAR MADE ORTHOTICS LTD,id:13356976    ,  46.50
Department of Health,Guys and St Thomas NHS Foundation Trust,23/10/2020,(82000) Provisions & Kitchens,(id:42458) Surgery,NHS SUPPLY CHAIN (MAIDSTONE),id:13356014   ,  10.20
Department of Health,Guys and St Thomas NHS Foundation Trust,23/10/2020,(81200) Medical Surgical Supplies & Equipment,(id:42458) Surgery,NHS SUPPLY CHAIN (MAIDSTONE),id:13356014  , 602.24
Department of Health,Guys and St Thomas NHS Foundation Trust,23/10/2020,(81225) Medical Surgical Supplies & Equipment,(id:42458) Surgery,NHS SUPPLY CHAIN (MAIDSTONE),id:13336014  ,   9.70
Department of Health,Guys and St Thomas NHS Foundation Trust,09/10/2020,(50200) Consultants,(id:41863) PACCS,KINGS COLLEGE LONDON:03529700,id:13126294    ,5088.20
Department of Health,Guys and St Thomas NHS Foundation Trust,29/10/2020,(50200) Consultants,(id:41863) PACCS,KINGS COLLEGE LONDON:03529700,id:13418194    ,5088.20
Department of Health,Guys and St Thomas NHS Foundation Trust,07/10/2020,(81200) Medical Surgical Supplies & Equipment,(id:41863) PACCS,IME 2016 BV ( A SUBSIDIARY OF ITMAR MEDICAL LTD),id:13366814    ,4646.40
Department of Health,Guys and St Thomas NHS Foundation Trust,23/10/2020,(81200) Medical Surgical Supplies & Equipment,(id:41863) PACCS,SAD LIGHTBOX CO LTD,id:13381874   ,2475.60
Department of Health,Guys and St Thomas NHS Foundation Trust,23/10/2020,(81200) Medical Surgical Supplies & Equipment,(id:41863) PACCS,RESMED (UK) LTD,id:13396000  ,4620.00
Department of Health,Guys and St Thomas NHS Foundation Trust,23/10/2020,(81200) Medical Surgical Supplies & Equipment,(id:41863) PACCS,RESMED (UK) LTD,id:13395999  ,4620.00
Department of Health,Guys and St Thomas NHS Foundation Trust,09/10/2020,(81245) Medical Surgical Supplies & Equipment,(id:41863) PACCS,STOWOOD SCIENTIFIC INSTRUMENTS,id:13361337  ,2862.30
Department of Health,Guys and St Thomas NHS Foundation Trust,16/10/2020,(86300) Healthcare from non-NHS bodies,(id:1856419) PACCS,REMEO HEALTHCARE LIMITED,id:13394759   ,    64238.58
Department of Health,Guys and St Thomas NHS Foundation Trust,02/10/2020,(86300) Healthcare from non-NHS bodies,(id:1856419) PACCS,REMEO HEALTHCARE LIMITED,id:13356428   ,   109826.15
Department of Health,Guys and St Thomas NHS Foundation Trust,02/10/2020,(86300) Healthcare from non-NHS bodies,(id:1856419) PACCS,REMEO HEALTHCARE LIMITED,id:13356432   ,   -15515.39
Department of Health,Guys and St Thomas NHS Foundation Trust,23/10/2020,(83400) Office Equipment,(id:41935) PACCS,NHS SUPPLY CHAIN (MAIDSTONE),id:13356014, 124.49
Department of Health,Guys and St Thomas NHS Foundation Trust,23/10/2020,(82800) Bedding & Linen,(id:41935) PACCS,NHS SUPPLY CHAIN (MAIDSTONE),id:13336014 , 190.98
Department of Health,Guys and St Thomas NHS Foundation Trust,23/10/2020,(81100) Dressings,(id:41935) PACCS,NHS SUPPLY CHAIN (MAIDSTONE),id:13356014  , 818.94
Department of Health,Guys and St Thomas NHS Foundation Trust,23/10/2020,(81200) Medical Surgical Supplies & Equipment,(id:41935) PACCS,RESMED (UK) LTD,id:13395996  , 672.00
Department of Health,Guys and St Thomas NHS Foundation Trust,23/10/2020,(81200) Medical Surgical Supplies & Equipment,(id:41935) PACCS,RESMED (UK) LTD,id:13396074  ,3022.80
Department of Health,Guys and St Thomas NHS Foundation Trust,16/10/2020,(81200) Medical Surgical Supplies & Equipment,(id:41935) PACCS,SQUADRON MEDICAL LTD,id:13355826  ,  18.36
Department of Health,Guys and St Thomas NHS Foundation Trust,09/10/2020,(81200) Medical Surgical Supplies & Equipment,(id:41935) PACCS,RESMED (UK) LTD,id:13375692  ,1624.56
Department of Health,Guys and St Thomas NHS Foundation Trust,09/10/2020,(81200) Medical Surgical Supplies & Equipment,(id:41935) PACCS,BREAS MEDICAL LTD,id:13372374,3489.60
Department of Health,Guys and St Thomas NHS Foundation Trust,29/10/2020,(50532) Unqualified Nursing Staff,(id:41935) PACCS,MSI GROUP LTD,id:13427172 , 270.53
Department of Health,Guys and St Thomas NHS Foundation Trust,29/10/2020,(84656) Establishment,(id:41935) PACCS,DICT8 LIMITED,id:13424654   , 430.56
Department of Health,Guys and St Thomas NHS Foundation Trust,02/10/2020,(81000) Surgical Appliances,(id:41935) PACCS,TALAR MADE ORTHOTICS LTD,id:13357075 ,  46.50
Department of Health,Guys and St Thomas NHS Foundation Trust,02/10/2020,(81000) Surgical Appliances,(id:41935) PACCS,TALAR MADE ORTHOTICS LTD,id:13357081 , 194.50
Department of Health,Guys and St Thomas NHS Foundation Trust,29/10/2020,(81275) Medical Surgical Supplies & Equipment,(id:41935) PACCS,RADIOMETER LTD,id:13421521   ,1821.78
Department of Health,Guys and St Thomas NHS Foundation Trust,16/10/2020,(89440) Research and Development,(id:1837419) PACCS,NHS GREATER GLASGOW & CLYDE,id:13395488 ,1000.00
Department of Health,Guys and St Thomas NHS Foundation Trust,23/10/2020,(81200) Medical Surgical Supplies & Equipment,(id:2121419) PACCS,NHS SUPPLY CHAIN (MAIDSTONE),id:13336014  , 842.42
Department of Health,Guys and St Thomas NHS Foundation Trust,23/10/2020,(81100) Dressings,(id:2121419) PACCS,NHS SUPPLY CHAIN (MAIDSTONE),id:13356014,  61.63
Department of Health,Guys and St Thomas NHS Foundation Trust,23/10/2020,(81255) Medical Surgical Supplies & Equipment,(id:2121419) PACCS,NHS SUPPLY CHAIN (MAIDSTONE),id:13336014  ,  70.93
Department of Health,Guys and St Thomas NHS Foundation Trust,23/10/2020,(81100) Dressings,(id:1842421) PACCS,NHS SUPPLY CHAIN (MAIDSTONE),id:13356014, 273.06
Department of Health,Guys and St Thomas NHS Foundation Trust,29/10/2020,(50562) Qualified Nursing Staff,(id:41931) PACCS,JUST NURSES (NURSCO HEALTHCARE LIMITED),id:13427191  , 461.43
Department of Health,Guys and St Thomas NHS Foundation Trust,16/10/2020,(82600) Uniforms & Clothing,(id:41928) PACCS,SQUADRON MEDICAL LTD,id:13330257,2100.00
Department of Health,Guys and St Thomas NHS Foundation Trust,23/10/2020,(83400) Office Equipment,(id:41928) PACCS,NHS SUPPLY CHAIN (MAIDSTONE),id:13336014, 339.57
Department of Health,Guys and St Thomas NHS Foundation Trust,23/10/2020,(81100) Dressings,(id:41928) PACCS,NHS SUPPLY CHAIN (MAIDSTONE),id:13356014  ,4492.63
Department of Health,Guys and St Thomas NHS Foundation Trust,02/10/2020,(81100) Dressings,(id:41928) PACCS,TELEFLEX MEDICAL,id:13346734    , 639.00
Department of Health,Guys and St Thomas NHS Foundation Trust,23/10/2020,(81200) Medical Surgical Supplies & Equipment,(id:41928) PACCS,NHS SUPPLY CHAIN (MAIDSTONE),id:13336014    ,5637.64
Department of Health,Guys and St Thomas NHS Foundation Trust,23/10/2020,(81200) Medical Surgical Supplies & Equipment,(id:41928) PACCS,NHS SUPPLY CHAIN (MAIDSTONE),id:13356014    ,8688.68
Department of Health,Guys and St Thomas NHS Foundation Trust,02/10/2020,(81200) Medical Surgical Supplies & Equipment,(id:41928) PACCS,STRYKER UK LTD,id:13342934   , 576.00
Department of Health,Guys and St Thomas NHS Foundation Trust,16/10/2020,(81200) Medical Surgical Supplies & Equipment,(id:41928) PACCS,STRYKER UK LTD,id:13359534   , 792.00
Department of Health,Guys and St Thomas NHS Foundation Trust,29/10/2020,(81200) Medical Surgical Supplies & Equipment,(id:41928) PACCS,TERUMO BCT EUROPE NV/SA  (PREVIOUSLY CARIDIAN),id:13421493 ,3333.53
Department of Health,Guys and St Thomas NHS Foundation Trust,29/10/2020,(81200) Medical Surgical Supplies & Equipment,(id:41928) PACCS,DRAEGER MEDICAL UK LTD,id:13416075, 571.20
Department of Health,Guys and St Thomas NHS Foundation Trust,16/10/2020,(50552) Qualified Nursing Staff,(id:41928) PACCS,MSI GROUP LTD,id:13391454   , 346.02
Department of Health,Guys and St Thomas NHS Foundation Trust,09/10/2020,(50552) Qualified Nursing Staff,(id:41928) PACCS,MSI GROUP LTD,id:13373513   , 346.27
Department of Health,Guys and St Thomas NHS Foundation Trust,02/10/2020,(50552) Qualified Nursing Staff,(id:41928) PACCS,MSI GROUP LTD,id:13354972   , 325.92
Department of Health,Guys and St Thomas NHS Foundation Trust,29/10/2020,(50522) Unqualified Nursing Staff,(id:41928) PACCS,MSI GROUP LTD,id:13427317 , 267.83
Department of Health,Guys and St Thomas NHS Foundation Trust,23/10/2020,(50522) Unqualified Nursing Staff,(id:41928) PACCS,GLOBE LOCUMS LTD,id:13414307   , 251.31
Department of Health,Guys and St Thomas NHS Foundation Trust,16/10/2020,(89270) Establishment,(id:41928) PACCS,BIOQUELL UK LTD,id:13358039 ,1988.16
Department of Health,Guys and St Thomas NHS Foundation Trust,23/10/2020,(50562) Qualified Nursing Staff,(id:41928) PACCS,JUST NURSES (NURSCO HEALTHCARE LIMITED),id:13414541  , 485.51
Department of Health,Guys and St Thomas NHS Foundation Trust,29/10/2020,(50562) Qualified Nursing Staff,(id:41928) PACCS,PULSE HEALTHCARE LIMITED,id:13427275  , 431.60
Department of Health,Guys and St Thomas NHS Foundation Trust,29/10/2020,(50562) Qualified Nursing Staff,(id:41928) PACCS,PULSE HEALTHCARE LIMITED,id:13427374  , 431.60
Department of Health,Guys and St Thomas NHS Foundation Trust,29/10/2020,(50562) Qualified Nursing Staff,(id:41928) PACCS,JUST NURSES (NURSCO HEALTHCARE LIMITED),id:13427189  , 444.46
Department of Health,Guys and St Thomas NHS Foundation Trust,29/10/2020,(50562) Qualified Nursing Staff,(id:41928) PACCS,JUST NURSES (NURSCO HEALTHCARE LIMITED),id:13427233  , 444.86
Department of Health,Guys and St Thomas NHS Foundation Trust,29/10/2020,(50562) Qualified Nursing Staff,(id:41928) PACCS,JUST NURSES (NURSCO HEALTHCARE LIMITED),id:13427390  , 480.21
Department of Health,Guys and St Thomas NHS Foundation Trust,02/10/2020,(50562) Qualified Nursing Staff,(id:41928) PACCS,JUST NURSES (NURSCO HEALTHCARE LIMITED),id:13358558  , 512.02
Department of Health,Guys and St Thomas NHS Foundation Trust,09/10/2020,(50562) Qualified Nursing Staff,(id:41928) PACCS,JUST NURSES (NURSCO HEALTHCARE LIMITED),id:13373429  , 444.86
Department of Health,Guys and St Thomas NHS Foundation Trust,09/10/2020,(50562) Qualified Nursing Staff,(id:41928) PACCS,JUST NURSES (NURSCO HEALTHCARE LIMITED),id:13373533  , 903.85
Department of Health,Guys and St Thomas NHS Foundation Trust,09/10/2020,(50562) Qualified Nursing Staff,(id:41928) PACCS,JUST NURSES (NURSCO HEALTHCARE LIMITED),id:13373248  , 459.00
Department of Health,Guys and St Thomas NHS Foundation Trust,29/10/2020,(81200) Medical Surgical Supplies & Equipment,(id:41927) PACCS,STRYKER UK LTD,id:13385262   , 864.00
Department of Health,Guys and St Thomas NHS Foundation Trust,23/10/2020,(81230) Medical Surgical Supplies & Equipment,(id:41927) PACCS,NHS SUPPLY CHAIN (MAIDSTONE),id:13336014    ,  42.70
Department of Health,Guys and St Thomas NHS Foundation Trust,23/10/2020,(81700) Lab Equipment Purchase,(id:41927) PACCS,NHS SUPPLY CHAIN (MAIDSTONE),id:13356014    ,  12.61
Department of Health,Guys and St Thomas NHS Foundation Trust,23/10/2020,(83400) Office Equipment,(id:41864) PACCS,NHS SUPPLY CHAIN (MAIDSTONE),id:13356014,  52.16
Department of Health,Guys and St Thomas NHS Foundation Trust,09/10/2020,(50200) Consultants,(id:41864) PACCS,KING'S COLLEGE HOSPITAL NHS FOUNDATION TRUST,id:12589561    ,1021.42
Department of Health,Guys and St Thomas NHS Foundation Trust,09/10/2020,(50200) Consultants,(id:41864) PACCS,KINGS COLLEGE LONDON:03529700,id:13204418    ,5124.75
Department of Health,Guys and St Thomas NHS Foundation Trust,09/10/2020,(50203) Consultants,(id:41864) PACCS,KINGS COLLEGE LONDON:03529700,id:13126294    ,    12311.63
Department of Health,Guys and St Thomas NHS Foundation Trust,23/10/2020,(81200) Medical Surgical Supplies & Equipment,(id:41864) PACCS,OLYMPUS KEYMED,id:13406957   ,    47853.00
Department of Health,Guys and St Thomas NHS Foundation Trust,29/10/2020,(89640) Non-Healthcare from NHS Trusts,(id:42680) Chief Executive,CENTRAL AND NORTH WEST LONDON NHS FOUNDATION TRUST,id:13348114    ,    10000.00
Department of Health,Guys and St Thomas NHS Foundation Trust,23/10/2020,(89280) Other - Consultancy costs,(id:42680) Chief Executive,SAMANTHA AXTELL,id:13404254    ,3240.00
Department of Health,Guys and St Thomas NHS Foundation Trust,29/10/2020,(50203) Consultants,(id:42680) Chief Executive,KINGS COLLEGE LONDON:03529700,id:13418315    ,    10202.51
Department of Health,Guys and St Thomas NHS Foundation Trust,09/10/2020,(50203) Consultants,(id:42680) Chief Executive,KINGS COLLEGE LONDON:03529700,id:13204262    ,1600.16
Department of Health,Guys and St Thomas NHS Foundation Trust,09/10/2020,(50203) Consultants,(id:42680) Chief Executive,KINGS COLLEGE LONDON:03529700,id:13126274    ,1600.16
Department of Health,Guys and St Thomas NHS Foundation Trust,16/10/2020,(83630) IT Costs,(id:42680) Chief Executive,DILIGENT BOARDBOOKS LIMITED,id:13355641    ,    22200.00
Department of Health,Guys and St Thomas NHS Foundation Trust,16/10/2020,(89000) Other - Training courses and conferences,(id:42680) Chief Executive,ROYAL NATIONAL ORTHOPAEDIC HOSPITAL NHS TRUST,id:13345855    ,2000.00
Department of Health,Guys and St Thomas NHS Foundation Trust,29/10/2020,(89280) Other - Consultancy costs,(id:987420) Hosted Services,OXLEAS NHS FOUNDATION TRUST,id:13411174 ,5941.00
Department of Health,Guys and St Thomas NHS Foundation Trust,16/10/2020,(89280) Other - Consultancy costs,(id:987420) Hosted Services,SKILLS DEVELOPMENT SOLUTIONS LTD,id:13390015 ,4782.76
Department of Health,Guys and St Thomas NHS Foundation Trust,09/10/2020,(89280) Other - Consultancy costs,(id:987420) Hosted Services,SKILLS DEVELOPMENT SOLUTIONS LTD,id:13318018 ,3766.38
Department of Health,Guys and St Thomas NHS Foundation Trust,09/10/2020,(89280) Other - Consultancy costs,(id:987420) Hosted Services,UBEROLOGY LTD,id:13362962,3300.00
Department of Health,Guys and St Thomas NHS Foundation Trust,29/10/2020,(50150) Directors & Senior Managers,(id:221408) Hosted Services,KINGS COLLEGE LONDON:03529700,id:13417633  ,3087.88
Department of Health,Guys and St Thomas NHS Foundation Trust,02/10/2020,(50200) Consultants,(id:2183419) Hosted Services,KING'S COLLEGE HOSPITAL NHS FOUNDATION TRUST,id:12501444  ,    27364.00
Department of Health,Guys and St Thomas NHS Foundation Trust,16/10/2020,(89270) Establishment,(id:42814) Communications,AYA-CREATIVE LTD (PREV. ANDREW YOUNGER AND ASSOCIATES),id:13367416   ,    11533.00
Department of Health,Guys and St Thomas NHS Foundation Trust,23/10/2020,(82000) Provisions & Kitchens,(id:49447) Debtors (I&E Rechargable),NHS SUPPLY CHAIN (MAIDSTONE),id:13336014,  13.72
Department of Health,Guys and St Thomas NHS Foundation Trust,02/10/2020,(84100) Transport,(id:590619) Central Services,ENTERPRISE RENT A CAR LTD,id:13350187   , 440.68
Department of Health,Guys and St Thomas NHS Foundation Trust,29/10/2020,(84100) Transport,(id:590619) Central Services,LEX AUTOLEASE LIMITED,id:13429134  , 581.26
Department of Health,Guys and St Thomas NHS Foundation Trust,16/10/2020,(84200) Rental under Operating Lease,(id:590619) Central Services,LEASEPLAN UK LIMITED,id:13355676    ,    -1246.72
Department of Health,Guys and St Thomas NHS Foundation Trust,29/10/2020,(84200) Rental under Operating Lease,(id:590619) Central Services,ARNOLD CLARK FINANCE LIMITED,id:13429567 ,2103.15
Department of Health,Guys and St Thomas NHS Foundation Trust,09/10/2020,(82600) Uniforms & Clothing,(id:42579) Central Services,FERNO (UK) LTD,id:12778839, 826.31
Department of Health,Guys and St Thomas NHS Foundation Trust,02/10/2020,(84400) Transport,(id:42579) Central Services,CMAC GROUP UK LTD,id:13340542  ,8717.62
Department of Health,Guys and St Thomas NHS Foundation Trust,02/10/2020,(84400) Transport,(id:42579) Central Services,STARCROSS TRADING LTD T/A BEARS,id:13354669   , 657.54
Department of Health,Guys and St Thomas NHS Foundation Trust,02/10/2020,(84400) Transport,(id:42579) Central Services,STARCROSS TRADING LTD T/A BEARS,id:13354602   , 675.00
Department of Health,Guys and St Thomas NHS Foundation Trust,02/10/2020,(84400) Transport,(id:42579) Central Services,STARCROSS TRADING LTD T/A BEARS,id:13354744   , 832.00
Department of Health,Guys and St Thomas NHS Foundation Trust,02/10/2020,(84400) Transport,(id:42579) Central Services,STARCROSS TRADING LTD T/A BEARS,id:13354611   ,1200.00
Department of Health,Guys and St Thomas NHS Foundation Trust,02/10/2020,(84400) Transport,(id:42579) Central Services,STARCROSS TRADING LTD T/A BEARS,id:13354613   ,1600.00
Department of Health,Guys and St Thomas NHS Foundation Trust,02/10/2020,(84400) Transport,(id:42579) Central Services,STARCROSS TRADING LTD T/A BEARS,id:13354598   ,1980.00
Department of Health,Guys and St Thomas NHS Foundation Trust,02/10/2020,(84400) Transport,(id:42579) Central Services,STARCROSS TRADING LTD T/A BEARS,id:13354624   ,2496.50
Department of Health,Guys and St Thomas NHS Foundation Trust,02/10/2020,(84400) Transport,(id:42579) Central Services,STARCROSS TRADING LTD T/A BEARS,id:13354731   ,4191.48
Department of Health,Guys and St Thomas NHS Foundation Trust,02/10/2020,(84400) Transport,(id:42579) Central Services,STARCROSS TRADING LTD T/A BEARS,id:13354729   ,5108.73
Department of Health,Guys and St Thomas NHS Foundation Trust,23/10/2020,(84400) Transport,(id:42579) Central Services,STARCROSS TRADING LTD T/A BEARS,id:13407695   , 983.80
Department of Health,Guys and St Thomas NHS Foundation Trust,23/10/2020,(84400) Transport,(id:42579) Central Services,STARCROSS TRADING LTD T/A BEARS,id:13407922   ,1025.00
Department of Health,Guys and St Thomas NHS Foundation Trust,23/10/2020,(84400) Transport,(id:42579) Central Services,STARCROSS TRADING LTD T/A BEARS,id:13415456   ,1207.80
Department of Health,Guys and St Thomas NHS Foundation Trust,23/10/2020,(84400) Transport,(id:42579) Central Services,STARCROSS TRADING LTD T/A BEARS,id:13407918   ,1350.00
Department of Health,Guys and St Thomas NHS Foundation Trust,23/10/2020,(84400) Transport,(id:42579) Central Services,STARCROSS TRADING LTD T/A BEARS,id:13407634   ,1469.70
Department of Health,Guys and St Thomas NHS Foundation Trust,23/10/2020,(84400) Transport,(id:42579) Central Services,STARCROSS TRADING LTD T/A BEARS,id:13415434   ,1525.86
Department of Health,Guys and St Thomas NHS Foundation Trust,23/10/2020,(84400) Transport,(id:42579) Central Services,STARCROSS TRADING LTD T/A BEARS,id:13407870   ,2727.67
Department of Health,Guys and St Thomas NHS Foundation Trust,23/10/2020,(84400) Transport,(id:42579) Central Services,STARCROSS TRADING LTD T/A BEARS,id:13415441   ,2954.91
Department of Health,Guys and St Thomas NHS Foundation Trust,23/10/2020,(84400) Transport,(id:42579) Central Services,STARCROSS TRADING LTD T/A BEARS,id:13407934   ,4104.00
Department of Health,Guys and St Thomas NHS Foundation Trust,23/10/2020,(84400) Transport,(id:42579) Central Services,STARCROSS TRADING LTD T/A BEARS,id:13396979   ,5096.69
Department of Health,Guys and St Thomas NHS Foundation Trust,16/10/2020,(84400) Transport,(id:42579) Central Services,STARCROSS TRADING LTD T/A BEARS,id:13390139   ,2997.85
Department of Health,Guys and St Thomas NHS Foundation Trust,16/10/2020,(84400) Transport,(id:42579) Central Services,STARCROSS TRADING LTD T/A BEARS,id:13390129   ,3997.46
Department of Health,Guys and St Thomas NHS Foundation Trust,16/10/2020,(84400) Transport,(id:42579) Central Services,CMAC GROUP UK LTD,id:13391995  ,5571.58
Department of Health,Guys and St Thomas NHS Foundation Trust,16/10/2020,(84400) Transport,(id:42579) Central Services,CMAC GROUP UK LTD,id:13392034  ,    12670.22
Department of Health,Guys and St Thomas NHS Foundation Trust,16/10/2020,(84400) Transport,(id:42579) Central Services,SAVOY VENTURES LTD.,id:13349987,    28350.00
Department of Health,Guys and St Thomas NHS Foundation Trust,16/10/2020,(84400) Transport,(id:42579) Central Services,STARCROSS TRADING LTD T/A BEARS,id:13390072   , 516.80
Department of Health,Guys and St Thomas NHS Foundation Trust,16/10/2020,(84400) Transport,(id:42579) Central Services,STARCROSS TRADING LTD T/A BEARS,id:13390536   , 700.00
Department of Health,Guys and St Thomas NHS Foundation Trust,16/10/2020,(84400) Transport,(id:42579) Central Services,STARCROSS TRADING LTD T/A BEARS,id:13390197   ,1600.00
Department of Health,Guys and St Thomas NHS Foundation Trust,16/10/2020,(84400) Transport,(id:42579) Central Services,STARCROSS TRADING LTD T/A BEARS,id:13390116   ,1743.84
Department of Health,Guys and St Thomas NHS Foundation Trust,16/10/2020,(84400) Transport,(id:42579) Central Services,STARCROSS TRADING LTD T/A BEARS,id:13390170   ,2025.00
Department of Health,Guys and St Thomas NHS Foundation Trust,16/10/2020,(84400) Transport,(id:42579) Central Services,STARCROSS TRADING LTD T/A BEARS,id:13390133   ,2619.68
Department of Health,Guys and St Thomas NHS Foundation Trust,09/10/2020,(84400) Transport,(id:42579) Central Services,STARCROSS TRADING LTD T/A BEARS,id:13363032   ,1300.40
Department of Health,Guys and St Thomas NHS Foundation Trust,09/10/2020,(84400) Transport,(id:42579) Central Services,STARCROSS TRADING LTD T/A BEARS,id:13369136   ,1350.00
Department of Health,Guys and St Thomas NHS Foundation Trust,09/10/2020,(84400) Transport,(id:42579) Central Services,STARCROSS TRADING LTD T/A BEARS,id:13363894   ,1710.00
Department of Health,Guys and St Thomas NHS Foundation Trust,09/10/2020,(84400) Transport,(id:42579) Central Services,STARCROSS TRADING LTD T/A BEARS,id:13368834   ,1771.84
Department of Health,Guys and St Thomas NHS Foundation Trust,09/10/2020,(84400) Transport,(id:42579) Central Services,STARCROSS TRADING LTD T/A BEARS,id:13369275   ,2159.08
Department of Health,Guys and St Thomas NHS Foundation Trust,09/10/2020,(84400) Transport,(id:42579) Central Services,STARCROSS TRADING LTD T/A BEARS,id:13369058   ,    12800.00
Department of Health,Guys and St Thomas NHS Foundation Trust,29/10/2020,(84400) Transport,(id:42579) Central Services,STARCROSS TRADING LTD T/A BEARS,id:13426255   , 486.20
Department of Health,Guys and St Thomas NHS Foundation Trust,29/10/2020,(84400) Transport,(id:42579) Central Services,STARCROSS TRADING LTD T/A BEARS,id:13426740   , 602.00
Department of Health,Guys and St Thomas NHS Foundation Trust,29/10/2020,(84400) Transport,(id:42579) Central Services,STARCROSS TRADING LTD T/A BEARS,id:13426099   ,1631.40
Department of Health,Guys and St Thomas NHS Foundation Trust,29/10/2020,(84400) Transport,(id:42579) Central Services,STARCROSS TRADING LTD T/A BEARS,id:13425979   ,2412.00
Department of Health,Guys and St Thomas NHS Foundation Trust,29/10/2020,(84400) Transport,(id:42579) Central Services,STARCROSS TRADING LTD T/A BEARS,id:13426103   ,3020.77
Department of Health,Guys and St Thomas NHS Foundation Trust,29/10/2020,(84400) Transport,(id:42579) Central Services,STARCROSS TRADING LTD T/A BEARS,id:13425987   ,3969.00
Department of Health,Guys and St Thomas NHS Foundation Trust,29/10/2020,(84400) Transport,(id:42579) Central Services,STARCROSS TRADING LTD T/A BEARS,id:13426118   ,7385.53
Department of Health,Guys and St Thomas NHS Foundation Trust,23/10/2020,(84400) Transport,(id:42579) Central Services,STARCROSS TRADING LTD T/A BEARS,id:13396986   ,9722.54
Department of Health,Guys and St Thomas NHS Foundation Trust,23/10/2020,(84400) Transport,(id:42579) Central Services,SAVOY VENTURES LTD.,id:13415496,    28350.00
Department of Health,Guys and St Thomas NHS Foundation Trust,23/10/2020,(84400) Transport,(id:42579) Central Services,STARCROSS TRADING LTD T/A BEARS,id:13407906   ,   -23760.00
Department of Health,Guys and St Thomas NHS Foundation Trust,23/10/2020,(84200) Rental under Operating Lease,(id:42579) Central Services,LEASEPLAN UK LIMITED,id:13402671,-633.09
Department of Health,Guys and St Thomas NHS Foundation Trust,16/10/2020,(84200) Rental under Operating Lease,(id:42579) Central Services,ENTERPRISE RENT A CAR LTD,id:13369576,    17002.00
Department of Health,Guys and St Thomas NHS Foundation Trust,16/10/2020,(84100) Transport,(id:42579) Central Services,OMD AUTOS LIMITED,id:13391838  ,1035.00
Department of Health,Guys and St Thomas NHS Foundation Trust,09/10/2020,(81000) Surgical Appliances,(id:42579) Central Services,STARCROSS TRADING LTD T/A BEARS,id:13363914   ,1170.00
Department of Health,Guys and St Thomas NHS Foundation Trust,16/10/2020,(82400) Contract Hotel Services,(id:42556) Central Services,JOHNSONS STALBRIDGE LINEN SERVICES,id:13376491 ,2171.40
Department of Health,Guys and St Thomas NHS Foundation Trust,23/10/2020,(83400) Office Equipment,(id:42535) Central Services,NUTRIPACK LTD,id:13399336    ,2100.46
Department of Health,Guys and St Thomas NHS Foundation Trust,16/10/2020,(83400) Office Equipment,(id:42535) Central Services,PELICAN PROCUREMENT SERVICES LTD,id:13389735,5653.83
Department of Health,Guys and St Thomas NHS Foundation Trust,23/10/2020,(84500) Establishment,(id:42535) Central Services,CDP  PRINT MANAGEMENT,id:13409474    ,1773.78
Department of Health,Guys and St Thomas NHS Foundation Trust,30/10/2020,(89000) Other - Training courses and conferences,(id:42535) Central Services,GSTT PROCUREMENT CARD,id:13433842  ,  50.00
Department of Health,Guys and St Thomas NHS Foundation Trust,23/10/2020,(83400) Office Equipment,(id:42538) Central Services,BRITA VIVREAU LTD,id:13415961,1029.60
Department of Health,Guys and St Thomas NHS Foundation Trust,16/10/2020,(83400) Office Equipment,(id:2100420) Central Services,GRANTLEIGH LTD,id:13210665 ,2885.00
Department of Health,Guys and St Thomas NHS Foundation Trust,29/10/2020,(82000) Provisions & Kitchens,(id:4629421) Asset Management,MARK SIMPKIN LTD,id:13419143    , 570.00
Department of Health,Guys and St Thomas NHS Foundation Trust,16/10/2020,(83755) Rental under Operating Lease,(id:4618419) Asset Management,ST. OLAV'S COURT LIMITED,id:13350428    ,1666.74
Department of Health,Guys and St Thomas NHS Foundation Trust,02/10/2020,(83710) Rates,(id:42624) Asset Management,LONDON BOROUGH OF LAMBETH:24845200,id:12956516    ,   -12312.00
Department of Health,Guys and St Thomas NHS Foundation Trust,02/10/2020,(83880) Building & Engineering,(id:42624) Asset Management,WSP UK LTD,id:13348697 ,2000.00
Department of Health,Guys and St Thomas NHS Foundation Trust,16/10/2020,(83640) IT Costs,(id:42624) Asset Management,MICAD SYSTEMS (UK) LTD,id:13221554   ,    33986.03
Department of Health,Guys and St Thomas NHS Foundation Trust,02/10/2020,(89120) Other - Legal fees,(id:42624) Asset Management,BEACHCROFT LLP OFFICE ACCOUNT,id:13346914 ,1707.20
Department of Health,Guys and St Thomas NHS Foundation Trust,02/10/2020,(89120) Other - Legal fees,(id:42624) Asset Management,BEACHCROFT LLP OFFICE ACCOUNT,id:13346179 ,1831.90
Department of Health,Guys and St Thomas NHS Foundation Trust,09/10/2020,(89000) Other - Training courses and conferences,(id:42603) Essentia Director,TALKCHANGE LTD,id:13358675   ,1980.00
Department of Health,Guys and St Thomas NHS Foundation Trust,23/10/2020,(55062) Admin & Clerical,(id:42603) Essentia Director,HAYS ACCOUNTANCY PERSONNEL,id:13391547,1225.80
Department of Health,Guys and St Thomas NHS Foundation Trust,09/10/2020,(83400) Office Equipment,(id:492412) Essentia Community Services,CITY & KENT CLEANING LTD,id:13159720 , 445.80
Department of Health,Guys and St Thomas NHS Foundation Trust,02/10/2020,(83880) Building & Engineering,(id:3950421) Essentia Community Services,LAZERBEAM FIRE AND SECURITY LTD,id:13355678  , 452.00
Department of Health,Guys and St Thomas NHS Foundation Trust,29/10/2020,(83765) Rent,(id:1627422) Essentia Community Services,NHS PROPERTY SERVICES,id:13405094,    33847.19
Department of Health,Guys and St Thomas NHS Foundation Trust,09/10/2020,(83110) Energy Costs,(id:1116425) Essentia Community Services,EDF ENERGY,id:13371774   ,2754.88
Department of Health,Guys and St Thomas NHS Foundation Trust,09/10/2020,(83220) Water & Sewerage,(id:1116424) Essentia Community Services,BUSINESS STREAM,id:13370255    , 313.41
Department of Health,Guys and St Thomas NHS Foundation Trust,09/10/2020,(83210) Water & Sewerage,(id:1116423) Essentia Community Services,BUSINESS STREAM,id:13370214    ,1903.34
Department of Health,Guys and St Thomas NHS Foundation Trust,23/10/2020,(83343) Premises Services,(id:1116419) Essentia Community Services,BYWATERS (LEYTON) LTD,id:13400686  , 539.13
Department of Health,Guys and St Thomas NHS Foundation Trust,23/10/2020,(83343) Premises Services,(id:1116419) Essentia Community Services,BYWATERS (LEYTON) LTD,id:13400685  , 697.66
Department of Health,Guys and St Thomas NHS Foundation Trust,23/10/2020,(83343) Premises Services,(id:1116419) Essentia Community Services,BYWATERS (LEYTON) LTD,id:13400615  , 878.38
Department of Health,Guys and St Thomas NHS Foundation Trust,02/10/2020,(83710) Rates,(id:1116427) Essentia Community Services,LONDON BOROUGH OF SOUTHWARK:04102500,id:13348816    ,    16649.50
Department of Health,Guys and St Thomas NHS Foundation Trust,16/10/2020,(83755) Rental under Operating Lease,(id:1116426) Essentia Community Services,ASSURA ASPIRE UK LTD,id:13385174  ,    11450.00
Department of Health,Guys and St Thomas NHS Foundation Trust,09/10/2020,(83110) Energy Costs,(id:676419) Essentia Community Services,BRITISH GAS BUSINESS:70299300,id:13363318,1420.54
Department of Health,Guys and St Thomas NHS Foundation Trust,09/10/2020,(83400) Office Equipment,(id:492591) Essentia Community Services,CITY & KENT CLEANING LTD,id:13359928 , 565.20
Department of Health,Guys and St Thomas NHS Foundation Trust,23/10/2020,(84100) Transport,(id:492597) Essentia Community Services,BRADRICH ACCIDENT REPAIR CENTRE,id:13402797 , 829.80
Department of Health,Guys and St Thomas NHS Foundation Trust,16/10/2020,(83755) Rental under Operating Lease,(id:492597) Essentia Community Services,LONDON BOROUGH OF MERTON,id:13358036    ,3100.00
Department of Health,Guys and St Thomas NHS Foundation Trust,02/10/2020,(84000) Transport,(id:492418) Essentia Community Services,ALLSTAR BUSINESS SOLUTIONS LTD (ARVAL),id:13356934    , 322.73
Department of Health,Guys and St Thomas NHS Foundation Trust,02/10/2020,(83881) Building & Engineering,(id:2528419) Essentia Community Services,REDLAND CONSTRUCTION LIMITED,id:13327089,1267.50
Department of Health,Guys and St Thomas NHS Foundation Trust,29/10/2020,(83881) Building & Engineering,(id:492522) Essentia Community Services,ENTRANCE SOLUTIONS LTD,id:13417774  ,  90.00
Department of Health,Guys and St Thomas NHS Foundation Trust,23/10/2020,(83342) Premises Services,(id:492421) Essentia Commercial,SRCL LTD,id:13403335    , 428.42
Department of Health,Guys and St Thomas NHS Foundation Trust,23/10/2020,(83342) Premises Services,(id:492421) Essentia Commercial,SRCL LTD,id:13412594    ,2344.34
Department of Health,Guys and St Thomas NHS Foundation Trust,29/10/2020,(83342) Premises Services,(id:492421) Essentia Commercial,SRCL LTD,id:13420415    , 849.25
Department of Health,Guys and St Thomas NHS Foundation Trust,23/10/2020,(83342) Premises Services,(id:3142420) Essentia Commercial,SRCL LTD,id:13403335   , 102.00
Department of Health,Guys and St Thomas NHS Foundation Trust,09/10/2020,(83120) Energy Costs,(id:492479) Essentia Commercial,CORONA ENERGY RETAIL 4 LTD,id:13237717 ,1450.03
Department of Health,Guys and St Thomas NHS Foundation Trust,09/10/2020,(83120) Energy Costs,(id:492479) Essentia Commercial,CORONA ENERGY RETAIL 4 LTD,id:13237737 ,2003.42
Department of Health,Guys and St Thomas NHS Foundation Trust,29/10/2020,(83343) Premises Services,(id:492478) Essentia Commercial,VEOLIA ES CLEANAWAY UK LTD,id:13417758 ,  78.66
Department of Health,Guys and St Thomas NHS Foundation Trust,23/10/2020,(83342) Premises Services,(id:492472) Essentia Commercial,SRCL LTD,id:13403335    ,  72.50
Department of Health,Guys and St Thomas NHS Foundation Trust,23/10/2020,(83343) Premises Services,(id:492496) Essentia Commercial,VEOLIA ES CLEANAWAY UK LTD,id:13412826 , 480.06
Department of Health,Guys and St Thomas NHS Foundation Trust,23/10/2020,(83342) Premises Services,(id:492471) Essentia Commercial,SRCL LTD,id:13403375    ,1463.75
Department of Health,Guys and St Thomas NHS Foundation Trust,23/10/2020,(83342) Premises Services,(id:492470) Essentia Commercial,SRCL LTD,id:13403489    ,3001.85
Department of Health,Guys and St Thomas NHS Foundation Trust,23/10/2020,(55092) Admin & Clerical,(id:492416) Essentia Commercial,VENN GROUP LTD,id:13391538    ,3875.81
Department of Health,Guys and St Thomas NHS Foundation Trust,09/10/2020,(83120) Energy Costs,(id:1785419) Essentia Infrastructure,CORONA ENERGY RETAIL 4 LTD,id:13212015 ,-859.97
Department of Health,Guys and St Thomas NHS Foundation Trust,09/10/2020,(83220) Water & Sewerage,(id:42626) Essentia Infrastructure,CASTLE WATER LIMITED,id:13372694,1876.02
Department of Health,Guys and St Thomas NHS Foundation Trust,09/10/2020,(83120) Energy Costs,(id:1789419) Essentia Infrastructure,CORONA ENERGY RETAIL 4 LTD,id:13212174 ,-796.13
Department of Health,Guys and St Thomas NHS Foundation Trust,09/10/2020,(83120) Energy Costs,(id:1789419) Essentia Infrastructure,CORONA ENERGY RETAIL 4 LTD,id:13212054 ,-891.43
Department of Health,Guys and St Thomas NHS Foundation Trust,16/10/2020,(83880) Building & Engineering,(id:4628419) Essentia Infrastructure,APPROVED AIR LTD,id:13358316 ,    16692.56
Department of Health,Guys and St Thomas NHS Foundation Trust,02/10/2020,(83880) Building & Engineering,(id:2507419) Essentia Infrastructure,TRINITY FIRE AND SECURITY,id:13193636  , 820.00
Department of Health,Guys and St Thomas NHS Foundation Trust,29/10/2020,(83400) Office Equipment,(id:1270419) Essentia Infrastructure,EDWARDES BROS (DULWICH) LTD,id:13422034 ,1603.92
Department of Health,Guys and St Thomas NHS Foundation Trust,23/10/2020,(83400) Office Equipment,(id:1270419) Essentia Infrastructure,EDMUNDSON ELECTRICAL LTD,id:13408435    ,2952.00
Department of Health,Guys and St Thomas NHS Foundation Trust,02/10/2020,(83400) Office Equipment,(id:1270419) Essentia Infrastructure,EDWARDES BROS (DULWICH) LTD,id:13354152 , 649.20
Department of Health,Guys and St Thomas NHS Foundation Trust,09/10/2020,(83400) Office Equipment,(id:1270419) Essentia Infrastructure,EDWARDES BROS (DULWICH) LTD,id:13359397 ,1132.20
Department of Health,Guys and St Thomas NHS Foundation Trust,09/10/2020,(83881) Building & Engineering,(id:197408) Essentia Infrastructure,ABBEY LIFTCARE LTD,id:13324056,3456.00
Department of Health,Guys and St Thomas NHS Foundation Trust,09/10/2020,(83880) Building & Engineering,(id:197408) Essentia Infrastructure,ABBEY LIFTCARE LTD,id:13324056, 540.00
Department of Health,Guys and St Thomas NHS Foundation Trust,23/10/2020,(83881) Building & Engineering,(id:197407) Essentia Infrastructure,ETA PROJECTS LTD,id:13359558  , 847.00
Department of Health,Guys and St Thomas NHS Foundation Trust,16/10/2020,(83881) Building & Engineering,(id:197407) Essentia Infrastructure,PROJECT SOLVER LTD,id:13345720,1805.70
Department of Health,Guys and St Thomas NHS Foundation Trust,09/10/2020,(83881) Building & Engineering,(id:197407) Essentia Infrastructure,CAMFIL LTD,id:13362835   ,1462.22
Department of Health,Guys and St Thomas NHS Foundation Trust,09/10/2020,(83880) Building & Engineering,(id:42648) Essentia Infrastructure,RM ASSOCIATES,id:13305957 , 700.00
Department of Health,Guys and St Thomas NHS Foundation Trust,23/10/2020,(83880) Building & Engineering,(id:42634) Essentia Infrastructure,G K WOOD & SON LTD (T/A FULBOURN MEDICAL),id:13331494   , 702.00
Department of Health,Guys and St Thomas NHS Foundation Trust,16/10/2020,(83400) Office Equipment,(id:42634) Essentia Infrastructure,ROBLETT ELECTRICAL SUPPLIES LTD,id:13390339    ,1086.00
Department of Health,Guys and St Thomas NHS Foundation Trust,16/10/2020,(55652) Maintenance Staff,(id:42633) Essentia Infrastructure,VENN GROUP LTD,id:13391503,5080.43
Department of Health,Guys and St Thomas NHS Foundation Trust,23/10/2020,(55632) Maintenance Staff,(id:42633) Essentia Infrastructure,MORGAN HUNT UK LTD,id:13414319 , 966.60
Department of Health,Guys and St Thomas NHS Foundation Trust,29/10/2020,(83400) Office Equipment,(id:42632) Essentia Infrastructure,PALL EUROPE LTD,id:13421711, 277.20
Department of Health,Guys and St Thomas NHS Foundation Trust,16/10/2020,(83880) Building & Engineering,(id:42631) Essentia Infrastructure,MAITLAND ENGINEERING LTD,id:13365894,5776.00
Department of Health,Guys and St Thomas NHS Foundation Trust,23/10/2020,(83880) Building & Engineering,(id:42631) Essentia Infrastructure,SOCOTEC UK LTD,id:13360435,    41610.00
Department of Health,Guys and St Thomas NHS Foundation Trust,09/10/2020,(83880) Building & Engineering,(id:42630) Essentia Infrastructure,MAITLAND ENGINEERING LTD,id:13360234, 687.00
Department of Health,Guys and St Thomas NHS Foundation Trust,09/10/2020,(83880) Building & Engineering,(id:42630) Essentia Infrastructure,TRANE UK LTD (FORMERLY INGERSOLL-RAND UK LTD),id:13316183    ,4875.00
Department of Health,Guys and St Thomas NHS Foundation Trust,23/10/2020,(83880) Building & Engineering,(id:4629419) Essentia Infrastructure,GPT CONSULT LLP,id:13222256  ,7605.00
Department of Health,Guys and St Thomas NHS Foundation Trust,23/10/2020,(83880) Building & Engineering,(id:4629419) Essentia Infrastructure,GPT CONSULT LLP,id:13363581  ,    10530.00
Department of Health,Guys and St Thomas NHS Foundation Trust,16/10/2020,(83400) Office Equipment,(id:1271419) Essentia Infrastructure,RICHMONDS OF LONDON LTD,id:13355208, 873.48
Department of Health,Guys and St Thomas NHS Foundation Trust,23/10/2020,(83400) Office Equipment,(id:1271419) Essentia Infrastructure,EDWARDES BROS (DULWICH) LTD,id:13396356 , 973.34
Department of Health,Guys and St Thomas NHS Foundation Trust,02/10/2020,(83881) Building & Engineering,(id:197406) Essentia Infrastructure,VERNACARE,id:13320543    ,    17209.02
Department of Health,Guys and St Thomas NHS Foundation Trust,02/10/2020,(83880) Building & Engineering,(id:42642) Essentia Infrastructure,ABBEY LIFTCARE LTD,id:13299520 ,1440.00
Department of Health,Guys and St Thomas NHS Foundation Trust,29/10/2020,(83400) Office Equipment,(id:42640) Essentia Infrastructure,RS COMPONENTS LTD,id:13419932   ,1187.76
Department of Health,Guys and St Thomas NHS Foundation Trust,02/10/2020,(83400) Office Equipment,(id:42640) Essentia Infrastructure,FINNING UK LTD,id:13355244 ,4368.00
Department of Health,Guys and St Thomas NHS Foundation Trust,02/10/2020,(83880) Building & Engineering,(id:42638) Essentia Infrastructure,ATLAS COPCO MEDICAL LTD (FORMERLY MEDAES LTD),id:13293100    , 476.00
Department of Health,Guys and St Thomas NHS Foundation Trust,02/10/2020,(83880) Building & Engineering,(id:42638) Essentia Infrastructure,MAITLAND ENGINEERING LTD,id:13357099,1137.00
Department of Health,Guys and St Thomas NHS Foundation Trust,09/10/2020,(83880) Building & Engineering,(id:42638) Essentia Infrastructure,SOCOTEC UK LTD,id:13360314,1826.00
Department of Health,Guys and St Thomas NHS Foundation Trust,09/10/2020,(83880) Building & Engineering,(id:42638) Essentia Infrastructure,BROWNINGS ELECTRIC CO LTD,id:13367138    ,4134.00
Department of Health,Guys and St Thomas NHS Foundation Trust,23/10/2020,(55652) Maintenance Staff,(id:42637) Essentia Infrastructure,MORGAN HUNT UK LTD,id:13414124 , 773.86
Department of Health,Guys and St Thomas NHS Foundation Trust,16/10/2020,(55652) Maintenance Staff,(id:42637) Essentia Infrastructure,MMP CONSULTANCY LTD,id:13358557,1052.10
Department of Health,Guys and St Thomas NHS Foundation Trust,23/10/2020,(55642) Maintenance Staff,(id:42637) Essentia Infrastructure,MORGAN HUNT UK LTD,id:13414136 , 889.27
Department of Health,Guys and St Thomas NHS Foundation Trust,23/10/2020,(55632) Maintenance Staff,(id:42637) Essentia Infrastructure,MORGAN HUNT UK LTD,id:13414079 , 834.30
Department of Health,Guys and St Thomas NHS Foundation Trust,16/10/2020,(89000) Other - Training courses and conferences,(id:42615) Essentia COO,FIRE PROTECTION ASSOCIATION,id:13182874,1314.00
Department of Health,Guys and St Thomas NHS Foundation Trust,29/10/2020,(83400) Office Equipment,(id:4624420) Guys Site services,TBS POLYCARBONATES,id:13420167, 599.04
Department of Health,Guys and St Thomas NHS Foundation Trust,16/10/2020,(83400) Office Equipment,(id:42545) Guys Site services,CITY & KENT CLEANING LTD,id:13376131 ,9117.29
Department of Health,Guys and St Thomas NHS Foundation Trust,02/10/2020,(83640) IT Costs,(id:42585) STH Site Services,ANVEN MANAGEMENT SERVICES,id:13356539    ,1000.00
Department of Health,Guys and St Thomas NHS Foundation Trust,16/10/2020,(83880) Building & Engineering,(id:4625420) STH Site Services,CITY & KENT CLEANING LTD,id:13363698    ,1223.00
Department of Health,Guys and St Thomas NHS Foundation Trust,16/10/2020,(83880) Building & Engineering,(id:4625420) STH Site Services,CITY & KENT CLEANING LTD,id:13368434    ,2975.00
Department of Health,Guys and St Thomas NHS Foundation Trust,16/10/2020,(83880) Building & Engineering,(id:4625420) STH Site Services,GRANTLEIGH LTD,id:13381259    ,3000.00
Department of Health,Guys and St Thomas NHS Foundation Trust,09/10/2020,(83880) Building & Engineering,(id:4625420) STH Site Services,CITY & KENT CLEANING LTD,id:13361156    ,1223.00
Department of Health,Guys and St Thomas NHS Foundation Trust,23/10/2020,(83880) Building & Engineering,(id:4625420) STH Site Services,WPG REFURBISHMENTS LTD CIS6,id:13412144 ,5200.00
Department of Health,Guys and St Thomas NHS Foundation Trust,02/10/2020,(83880) Building & Engineering,(id:42664) STH Site Services,CITY & KENT CLEANING LTD,id:13280134 ,3031.00
Department of Health,Guys and St Thomas NHS Foundation Trust,12/10/2020,(83880) Building & Engineering,(id:42664) STH Site Services,G&M BUILDING CONTRACTORS ESSEX LTD,id:13359656 ,1668.00
Department of Health,Guys and St Thomas NHS Foundation Trust,16/10/2020,(83880) Building & Engineering,(id:42664) STH Site Services,CITY & KENT CLEANING LTD,id:13363834 ,2925.00
Department of Health,Guys and St Thomas NHS Foundation Trust,29/10/2020,(83880) Building & Engineering,(id:42664) STH Site Services,GRANTLEIGH LTD,id:13419916 ,3480.00
Department of Health,Guys and St Thomas NHS Foundation Trust,09/10/2020,(83880) Building & Engineering,(id:42664) STH Site Services,CITY & KENT CLEANING LTD,id:13365254 ,4245.00
Department of Health,Guys and St Thomas NHS Foundation Trust,16/10/2020,(83400) Office Equipment,(id:4625419) STH Site Services,CITY & KENT CLEANING LTD,id:13376137,7685.41
Department of Health,Guys and St Thomas NHS Foundation Trust,16/10/2020,(83400) Office Equipment,(id:4625419) STH Site Services,CITY & KENT CLEANING LTD,id:13376135,    12594.74
Department of Health,Guys and St Thomas NHS Foundation Trust,23/10/2020,(83400) Office Equipment,(id:42548) STH Site Services,NHS SUPPLY CHAIN (MAIDSTONE),id:13336014   ,1511.12
Department of Health,Guys and St Thomas NHS Foundation Trust,23/10/2020,(83400) Office Equipment,(id:42548) STH Site Services,OFFICE DEPOT UK LTD,id:13357667  ,3645.00
Department of Health,Guys and St Thomas NHS Foundation Trust,23/10/2020,(83400) Office Equipment,(id:42548) STH Site Services,OFFICE DEPOT UK LTD,id:13360216  ,3645.00
Department of Health,Guys and St Thomas NHS Foundation Trust,16/10/2020,(83400) Office Equipment,(id:42548) STH Site Services,OFFICE DEPOT UK LTD,id:13355276  ,3645.00
Department of Health,Guys and St Thomas NHS Foundation Trust,09/10/2020,(83360) Premises Services,(id:42548) STH Site Services,CITY & KENT CLEANING LTD,id:13359914 ,    92211.42
Department of Health,Guys and St Thomas NHS Foundation Trust,16/10/2020,(83400) Office Equipment,(id:42530) STH Site Services,PELICAN PROCUREMENT SERVICES LTD,id:13389735    , 107.55
Department of Health,Guys and St Thomas NHS Foundation Trust,16/10/2020,(81100) Dressings,(id:42599) Sterile Services,ELIS UK LIMITED,id:13375534    , 653.80
Department of Health,Guys and St Thomas NHS Foundation Trust,16/10/2020,(81100) Dressings,(id:42599) Sterile Services,ELIS UK LIMITED,id:13375557    , 452.60
Department of Health,Guys and St Thomas NHS Foundation Trust,02/10/2020,(83340) Premises Services,(id:42576) Security & Waste Services,BYWATERS (LEYTON) LTD,id:13354718 , 666.08
Department of Health,Guys and St Thomas NHS Foundation Trust,02/10/2020,(83340) Premises Services,(id:42576) Security & Waste Services,BYWATERS (LEYTON) LTD,id:13354701 ,    28096.32
Department of Health,Guys and St Thomas NHS Foundation Trust,16/10/2020,(84500) Establishment,(id:42576) Security & Waste Services,LES REED CLEARANCE SERVICE,id:13394314, 850.00
Department of Health,Guys and St Thomas NHS Foundation Trust,09/10/2020,(84500) Establishment,(id:42576) Security & Waste Services,LES REED CLEARANCE SERVICE,id:13359634, 600.00
Department of Health,Guys and St Thomas NHS Foundation Trust,02/10/2020,(84580) Establishment,(id:227405) Chief Nurse,SOUTHWARK NEWSPAPER LTD,id:13322774 , 720.00
Department of Health,Guys and St Thomas NHS Foundation Trust,16/10/2020,(82600) Uniforms & Clothing,(id:590618) Finance Director,ELIS UK LIMITED,id:13393294   ,   115212.07
Department of Health,Guys and St Thomas NHS Foundation Trust,16/10/2020,(89280) Other - Consultancy costs,(id:3922419) Finance Director,PA CONSULTING GROUP,id:13337574  ,    46795.00
Department of Health,Guys and St Thomas NHS Foundation Trust,23/10/2020,(89280) Other - Consultancy costs,(id:42709) Finance Director,BEACHCROFT LLP OFFICE ACCOUNT,id:13404456    , 931.20
Department of Health,Guys and St Thomas NHS Foundation Trust,23/10/2020,(89280) Other - Consultancy costs,(id:42709) Finance Director,BEACHCROFT LLP OFFICE ACCOUNT,id:13404462    ,1838.80
Department of Health,Guys and St Thomas NHS Foundation Trust,02/10/2020,(55422) Ancillary Staff,(id:177407) Finance Director,REED EMPLOYMENT PLC,id:13354887   , 946.96
Department of Health,Guys and St Thomas NHS Foundation Trust,29/10/2020,(55422) Ancillary Staff,(id:177407) Finance Director,REED EMPLOYMENT PLC,id:13414439   , 666.46
Department of Health,Guys and St Thomas NHS Foundation Trust,16/10/2020,(55422) Ancillary Staff,(id:177407) Finance Director,REED EMPLOYMENT PLC,id:13373254   , 853.80
Department of Health,Guys and St Thomas NHS Foundation Trust,16/10/2020,(55422) Ancillary Staff,(id:177407) Finance Director,REED EMPLOYMENT PLC,id:13373212   , 708.54
